﻿Posting date,Supplier number,Supplier name,Expense type,Department,Amount
01/02/2023,1249077,The Advocacy Project,Hired and Contracted Services,ASC Procurement and Business Intelligenc,"51,294.00"
01/02/2023,1249077,The Advocacy Project,Hired and Contracted Services,ASC Procurement and Business Intelligenc,579.71
01/02/2023,1248618,Riverside Echg,Payments to Voluntary bodies,ASC Procurement and Business Intelligenc,"31,500.00"
09/01/2023,1243869,Addison Lee,HTM / Other Vehicle - Hire Charges,Adult Social Care Finance and Resources,877.71
07/02/2023,1243869,Addison Lee,HTM / Other Vehicle - Hire Charges,Adult Social Care Finance and Resources,529.95
20/03/2023,1246072,Bates Office Services Ltd,Stationery and other office consumables,Adult Social Care Finance and Resources,554.53
17/03/2023,1293425,Storey Spaces Ltd,Hire of Accommodation and Facilities,Adult Social Care Finance and Resources,"1,170.00"
14/03/2023,1246216,Westminster Associates Ltd,Training related expenditure,Adult Social Care Finance and Resources,"2,810.00"
23/01/2023,1258840,Blue Cross Hospital,Other premises related costs,Adult Social Care Finance and Resources,559.75
08/03/2023,1248886,Sherry Funeral Services Ltd T/a W,Other premises related costs,Adult Social Care Finance and Resources,"1,683.00"
03/02/2023,1249029,Storing.Com Ltd,Other premises related costs,Adult Social Care Finance and Resources,535.08
01/03/2023,1249029,Storing.Com Ltd,Other premises related costs,Adult Social Care Finance and Resources,619.58
23/01/2023,1243775,Royal Borough of Kensington &,B*Payments to OLAs - Southampton City Co,Adult Social Care Finance and Resources,"38,868.79"
30/03/2023,1251196,Royal Borough of Kensington and,B*Payments to OLAs - Southampton City Co,Adult Social Care Finance and Resources,"48,262.00"
15/02/2023,D000000016,GENERAL,Training related expenditure,Adult Social Care Finance and Resources,"3,000.00"
01/02/2023,1245228,Pohwer,Hired and Contracted Services,Adult Social Care Finance and Resources,762.81
03/03/2023,1245228,Pohwer,Hired and Contracted Services,Adult Social Care Finance and Resources,"1,786.06"
03/03/2023,1245228,Pohwer,Hired and Contracted Services,Adult Social Care Finance and Resources,"1,645.62"
23/01/2023,1243775,Royal Borough of Kensington &,B*Payments to OLAs - Southampton City Co,Adult Social Care Finance and Resources,"21,459.77"
02/02/2023,1251196,Royal Borough of Kensington and,Training related expenditure,Adult Social Care Finance and Resources,"33,199.00"
30/03/2023,1251196,Royal Borough of Kensington and,B*Payments to OLAs - Southampton City Co,Adult Social Care Finance and Resources,"19,750.00"
10/02/2023,1245706,London Borough Of Merton,Equipment,Adult Social Care Operations,"3,133.33"
10/02/2023,1245706,London Borough Of Merton,Equipment,Adult Social Care Operations,583.5
12/01/2023,1244066,Buddi Ltd,###,Bi-Borough Director of Integrated Care,600
09/01/2023,1290804,Doro Care UK Ltd,###,Bi-Borough Director of Integrated Care,"1,750.00"
27/01/2023,1290804,Doro Care UK Ltd,###,Bi-Borough Director of Integrated Care,"2,228.00"
02/03/2023,1290804,Doro Care UK Ltd,###,Bi-Borough Director of Integrated Care,"2,288.00"
16/03/2023,1290804,Doro Care UK Ltd,###,Bi-Borough Director of Integrated Care,"7,160.00"
22/03/2023,1290804,Doro Care UK Ltd,###,Bi-Borough Director of Integrated Care,"2,344.00"
18/01/2023,1292281,The Community Housing Group Limited,Hired and Contracted Services,Bi-Borough Director of Integrated Care,856.35
19/01/2023,1292281,The Community Housing Group Limited,Hired and Contracted Services,Bi-Borough Director of Integrated Care,"1,767.11"
30/01/2023,1273817,GCH Alan Morkill House Ltd,Hired and Contracted Services,Bi-Borough Director of Integrated Care,"400,000.00"
16/03/2023,1273817,GCH Alan Morkill House Ltd,Hired and Contracted Services,Bi-Borough Director of Integrated Care,"400,000.00"
23/01/2023,1243775,Royal Borough of Kensington &,B*Payments to OLAs - Southampton City Co,Bi-Borough Director of Integrated Care,"72,365.52"
30/03/2023,1251196,Royal Borough of Kensington and,B*Payments to OLAs - Southampton City Co,Bi-Borough Director of Integrated Care,"66,253.00"
03/03/2023,1265486,Flex360 Ltd,Agency Staff,Bi-Borough Director of Integrated Care,"20,000.00"
23/01/2023,1245693,London Borough Of Hammersmith &,B*Payments to OLAs - Southampton City Co,Bi-Borough Director of Integrated Care,"40,243.00"
21/03/2023,1245693,London Borough Of Hammersmith &,B*Payments to OLAs - Southampton City Co,Bi-Borough Director of Integrated Care,"78,269.18"
23/01/2023,1245693,London Borough Of Hammersmith &,B*Payments to OLAs - Southampton City Co,Bi-Borough Director of Integrated Care,"45,308.00"
23/01/2023,1243775,Royal Borough of Kensington &,B*Payments to OLAs - Southampton City Co,Bi-Borough Director of Integrated Care,"72,546.83"
22/03/2023,1251196,Royal Borough of Kensington and,B*Payments to OLAs - Southampton City Co,Bi-Borough Director of Integrated Care,"72,546.83"
23/01/2023,1243775,Royal Borough of Kensington &,B*Payments to OLAs - Southampton City Co,Bi-Borough Director of Integrated Care,"14,755.66"
22/03/2023,1251196,Royal Borough of Kensington and,B*Payments to OLAs - Southampton City Co,Bi-Borough Director of Integrated Care,"14,755.66"
19/01/2023,1245563,Sharpe Pritchard,Legal Costs,Bi-Borough Director of Integrated Care,"4,731.50"
20/02/2023,1245563,Sharpe Pritchard,Legal Costs,Bi-Borough Director of Integrated Care,"2,835.00"
22/03/2023,1300514,"Anti-Graffiti Systems Ltd, t/a AGS",Other premises related costs,Bi-Borough Director of Integrated Care,500
10/01/2023,1301502,PERSONAL PAYMENTS,Hire of Accommodation and Facilities,Bi-Borough Director of Integrated Care,"1,152.50"
01/02/2023,1292095,365 Care Solutions Ltd,,Bi-Borough Director of Integrated Care,"15,081.43"
01/02/2023,1292095,365 Care Solutions Ltd,,Bi-Borough Director of Integrated Care,"12,810.00"
01/03/2023,1292095,365 Care Solutions Ltd,,Bi-Borough Director of Integrated Care,"14,558.57"
01/03/2023,1292095,365 Care Solutions Ltd,,Bi-Borough Director of Integrated Care,"10,990.00"
28/03/2023,1292095,365 Care Solutions Ltd,,Bi-Borough Director of Integrated Care,"11,172.86"
28/03/2023,1292095,365 Care Solutions Ltd,,Bi-Borough Director of Integrated Care,"12,952.50"
08/02/2023,1255843,A.I. Care Services Ltd,,Bi-Borough Director of Integrated Care,569.28
08/02/2023,1255843,A.I. Care Services Ltd,,Bi-Borough Director of Integrated Care,"6,903.36"
22/02/2023,1255843,A.I. Care Services Ltd,,Bi-Borough Director of Integrated Care,"7,979.70"
13/03/2023,1255843,A.I. Care Services Ltd,,Bi-Borough Director of Integrated Care,569.28
27/03/2023,1255843,A.I. Care Services Ltd,,Bi-Borough Director of Integrated Care,"7,437.10"
30/03/2023,1255843,A.I. Care Services Ltd,,Bi-Borough Director of Integrated Care,569.28
30/03/2023,1255843,A.I. Care Services Ltd,,Bi-Borough Director of Integrated Care,"6,903.36"
01/02/2023,1245929,The Regard Partnership Ltd,,Bi-Borough Director of Integrated Care,"9,762.80"
01/02/2023,1245929,The Regard Partnership Ltd,,Bi-Borough Director of Integrated Care,"15,257.92"
01/03/2023,1245929,The Regard Partnership Ltd,,Bi-Borough Director of Integrated Care,"9,762.80"
01/03/2023,1245929,The Regard Partnership Ltd,,Bi-Borough Director of Integrated Care,"15,257.92"
28/03/2023,1245929,The Regard Partnership Ltd,,Bi-Borough Director of Integrated Care,"11,506.16"
28/03/2023,1245929,The Regard Partnership Ltd,,Bi-Borough Director of Integrated Care,"17,982.55"
01/02/2023,1271174,ASPECTS 2 LIMITED,,Bi-Borough Director of Integrated Care,"4,243.40"
01/02/2023,1271174,ASPECTS 2 LIMITED,,Bi-Borough Director of Integrated Care,"4,243.40"
01/03/2023,1271174,ASPECTS 2 LIMITED,,Bi-Borough Director of Integrated Care,"4,243.40"
01/03/2023,1271174,ASPECTS 2 LIMITED,,Bi-Borough Director of Integrated Care,"4,243.40"
28/03/2023,1271174,ASPECTS 2 LIMITED,,Bi-Borough Director of Integrated Care,"5,001.15"
28/03/2023,1271174,ASPECTS 2 LIMITED,,Bi-Borough Director of Integrated Care,"5,001.15"
01/02/2023,1243851,Accomplish Group Ltd,,Bi-Borough Director of Integrated Care,"9,143.72"
01/02/2023,1243851,Accomplish Group Ltd,,Bi-Borough Director of Integrated Care,"9,143.72"
01/03/2023,1243851,Accomplish Group Ltd,,Bi-Borough Director of Integrated Care,"9,143.72"
01/03/2023,1243851,Accomplish Group Ltd,,Bi-Borough Director of Integrated Care,"9,143.72"
28/03/2023,1243851,Accomplish Group Ltd,,Bi-Borough Director of Integrated Care,"10,776.53"
28/03/2023,1243851,Accomplish Group Ltd,,Bi-Borough Director of Integrated Care,"10,776.53"
01/02/2023,1243435,Acorn Village,,Bi-Borough Director of Integrated Care,"5,221.08"
01/03/2023,1243435,Acorn Village,,Bi-Borough Director of Integrated Care,"9,734.09"
28/03/2023,1243435,Acorn Village,,Bi-Borough Director of Integrated Care,"8,766.21"
11/01/2023,1243931,Ashbourne Healthcare Services,,Bi-Borough Director of Integrated Care,"4,244.50"
23/01/2023,1243931,Ashbourne Healthcare Services,,Bi-Borough Director of Integrated Care,"4,205.50"
08/02/2023,1243931,Ashbourne Healthcare Services,,Bi-Borough Director of Integrated Care,"3,874.00"
14/02/2023,1243931,Ashbourne Healthcare Services,,Bi-Borough Director of Integrated Care,"3,633.32"
21/02/2023,1243931,Ashbourne Healthcare Services,,Bi-Borough Director of Integrated Care,"3,913.00"
13/03/2023,1243931,Ashbourne Healthcare Services,,Bi-Borough Director of Integrated Care,"4,332.08"
01/02/2023,1243942,Aspens Charities,,Bi-Borough Director of Integrated Care,"7,000.00"
01/03/2023,1243942,Aspens Charities,,Bi-Borough Director of Integrated Care,"7,000.00"
28/03/2023,1243942,Aspens Charities,,Bi-Borough Director of Integrated Care,"8,250.00"
01/02/2023,1243961,Autism Anglia,,Bi-Borough Director of Integrated Care,"10,644.00"
01/03/2023,1243961,Autism Anglia,,Bi-Borough Director of Integrated Care,"10,644.00"
28/03/2023,1243961,Autism Anglia,,Bi-Borough Director of Integrated Care,"12,544.71"
09/03/2023,1246066,Barrie Bookkeeping & Payroll,B*Junior group rec activities,Bi-Borough Director of Integrated Care,761.48
01/02/2023,1243445,Broadstreet House Limited,,Bi-Borough Director of Integrated Care,"4,303.24"
01/03/2023,1243445,Broadstreet House Limited,,Bi-Borough Director of Integrated Care,"4,303.24"
28/03/2023,1243445,Broadstreet House Limited,,Bi-Borough Director of Integrated Care,"5,071.68"
01/02/2023,1246286,Brunswick Supported Living,,Bi-Borough Director of Integrated Care,"1,314.64"
01/02/2023,1246286,Brunswick Supported Living,,Bi-Borough Director of Integrated Care,"1,314.64"
01/03/2023,1246286,Brunswick Supported Living,,Bi-Borough Director of Integrated Care,"1,314.64"
01/03/2023,1246286,Brunswick Supported Living,,Bi-Borough Director of Integrated Care,"1,314.64"
28/03/2023,1246286,Brunswick Supported Living,,Bi-Borough Director of Integrated Care,"1,549.40"
28/03/2023,1246286,Brunswick Supported Living,,Bi-Borough Director of Integrated Care,"1,549.40"
01/02/2023,1273390,CHILTERN SUPPORT & HOUSING LTD,,Bi-Borough Director of Integrated Care,"16,536.72"
01/03/2023,1273390,CHILTERN SUPPORT & HOUSING LTD,,Bi-Borough Director of Integrated Care,"16,536.72"
28/03/2023,1273390,CHILTERN SUPPORT & HOUSING LTD,,Bi-Borough Director of Integrated Care,"19,489.71"
01/02/2023,1244092,Cambrian Learning Disabilities Ltd,,Bi-Borough Director of Integrated Care,"6,094.00"
01/03/2023,1244092,Cambrian Learning Disabilities Ltd,,Bi-Borough Director of Integrated Care,"6,094.00"
28/03/2023,1244092,Cambrian Learning Disabilities Ltd,,Bi-Borough Director of Integrated Care,"7,182.21"
01/02/2023,1246321,Camphill Village Trust,,Bi-Borough Director of Integrated Care,"3,981.08"
01/03/2023,1246321,Camphill Village Trust,,Bi-Borough Director of Integrated Care,"3,981.08"
28/03/2023,1246321,Camphill Village Trust,,Bi-Borough Director of Integrated Care,"4,691.99"
01/02/2023,1246324,Candour Care Services (Broadview),,Bi-Borough Director of Integrated Care,"7,434.92"
01/03/2023,1246324,Candour Care Services (Broadview),,Bi-Borough Director of Integrated Care,"7,434.92"
28/03/2023,1246324,Candour Care Services (Broadview),,Bi-Borough Director of Integrated Care,"8,762.58"
01/02/2023,1246327,Canterbury Oast Trust Ltd,,Bi-Borough Director of Integrated Care,"1,346.80"
01/03/2023,1246327,Canterbury Oast Trust Ltd,,Bi-Borough Director of Integrated Care,"1,346.80"
28/03/2023,1246327,Canterbury Oast Trust Ltd,,Bi-Borough Director of Integrated Care,"1,587.30"
01/02/2023,1246339,Caretech Community Services Ltd,,Bi-Borough Director of Integrated Care,"6,823.36"
01/02/2023,1246339,Caretech Community Services Ltd,,Bi-Borough Director of Integrated Care,"4,711.16"
01/02/2023,1246339,Caretech Community Services Ltd,,Bi-Borough Director of Integrated Care,"4,711.16"
01/03/2023,1246339,Caretech Community Services Ltd,,Bi-Borough Director of Integrated Care,"6,823.36"
01/03/2023,1246339,Caretech Community Services Ltd,,Bi-Borough Director of Integrated Care,"4,711.16"
01/03/2023,1246339,Caretech Community Services Ltd,,Bi-Borough Director of Integrated Care,"4,711.16"
28/03/2023,1246339,Caretech Community Services Ltd,,Bi-Borough Director of Integrated Care,"8,041.82"
28/03/2023,1246339,Caretech Community Services Ltd,,Bi-Borough Director of Integrated Care,"5,552.44"
28/03/2023,1246339,Caretech Community Services Ltd,,Bi-Borough Director of Integrated Care,"5,552.44"
07/03/2023,1246349,Caxton Youth Organisation,B*Voluntary-Spot-V Dep-Enhanced - do not u,Bi-Borough Director of Integrated Care,840
01/02/2023,1276470,Certitude (Support for Living),,Bi-Borough Director of Integrated Care,"12,988.04"
01/02/2023,1276470,Certitude (Support for Living),,Bi-Borough Director of Integrated Care,"5,372.08"
01/02/2023,1276470,Certitude (Support for Living),,Bi-Borough Director of Integrated Care,"2,302.32"
01/02/2023,1276470,Certitude (Support for Living),,Bi-Borough Director of Integrated Care,"12,278.76"
01/02/2023,1276470,Certitude (Support for Living),,Bi-Borough Director of Integrated Care,"8,587.28"
01/02/2023,1276470,Certitude (Support for Living),,Bi-Borough Director of Integrated Care,"4,489.32"
01/02/2023,1276470,Certitude (Support for Living),,Bi-Borough Director of Integrated Care,"5,819.48"
01/02/2023,1276470,Certitude (Support for Living),,Bi-Borough Director of Integrated Care,"4,256.92"
01/02/2023,1276470,Certitude (Support for Living),,Bi-Borough Director of Integrated Care,"5,819.48"
01/02/2023,1276470,Certitude (Support for Living),,Bi-Borough Director of Integrated Care,"17,243.52"
01/03/2023,1276470,Certitude (Support for Living),,Bi-Borough Director of Integrated Care,"12,278.76"
01/03/2023,1276470,Certitude (Support for Living),,Bi-Borough Director of Integrated Care,"8,587.28"
01/03/2023,1276470,Certitude (Support for Living),,Bi-Borough Director of Integrated Care,"2,302.32"
01/03/2023,1276470,Certitude (Support for Living),,Bi-Borough Director of Integrated Care,"5,372.08"
01/03/2023,1276470,Certitude (Support for Living),,Bi-Borough Director of Integrated Care,"4,489.32"
01/03/2023,1276470,Certitude (Support for Living),,Bi-Borough Director of Integrated Care,"5,819.48"
01/03/2023,1276470,Certitude (Support for Living),,Bi-Borough Director of Integrated Care,"4,256.92"
01/03/2023,1276470,Certitude (Support for Living),,Bi-Borough Director of Integrated Care,"5,819.48"
01/03/2023,1276470,Certitude (Support for Living),,Bi-Borough Director of Integrated Care,"17,243.52"
01/03/2023,1276470,Certitude (Support for Living),,Bi-Borough Director of Integrated Care,"12,988.04"
28/03/2023,1276470,Certitude (Support for Living),,Bi-Borough Director of Integrated Care,"20,322.72"
28/03/2023,1276470,Certitude (Support for Living),,Bi-Borough Director of Integrated Care,"15,307.33"
28/03/2023,1276470,Certitude (Support for Living),,Bi-Borough Director of Integrated Care,"14,471.40"
28/03/2023,1276470,Certitude (Support for Living),,Bi-Borough Director of Integrated Care,"10,120.72"
28/03/2023,1276470,Certitude (Support for Living),,Bi-Borough Director of Integrated Care,"6,331.38"
28/03/2023,1276470,Certitude (Support for Living),,Bi-Borough Director of Integrated Care,"2,713.45"
28/03/2023,1276470,Certitude (Support for Living),,Bi-Borough Director of Integrated Care,"5,290.98"
28/03/2023,1276470,Certitude (Support for Living),,Bi-Borough Director of Integrated Care,"6,858.67"
28/03/2023,1276470,Certitude (Support for Living),,Bi-Borough Director of Integrated Care,"5,017.08"
28/03/2023,1276470,Certitude (Support for Living),,Bi-Borough Director of Integrated Care,"6,858.67"
01/02/2023,1293636,Choice Support,,Bi-Borough Director of Integrated Care,685.52
01/02/2023,1293636,Choice Support,,Bi-Borough Director of Integrated Care,"4,812.00"
01/02/2023,1293636,Choice Support,,Bi-Borough Director of Integrated Care,"8,936.00"
01/03/2023,1293636,Choice Support,,Bi-Borough Director of Integrated Care,"8,936.00"
01/03/2023,1293636,Choice Support,,Bi-Borough Director of Integrated Care,685.52
01/03/2023,1293636,Choice Support,,Bi-Borough Director of Integrated Care,"4,812.00"
28/03/2023,1293636,Choice Support,,Bi-Borough Director of Integrated Care,"10,531.71"
28/03/2023,1293636,Choice Support,,Bi-Borough Director of Integrated Care,"5,671.29"
28/03/2023,1293636,Choice Support,,Bi-Borough Director of Integrated Care,807.93
01/02/2023,1243458,Cocklebury Farmhouse Homes Ltd,,Bi-Borough Director of Integrated Care,"5,536.00"
01/02/2023,1243458,Cocklebury Farmhouse Homes Ltd,,Bi-Borough Director of Integrated Care,"6,408.00"
01/02/2023,1243458,Cocklebury Farmhouse Homes Ltd,,Bi-Borough Director of Integrated Care,"4,952.00"
01/02/2023,1243458,Cocklebury Farmhouse Homes Ltd,,Bi-Borough Director of Integrated Care,"5,568.00"
01/02/2023,1243458,Cocklebury Farmhouse Homes Ltd,,Bi-Borough Director of Integrated Care,"7,028.00"
01/03/2023,1243458,Cocklebury Farmhouse Homes Ltd,,Bi-Borough Director of Integrated Care,"5,536.00"
01/03/2023,1243458,Cocklebury Farmhouse Homes Ltd,,Bi-Borough Director of Integrated Care,"6,408.00"
01/03/2023,1243458,Cocklebury Farmhouse Homes Ltd,,Bi-Borough Director of Integrated Care,"4,952.00"
01/03/2023,1243458,Cocklebury Farmhouse Homes Ltd,,Bi-Borough Director of Integrated Care,"5,568.00"
01/03/2023,1243458,Cocklebury Farmhouse Homes Ltd,,Bi-Borough Director of Integrated Care,"7,028.00"
28/03/2023,1243458,Cocklebury Farmhouse Homes Ltd,,Bi-Borough Director of Integrated Care,"6,524.57"
28/03/2023,1243458,Cocklebury Farmhouse Homes Ltd,,Bi-Borough Director of Integrated Care,"7,552.29"
28/03/2023,1243458,Cocklebury Farmhouse Homes Ltd,,Bi-Borough Director of Integrated Care,"5,836.29"
28/03/2023,1243458,Cocklebury Farmhouse Homes Ltd,,Bi-Borough Director of Integrated Care,"6,562.29"
28/03/2023,1243458,Cocklebury Farmhouse Homes Ltd,,Bi-Borough Director of Integrated Care,"8,283.00"
07/03/2023,1246600,Community Focus Inclusive Arts,B*Voluntary-Spot-V Dep-Enhanced - do not u,Bi-Borough Director of Integrated Care,"1,060.00"
07/03/2023,1246600,Community Focus Inclusive Arts,B*Voluntary-Spot-V Dep-Enhanced - do not u,Bi-Borough Director of Integrated Care,"1,325.00"
07/03/2023,1246600,Community Focus Inclusive Arts,B*Voluntary-Spot-V Dep-Enhanced - do not u,Bi-Borough Director of Integrated Care,"1,325.00"
01/02/2023,1280687,Community Integrated Care,,Bi-Borough Director of Integrated Care,"9,019.99"
01/02/2023,1280687,Community Integrated Care,,Bi-Borough Director of Integrated Care,"10,822.08"
01/02/2023,1280687,Community Integrated Care,,Bi-Borough Director of Integrated Care,"10,493.84"
01/02/2023,1280687,Community Integrated Care,,Bi-Borough Director of Integrated Care,"7,064.40"
01/02/2023,1280687,Community Integrated Care,,Bi-Borough Director of Integrated Care,"10,808.64"
01/02/2023,1280687,Community Integrated Care,,Bi-Borough Director of Integrated Care,"10,822.08"
01/02/2023,1280687,Community Integrated Care,,Bi-Borough Director of Integrated Care,"6,397.36"
01/03/2023,1280687,Community Integrated Care,,Bi-Borough Director of Integrated Care,"7,064.40"
01/03/2023,1280687,Community Integrated Care,,Bi-Borough Director of Integrated Care,"10,808.64"
01/03/2023,1280687,Community Integrated Care,,Bi-Borough Director of Integrated Care,"10,822.08"
01/03/2023,1280687,Community Integrated Care,,Bi-Borough Director of Integrated Care,"10,493.84"
01/03/2023,1280687,Community Integrated Care,,Bi-Borough Director of Integrated Care,"6,397.36"
01/03/2023,1280687,Community Integrated Care,,Bi-Borough Director of Integrated Care,"7,903.24"
01/03/2023,1280687,Community Integrated Care,,Bi-Borough Director of Integrated Care,"10,822.08"
28/03/2023,1280687,Community Integrated Care,,Bi-Borough Director of Integrated Care,"7,539.75"
28/03/2023,1280687,Community Integrated Care,,Bi-Borough Director of Integrated Care,"9,314.53"
28/03/2023,1280687,Community Integrated Care,,Bi-Borough Director of Integrated Care,"12,754.59"
28/03/2023,1280687,Community Integrated Care,,Bi-Borough Director of Integrated Care,"12,754.59"
28/03/2023,1280687,Community Integrated Care,,Bi-Borough Director of Integrated Care,"12,738.75"
28/03/2023,1280687,Community Integrated Care,,Bi-Borough Director of Integrated Care,"8,325.90"
28/03/2023,1280687,Community Integrated Care,,Bi-Borough Director of Integrated Care,"12,367.74"
01/02/2023,1244212,Complete Care London,,Bi-Borough Director of Integrated Care,"2,526.00"
01/02/2023,1244212,Complete Care London,,Bi-Borough Director of Integrated Care,"2,526.00"
01/02/2023,1244212,Complete Care London,,Bi-Borough Director of Integrated Care,"3,320.00"
01/02/2023,1244212,Complete Care London,,Bi-Borough Director of Integrated Care,"4,316.00"
01/03/2023,1244212,Complete Care London,,Bi-Borough Director of Integrated Care,"2,526.00"
01/03/2023,1244212,Complete Care London,,Bi-Borough Director of Integrated Care,"2,526.00"
01/03/2023,1244212,Complete Care London,,Bi-Borough Director of Integrated Care,"3,320.00"
01/03/2023,1244212,Complete Care London,,Bi-Borough Director of Integrated Care,"3,116.00"
28/03/2023,1244212,Complete Care London,,Bi-Borough Director of Integrated Care,"2,977.07"
28/03/2023,1244212,Complete Care London,,Bi-Borough Director of Integrated Care,"2,977.07"
28/03/2023,1244212,Complete Care London,,Bi-Borough Director of Integrated Care,"3,912.86"
28/03/2023,1244212,Complete Care London,,Bi-Borough Director of Integrated Care,"4,898.14"
07/02/2023,1268176,Conquest Care and Support,,Bi-Borough Director of Integrated Care,853.92
01/02/2023,1243470,Downing (Chertsey Road) Ltd,,Bi-Borough Director of Integrated Care,"5,971.20"
01/03/2023,1243470,Downing (Chertsey Road) Ltd,,Bi-Borough Director of Integrated Care,"5,971.20"
28/03/2023,1243470,Downing (Chertsey Road) Ltd,,Bi-Borough Director of Integrated Care,"7,037.49"
01/02/2023,1245108,Elysium Healthcare No 2 Ltd,,Bi-Borough Director of Integrated Care,"11,076.59"
01/03/2023,1245108,Elysium Healthcare No 2 Ltd,,Bi-Borough Director of Integrated Care,"9,341.48"
28/03/2023,1245108,Elysium Healthcare No 2 Ltd,,Bi-Borough Director of Integrated Care,"11,009.60"
16/01/2023,1246934,Equal People Mencap (Kensington &,B*Voluntary-Spot-V Dep-Enhanced - do not u,Bi-Borough Director of Integrated Care,828
15/02/2023,1246934,Equal People Mencap (Kensington &,B*Voluntary-Spot-V Dep-Enhanced - do not u,Bi-Borough Director of Integrated Care,"1,845.00"
07/03/2023,1246934,Equal People Mencap (Kensington &,B*Voluntary-Spot-V Dep-Enhanced - do not u,Bi-Borough Director of Integrated Care,"1,080.00"
01/02/2023,1245110,Eric Patrick Care Ltd,,Bi-Borough Director of Integrated Care,"7,868.00"
01/03/2023,1245110,Eric Patrick Care Ltd,,Bi-Borough Director of Integrated Care,"7,868.00"
28/03/2023,1245110,Eric Patrick Care Ltd,,Bi-Borough Director of Integrated Care,"2,107.50"
09/02/2023,1259597,Ethica Services LTD,,Bi-Borough Director of Integrated Care,"1,242.00"
14/02/2023,1259597,Ethica Services LTD,,Bi-Borough Director of Integrated Care,"1,656.00"
21/03/2023,1259597,Ethica Services LTD,,Bi-Borough Director of Integrated Care,"1,656.00"
28/03/2023,1252498,Field Court Chambers,Legal Costs,Bi-Borough Director of Integrated Care,"1,088.75"
01/02/2023,1285826,Fircroft Services Limited,,Bi-Borough Director of Integrated Care,"5,722.68"
01/03/2023,1285826,Fircroft Services Limited,,Bi-Borough Director of Integrated Care,"5,722.68"
28/03/2023,1285826,Fircroft Services Limited,,Bi-Borough Director of Integrated Care,"6,744.59"
01/02/2023,1243483,Greenview Healthcare Ltd,,Bi-Borough Director of Integrated Care,"4,471.00"
01/03/2023,1243483,Greenview Healthcare Ltd,,Bi-Borough Director of Integrated Care,"4,471.00"
28/03/2023,1243483,Greenview Healthcare Ltd,,Bi-Borough Director of Integrated Care,"5,269.39"
01/02/2023,1243485,Grove Care Partnership Ltd,,Bi-Borough Director of Integrated Care,"9,658.36"
01/03/2023,1243485,Grove Care Partnership Ltd,,Bi-Borough Director of Integrated Care,"9,658.36"
28/03/2023,1243485,Grove Care Partnership Ltd,,Bi-Borough Director of Integrated Care,"11,383.07"
01/02/2023,1258503,Guyatt House Care Limited,,Bi-Borough Director of Integrated Care,"9,988.16"
01/03/2023,1258503,Guyatt House Care Limited,,Bi-Borough Director of Integrated Care,"7,557.16"
28/03/2023,1258503,Guyatt House Care Limited,,Bi-Borough Director of Integrated Care,"8,906.65"
04/01/2023,1244531,HCP Staffing Services Ltd,,Bi-Borough Director of Integrated Care,717.88
04/01/2023,1244531,HCP Staffing Services Ltd,,Bi-Borough Director of Integrated Care,717.88
04/01/2023,1244531,HCP Staffing Services Ltd,,Bi-Borough Director of Integrated Care,717.88
04/01/2023,1244531,HCP Staffing Services Ltd,,Bi-Borough Director of Integrated Care,717.88
09/01/2023,1244531,HCP Staffing Services Ltd,,Bi-Borough Director of Integrated Care,717.88
16/01/2023,1244531,HCP Staffing Services Ltd,,Bi-Borough Director of Integrated Care,717.88
03/02/2023,1244531,HCP Staffing Services Ltd,,Bi-Borough Director of Integrated Care,717.88
03/02/2023,1244531,HCP Staffing Services Ltd,,Bi-Borough Director of Integrated Care,717.88
03/02/2023,1244531,HCP Staffing Services Ltd,,Bi-Borough Director of Integrated Care,717.88
03/02/2023,1244531,HCP Staffing Services Ltd,,Bi-Borough Director of Integrated Care,989.32
13/02/2023,1244531,HCP Staffing Services Ltd,,Bi-Borough Director of Integrated Care,717.88
20/02/2023,1244531,HCP Staffing Services Ltd,,Bi-Borough Director of Integrated Care,717.88
23/02/2023,1244531,HCP Staffing Services Ltd,,Bi-Borough Director of Integrated Care,717.88
07/03/2023,1244531,HCP Staffing Services Ltd,,Bi-Borough Director of Integrated Care,717.88
14/03/2023,1244531,HCP Staffing Services Ltd,,Bi-Borough Director of Integrated Care,717.88
20/03/2023,1244531,HCP Staffing Services Ltd,,Bi-Borough Director of Integrated Care,717.88
28/03/2023,1244531,HCP Staffing Services Ltd,,Bi-Borough Director of Integrated Care,717.88
31/03/2023,1244531,HCP Staffing Services Ltd,,Bi-Borough Director of Integrated Care,717.88
01/02/2023,1244549,HF Trust Ltd,,Bi-Borough Director of Integrated Care,"15,117.84"
01/02/2023,1244549,HF Trust Ltd,,Bi-Borough Director of Integrated Care,"3,645.44"
13/02/2023,1244549,HF Trust Ltd,B*Voluntary-Spot-V Dep-Enhanced - do not u,Bi-Borough Director of Integrated Care,552.6
01/03/2023,1244549,HF Trust Ltd,,Bi-Borough Director of Integrated Care,"15,117.84"
01/03/2023,1244549,HF Trust Ltd,,Bi-Borough Director of Integrated Care,"3,645.44"
28/03/2023,1244549,HF Trust Ltd,,Bi-Borough Director of Integrated Care,"4,296.41"
28/03/2023,1244549,HF Trust Ltd,,Bi-Borough Director of Integrated Care,"17,817.45"
01/02/2023,1244515,Hampshire Autistic Society,,Bi-Borough Director of Integrated Care,"9,411.32"
01/03/2023,1244515,Hampshire Autistic Society,,Bi-Borough Director of Integrated Care,"9,411.32"
28/03/2023,1244515,Hampshire Autistic Society,,Bi-Borough Director of Integrated Care,"11,091.91"
01/02/2023,1243490,Haydon Park Lodge Ltd,,Bi-Borough Director of Integrated Care,"4,000.00"
01/03/2023,1243490,Haydon Park Lodge Ltd,,Bi-Borough Director of Integrated Care,"4,000.00"
28/03/2023,1243490,Haydon Park Lodge Ltd,,Bi-Borough Director of Integrated Care,"4,714.29"
01/02/2023,1260257,Hazel Homes for Autism Ltd,,Bi-Borough Director of Integrated Care,"14,885.24"
01/02/2023,1260257,Hazel Homes for Autism Ltd,,Bi-Borough Director of Integrated Care,861
01/03/2023,1260257,Hazel Homes for Autism Ltd,,Bi-Borough Director of Integrated Care,861
01/03/2023,1260257,Hazel Homes for Autism Ltd,,Bi-Borough Director of Integrated Care,"14,885.24"
28/03/2023,1260257,Hazel Homes for Autism Ltd,,Bi-Borough Director of Integrated Care,"17,543.32"
28/03/2023,1260257,Hazel Homes for Autism Ltd,,Bi-Borough Director of Integrated Care,"1,014.75"
01/02/2023,1245125,Heathcotes (Southern) Ltd,,Bi-Borough Director of Integrated Care,"12,189.16"
01/03/2023,1245125,Heathcotes (Southern) Ltd,,Bi-Borough Director of Integrated Care,"12,189.16"
28/03/2023,1245125,Heathcotes (Southern) Ltd,,Bi-Borough Director of Integrated Care,"14,365.80"
18/01/2023,1254857,Hope Care Agency,,Bi-Borough Director of Integrated Care,"7,222.74"
01/02/2023,1267460,Hunters Lodge Care Home,,Bi-Borough Director of Integrated Care,"3,930.64"
01/03/2023,1267460,Hunters Lodge Care Home,,Bi-Borough Director of Integrated Care,"3,930.64"
28/03/2023,1267460,Hunters Lodge Care Home,,Bi-Borough Director of Integrated Care,"4,632.54"
25/01/2023,1247526,Integrity Care and Support Ltd,B*Voluntary-Spot-V Dep-Enhanced - do not u,Bi-Borough Director of Integrated Care,820.43
25/01/2023,1247526,Integrity Care and Support Ltd,B*Voluntary-Spot-V Dep-Enhanced - do not u,Bi-Borough Director of Integrated Care,958.95
25/01/2023,1247526,Integrity Care and Support Ltd,B*Voluntary-Spot-V Dep-Enhanced - do not u,Bi-Borough Director of Integrated Care,"1,086.81"
25/01/2023,1247526,Integrity Care and Support Ltd,B*Voluntary-Spot-V Dep-Enhanced - do not u,Bi-Borough Director of Integrated Care,"1,076.16"
25/01/2023,1247526,Integrity Care and Support Ltd,B*Voluntary-Spot-V Dep-Enhanced - do not u,Bi-Borough Director of Integrated Care,"1,172.05"
25/01/2023,1247526,Integrity Care and Support Ltd,B*Voluntary-Spot-V Dep-Enhanced - do not u,Bi-Borough Director of Integrated Care,895.02
25/01/2023,1247526,Integrity Care and Support Ltd,B*Voluntary-Spot-V Dep-Enhanced - do not u,Bi-Borough Director of Integrated Care,"1,470.39"
25/01/2023,1247526,Integrity Care and Support Ltd,B*Voluntary-Spot-V Dep-Enhanced - do not u,Bi-Borough Director of Integrated Care,"1,193.36"
25/01/2023,1247526,Integrity Care and Support Ltd,B*Voluntary-Spot-V Dep-Enhanced - do not u,Bi-Borough Director of Integrated Care,"1,193.36"
25/01/2023,1247526,Integrity Care and Support Ltd,B*Voluntary-Spot-V Dep-Enhanced - do not u,Bi-Borough Director of Integrated Care,788.47
25/01/2023,1247526,Integrity Care and Support Ltd,B*Voluntary-Spot-V Dep-Enhanced - do not u,Bi-Borough Director of Integrated Care,"1,022.88"
25/01/2023,1247526,Integrity Care and Support Ltd,B*Voluntary-Spot-V Dep-Enhanced - do not u,Bi-Borough Director of Integrated Care,873.71
25/01/2023,1247526,Integrity Care and Support Ltd,B*Voluntary-Spot-V Dep-Enhanced - do not u,Bi-Borough Director of Integrated Care,"1,576.94"
01/03/2023,1247526,Integrity Care and Support Ltd,B*Voluntary-Spot-V Dep-Enhanced - do not u,Bi-Borough Director of Integrated Care,958.95
01/03/2023,1247526,Integrity Care and Support Ltd,B*Voluntary-Spot-V Dep-Enhanced - do not u,Bi-Borough Director of Integrated Care,"1,193.36"
01/03/2023,1247526,Integrity Care and Support Ltd,B*Voluntary-Spot-V Dep-Enhanced - do not u,Bi-Borough Director of Integrated Care,554.06
01/03/2023,1247526,Integrity Care and Support Ltd,B*Voluntary-Spot-V Dep-Enhanced - do not u,Bi-Borough Director of Integrated Care,"1,704.80"
01/03/2023,1247526,Integrity Care and Support Ltd,B*Voluntary-Spot-V Dep-Enhanced - do not u,Bi-Borough Director of Integrated Care,"1,704.80"
01/03/2023,1247526,Integrity Care and Support Ltd,B*Voluntary-Spot-V Dep-Enhanced - do not u,Bi-Borough Director of Integrated Care,"1,150.74"
01/03/2023,1247526,Integrity Care and Support Ltd,B*Voluntary-Spot-V Dep-Enhanced - do not u,Bi-Borough Director of Integrated Care,511.44
01/03/2023,1247526,Integrity Care and Support Ltd,B*Voluntary-Spot-V Dep-Enhanced - do not u,Bi-Borough Director of Integrated Care,788.47
01/03/2023,1247526,Integrity Care and Support Ltd,B*Voluntary-Spot-V Dep-Enhanced - do not u,Bi-Borough Director of Integrated Care,980.26
01/03/2023,1247526,Integrity Care and Support Ltd,B*Voluntary-Spot-V Dep-Enhanced - do not u,Bi-Borough Director of Integrated Care,"2,173.62"
01/03/2023,1247526,Integrity Care and Support Ltd,B*Voluntary-Spot-V Dep-Enhanced - do not u,Bi-Borough Director of Integrated Care,"1,022.88"
01/03/2023,1247526,Integrity Care and Support Ltd,B*Voluntary-Spot-V Dep-Enhanced - do not u,Bi-Borough Director of Integrated Care,"1,459.74"
01/03/2023,1247526,Integrity Care and Support Ltd,B*Voluntary-Spot-V Dep-Enhanced - do not u,Bi-Borough Director of Integrated Care,"1,150.74"
01/03/2023,1247526,Integrity Care and Support Ltd,B*Voluntary-Spot-V Dep-Enhanced - do not u,Bi-Borough Director of Integrated Care,"1,619.56"
01/03/2023,1247526,Integrity Care and Support Ltd,B*Voluntary-Spot-V Dep-Enhanced - do not u,Bi-Borough Director of Integrated Care,"1,022.88"
01/03/2023,1247526,Integrity Care and Support Ltd,B*Voluntary-Spot-V Dep-Enhanced - do not u,Bi-Borough Director of Integrated Care,703.23
29/03/2023,1247526,Integrity Care and Support Ltd,B*Voluntary-Spot-V Dep-Enhanced - do not u,Bi-Borough Director of Integrated Care,"1,353.19"
29/03/2023,1247526,Integrity Care and Support Ltd,B*Voluntary-Spot-V Dep-Enhanced - do not u,Bi-Borough Director of Integrated Care,"1,193.36"
29/03/2023,1247526,Integrity Care and Support Ltd,B*Voluntary-Spot-V Dep-Enhanced - do not u,Bi-Borough Director of Integrated Care,980.26
29/03/2023,1247526,Integrity Care and Support Ltd,B*Voluntary-Spot-V Dep-Enhanced - do not u,Bi-Borough Director of Integrated Care,895.02
29/03/2023,1247526,Integrity Care and Support Ltd,B*Voluntary-Spot-V Dep-Enhanced - do not u,Bi-Borough Director of Integrated Care,660.61
29/03/2023,1247526,Integrity Care and Support Ltd,B*Voluntary-Spot-V Dep-Enhanced - do not u,Bi-Borough Director of Integrated Care,511.44
29/03/2023,1247526,Integrity Care and Support Ltd,B*Voluntary-Spot-V Dep-Enhanced - do not u,Bi-Borough Director of Integrated Care,"1,576.94"
29/03/2023,1247526,Integrity Care and Support Ltd,B*Voluntary-Spot-V Dep-Enhanced - do not u,Bi-Borough Director of Integrated Care,"1,790.04"
29/03/2023,1247526,Integrity Care and Support Ltd,B*Voluntary-Spot-V Dep-Enhanced - do not u,Bi-Borough Director of Integrated Care,"1,502.36"
29/03/2023,1247526,Integrity Care and Support Ltd,B*Voluntary-Spot-V Dep-Enhanced - do not u,Bi-Borough Director of Integrated Care,"1,001.57"
29/03/2023,1247526,Integrity Care and Support Ltd,B*Voluntary-Spot-V Dep-Enhanced - do not u,Bi-Borough Director of Integrated Care,598.68
29/03/2023,1247526,Integrity Care and Support Ltd,B*Voluntary-Spot-V Dep-Enhanced - do not u,Bi-Borough Director of Integrated Care,522.1
29/03/2023,1247526,Integrity Care and Support Ltd,B*Voluntary-Spot-V Dep-Enhanced - do not u,Bi-Borough Director of Integrated Care,"1,598.25"
29/03/2023,1247526,Integrity Care and Support Ltd,B*Voluntary-Spot-V Dep-Enhanced - do not u,Bi-Borough Director of Integrated Care,"1,278.60"
29/03/2023,1247526,Integrity Care and Support Ltd,B*Voluntary-Spot-V Dep-Enhanced - do not u,Bi-Borough Director of Integrated Care,660.61
29/03/2023,1247526,Integrity Care and Support Ltd,B*Voluntary-Spot-V Dep-Enhanced - do not u,Bi-Borough Director of Integrated Care,511.44
29/03/2023,1247526,Integrity Care and Support Ltd,B*Voluntary-Spot-V Dep-Enhanced - do not u,Bi-Borough Director of Integrated Care,"1,278.60"
29/03/2023,1247526,Integrity Care and Support Ltd,B*Voluntary-Spot-V Dep-Enhanced - do not u,Bi-Borough Director of Integrated Care,916.33
29/03/2023,1247526,Integrity Care and Support Ltd,B*Voluntary-Spot-V Dep-Enhanced - do not u,Bi-Borough Director of Integrated Care,"1,726.11"
03/03/2023,1256893,Kapital Care WCC,,Bi-Borough Director of Integrated Care,"1,494.64"
06/03/2023,1256893,Kapital Care WCC,,Bi-Borough Director of Integrated Care,"1,485.74"
01/02/2023,1247598,Kisimul Group Ltd,,Bi-Borough Director of Integrated Care,"15,959.44"
01/03/2023,1247598,Kisimul Group Ltd,,Bi-Borough Director of Integrated Care,"15,959.44"
28/03/2023,1247598,Kisimul Group Ltd,,Bi-Borough Director of Integrated Care,"18,809.34"
01/02/2023,1243535,Sequence Care Ltd,,Bi-Borough Director of Integrated Care,"17,857.84"
01/02/2023,1243535,Sequence Care Ltd,,Bi-Borough Director of Integrated Care,"10,470.00"
01/02/2023,1243535,Sequence Care Ltd,,Bi-Borough Director of Integrated Care,"10,470.00"
01/03/2023,1243535,Sequence Care Ltd,,Bi-Borough Director of Integrated Care,"10,470.00"
01/03/2023,1243535,Sequence Care Ltd,,Bi-Borough Director of Integrated Care,"10,470.00"
01/03/2023,1243535,Sequence Care Ltd,,Bi-Borough Director of Integrated Care,"17,857.84"
28/03/2023,1243535,Sequence Care Ltd,,Bi-Borough Director of Integrated Care,"15,245.94"
28/03/2023,1243535,Sequence Care Ltd,,Bi-Borough Director of Integrated Care,"21,046.74"
28/03/2023,1243535,Sequence Care Ltd,,Bi-Borough Director of Integrated Care,"12,339.64"
28/03/2023,1243535,Sequence Care Ltd,,Bi-Borough Director of Integrated Care,"12,339.64"
01/02/2023,1243506,Lifeways Community Care Ltd,,Bi-Borough Director of Integrated Care,"12,708.16"
01/02/2023,1243506,Lifeways Community Care Ltd,,Bi-Borough Director of Integrated Care,"7,385.72"
01/03/2023,1243506,Lifeways Community Care Ltd,,Bi-Borough Director of Integrated Care,"12,708.16"
01/03/2023,1243506,Lifeways Community Care Ltd,,Bi-Borough Director of Integrated Care,"7,385.72"
28/03/2023,1243506,Lifeways Community Care Ltd,,Bi-Borough Director of Integrated Care,"8,704.60"
28/03/2023,1243506,Lifeways Community Care Ltd,,Bi-Borough Director of Integrated Care,"14,977.47"
01/02/2023,1249729,Linden Lodge School,,Bi-Borough Director of Integrated Care,"12,333.00"
01/03/2023,1249729,Linden Lodge School,,Bi-Borough Director of Integrated Care,"6,548.00"
28/03/2023,1249729,Linden Lodge School,,Bi-Borough Director of Integrated Care,"7,717.29"
01/02/2023,1244762,Livability,,Bi-Borough Director of Integrated Care,"6,180.00"
01/03/2023,1244762,Livability,,Bi-Borough Director of Integrated Care,"6,180.00"
28/03/2023,1244762,Livability,,Bi-Borough Director of Integrated Care,"7,283.57"
11/01/2023,1247650,London Care Ltd,,Bi-Borough Director of Integrated Care,777.42
11/01/2023,1247650,London Care Ltd,,Bi-Borough Director of Integrated Care,"1,617.02"
11/01/2023,1247650,London Care Ltd,,Bi-Borough Director of Integrated Care,"1,403.93"
11/01/2023,1247650,London Care Ltd,,Bi-Borough Director of Integrated Care,"1,461.72"
11/01/2023,1247650,London Care Ltd,,Bi-Borough Director of Integrated Care,971.04
18/01/2023,1247650,London Care Ltd,,Bi-Borough Director of Integrated Care,"1,084.84"
16/02/2023,1247650,London Care Ltd,,Bi-Borough Director of Integrated Care,"1,067.44"
28/02/2023,1247650,London Care Ltd,,Bi-Borough Director of Integrated Care,"1,005.22"
28/02/2023,1247650,London Care Ltd,,Bi-Borough Director of Integrated Care,765.96
28/02/2023,1247650,London Care Ltd,,Bi-Borough Director of Integrated Care,"1,649.43"
28/02/2023,1247650,London Care Ltd,,Bi-Borough Director of Integrated Care,"1,338.79"
21/03/2023,1247650,London Care Ltd,,Bi-Borough Director of Integrated Care,"1,067.44"
22/03/2023,1247650,London Care Ltd,,Bi-Borough Director of Integrated Care,785.6
22/03/2023,1247650,London Care Ltd,,Bi-Borough Director of Integrated Care,"1,647.80"
22/03/2023,1247650,London Care Ltd,,Bi-Borough Director of Integrated Care,"1,366.94"
22/03/2023,1247650,London Care Ltd,,Bi-Borough Director of Integrated Care,961.71
27/03/2023,1247650,London Care Ltd,,Bi-Borough Director of Integrated Care,785.6
27/03/2023,1247650,London Care Ltd,,Bi-Borough Director of Integrated Care,"1,647.14"
27/03/2023,1247650,London Care Ltd,,Bi-Borough Director of Integrated Care,"1,356.14"
27/03/2023,1247650,London Care Ltd,,Bi-Borough Director of Integrated Care,"1,023.89"
01/02/2023,1247651,London Care Partnership Ltd,,Bi-Borough Director of Integrated Care,"13,092.87"
01/03/2023,1247651,London Care Partnership Ltd,,Bi-Borough Director of Integrated Care,"8,941.32"
28/03/2023,1247651,London Care Partnership Ltd,,Bi-Borough Director of Integrated Care,"10,537.98"
01/02/2023,1247656,London Cyrenians Housing Ltd,,Bi-Borough Director of Integrated Care,"6,320.00"
01/02/2023,1247656,London Cyrenians Housing Ltd,,Bi-Borough Director of Integrated Care,"9,642.88"
01/03/2023,1247656,London Cyrenians Housing Ltd,,Bi-Borough Director of Integrated Care,"9,642.88"
01/03/2023,1247656,London Cyrenians Housing Ltd,,Bi-Borough Director of Integrated Care,"6,320.00"
28/03/2023,1247656,London Cyrenians Housing Ltd,,Bi-Borough Director of Integrated Care,"7,448.57"
28/03/2023,1247656,London Cyrenians Housing Ltd,,Bi-Borough Director of Integrated Care,"11,364.82"
31/01/2023,1247846,London Vip Cars,Payments to Transport Operators,Bi-Borough Director of Integrated Care,"3,594.00"
27/02/2023,1247846,London Vip Cars,Payments to Transport Operators,Bi-Borough Director of Integrated Care,"4,897.48"
27/03/2023,1247846,London Vip Cars,Payments to Transport Operators,Bi-Borough Director of Integrated Care,"1,696.00"
01/02/2023,1247854,Look Ahead Housing & Care Ltd,,Bi-Borough Director of Integrated Care,"1,513.40"
01/03/2023,1247854,Look Ahead Housing & Care Ltd,,Bi-Borough Director of Integrated Care,963.5
31/03/2023,1243508,Lukka Care Homes (2010) Ltd T/A,B*Distric Council non fee related servi,Bi-Borough Director of Integrated Care,"3,633.89"
08/02/2023,1259132,MMR Home Care LTD,,Bi-Borough Director of Integrated Care,"3,131.04"
08/02/2023,1259132,MMR Home Care LTD,,Bi-Borough Director of Integrated Care,"3,131.04"
08/02/2023,1259132,MMR Home Care LTD,,Bi-Borough Director of Integrated Care,"2,490.32"
08/02/2023,1259132,MMR Home Care LTD,,Bi-Borough Director of Integrated Care,"2,490.88"
07/03/2023,1259132,MMR Home Care LTD,,Bi-Borough Director of Integrated Care,"2,490.32"
07/03/2023,1259132,MMR Home Care LTD,,Bi-Borough Director of Integrated Care,"2,490.88"
31/03/2023,1259132,MMR Home Care LTD,,Bi-Borough Director of Integrated Care,"2,490.32"
31/03/2023,1259132,MMR Home Care LTD,,Bi-Borough Director of Integrated Care,"2,490.88"
01/02/2023,1282320,Marcus and Marcus,,Bi-Borough Director of Integrated Care,"6,850.00"
01/02/2023,1282320,Marcus and Marcus,,Bi-Borough Director of Integrated Care,"6,850.00"
01/03/2023,1282320,Marcus and Marcus,,Bi-Borough Director of Integrated Care,"9,670.67"
01/03/2023,1282320,Marcus and Marcus,,Bi-Borough Director of Integrated Care,"3,802.21"
01/03/2023,1282320,Marcus and Marcus,,Bi-Borough Director of Integrated Care,"5,868.46"
28/03/2023,1282320,Marcus and Marcus,,Bi-Borough Director of Integrated Care,"1,557.60"
28/03/2023,1282320,Marcus and Marcus,,Bi-Borough Director of Integrated Care,"9,451.86"
28/03/2023,1282320,Marcus and Marcus,,Bi-Borough Director of Integrated Care,"7,894.26"
01/02/2023,1245144,Methodist Homes For The Aged,,Bi-Borough Director of Integrated Care,"3,191.52"
01/03/2023,1245144,Methodist Homes For The Aged,,Bi-Borough Director of Integrated Care,"3,191.52"
28/03/2023,1245144,Methodist Homes For The Aged,,Bi-Borough Director of Integrated Care,"3,761.43"
01/02/2023,1247933,Minster Pathways Ltd,,Bi-Borough Director of Integrated Care,"18,790.54"
01/03/2023,1247933,Minster Pathways Ltd,,Bi-Borough Director of Integrated Care,"5,041.40"
28/03/2023,1247933,Minster Pathways Ltd,,Bi-Borough Director of Integrated Care,"5,941.65"
01/03/2023,1256044,Modus Care LTD,,Bi-Borough Director of Integrated Care,"18,885.55"
01/02/2023,1244905,Nas Services Ltd (Residential),,Bi-Borough Director of Integrated Care,"7,970.16"
01/02/2023,1244905,Nas Services Ltd (Residential),,Bi-Borough Director of Integrated Care,"4,058.88"
01/02/2023,1244905,Nas Services Ltd (Residential),,Bi-Borough Director of Integrated Care,"7,400.08"
01/02/2023,1244905,Nas Services Ltd (Residential),,Bi-Borough Director of Integrated Care,"3,379.32"
13/02/2023,1244905,Nas Services Ltd (Residential),B*Voluntary-Spot-V Dep-Enhanced - do not u,Bi-Borough Director of Integrated Care,"1,247.28"
13/02/2023,1244905,Nas Services Ltd (Residential),B*Voluntary-Spot-V Dep-Enhanced - do not u,Bi-Borough Director of Integrated Care,"1,870.92"
13/02/2023,1244905,Nas Services Ltd (Residential),B*Voluntary-Spot-V Dep-Enhanced - do not u,Bi-Borough Director of Integrated Care,"1,418.44"
13/02/2023,1244905,Nas Services Ltd (Residential),B*Voluntary-Spot-V Dep-Enhanced - do not u,Bi-Borough Director of Integrated Care,"1,247.28"
13/02/2023,1244905,Nas Services Ltd (Residential),B*Voluntary-Spot-V Dep-Enhanced - do not u,Bi-Borough Director of Integrated Care,"1,418.44"
13/02/2023,1244905,Nas Services Ltd (Residential),B*Voluntary-Spot-V Dep-Enhanced - do not u,Bi-Borough Director of Integrated Care,"5,258.40"
13/02/2023,1244905,Nas Services Ltd (Residential),B*Voluntary-Spot-V Dep-Enhanced - do not u,Bi-Borough Director of Integrated Care,"1,418.44"
13/02/2023,1244905,Nas Services Ltd (Residential),B*Voluntary-Spot-V Dep-Enhanced - do not u,Bi-Borough Director of Integrated Care,"1,247.28"
13/02/2023,1244905,Nas Services Ltd (Residential),B*Voluntary-Spot-V Dep-Enhanced - do not u,Bi-Borough Director of Integrated Care,"1,418.44"
13/02/2023,1244905,Nas Services Ltd (Residential),B*Voluntary-Spot-V Dep-Enhanced - do not u,Bi-Borough Director of Integrated Care,"5,258.40"
13/02/2023,1244905,Nas Services Ltd (Residential),B*Voluntary-Spot-V Dep-Enhanced - do not u,Bi-Borough Director of Integrated Care,"1,418.44"
13/02/2023,1244905,Nas Services Ltd (Residential),B*Voluntary-Spot-V Dep-Enhanced - do not u,Bi-Borough Director of Integrated Care,"5,258.40"
13/02/2023,1244905,Nas Services Ltd (Residential),B*Voluntary-Spot-V Dep-Enhanced - do not u,Bi-Borough Director of Integrated Care,"5,258.40"
13/02/2023,1244905,Nas Services Ltd (Residential),B*Voluntary-Spot-V Dep-Enhanced - do not u,Bi-Borough Director of Integrated Care,"1,247.28"
13/02/2023,1244905,Nas Services Ltd (Residential),B*Voluntary-Spot-V Dep-Enhanced - do not u,Bi-Borough Director of Integrated Care,"5,258.40"
13/02/2023,1244905,Nas Services Ltd (Residential),B*Voluntary-Spot-V Dep-Enhanced - do not u,Bi-Borough Director of Integrated Care,"1,418.44"
13/02/2023,1244905,Nas Services Ltd (Residential),B*Voluntary-Spot-V Dep-Enhanced - do not u,Bi-Borough Director of Integrated Care,"1,247.28"
13/02/2023,1244905,Nas Services Ltd (Residential),B*Voluntary-Spot-V Dep-Enhanced - do not u,Bi-Borough Director of Integrated Care,"1,418.44"
13/02/2023,1244905,Nas Services Ltd (Residential),B*Voluntary-Spot-V Dep-Enhanced - do not u,Bi-Borough Director of Integrated Care,"1,403.19"
01/03/2023,1244905,Nas Services Ltd (Residential),,Bi-Borough Director of Integrated Care,"4,058.88"
01/03/2023,1244905,Nas Services Ltd (Residential),,Bi-Borough Director of Integrated Care,"7,400.08"
01/03/2023,1244905,Nas Services Ltd (Residential),,Bi-Borough Director of Integrated Care,"3,379.32"
01/03/2023,1244905,Nas Services Ltd (Residential),,Bi-Borough Director of Integrated Care,"7,970.16"
28/03/2023,1244905,Nas Services Ltd (Residential),,Bi-Borough Director of Integrated Care,"9,393.40"
28/03/2023,1244905,Nas Services Ltd (Residential),,Bi-Borough Director of Integrated Care,"4,783.68"
28/03/2023,1244905,Nas Services Ltd (Residential),,Bi-Borough Director of Integrated Care,"8,721.52"
28/03/2023,1244905,Nas Services Ltd (Residential),,Bi-Borough Director of Integrated Care,"3,982.77"
13/02/2023,1244906,Nas Services Ltd (Use 3009018),B*Voluntary-Spot-V Dep-Enhanced - do not u,Bi-Borough Director of Integrated Care,"4,879.20"
13/02/2023,1244906,Nas Services Ltd (Use 3009018),B*Voluntary-Spot-V Dep-Enhanced - do not u,Bi-Borough Director of Integrated Care,"2,915.36"
13/02/2023,1244906,Nas Services Ltd (Use 3009018),B*Voluntary-Spot-V Dep-Enhanced - do not u,Bi-Borough Director of Integrated Care,"1,772.04"
13/02/2023,1244906,Nas Services Ltd (Use 3009018),B*Voluntary-Spot-V Dep-Enhanced - do not u,Bi-Borough Director of Integrated Care,"2,970.72"
13/02/2023,1244906,Nas Services Ltd (Use 3009018),B*Voluntary-Spot-V Dep-Enhanced - do not u,Bi-Borough Director of Integrated Care,"1,124.96"
13/02/2023,1244906,Nas Services Ltd (Use 3009018),B*Voluntary-Spot-V Dep-Enhanced - do not u,Bi-Borough Director of Integrated Care,"1,744.52"
13/02/2023,1244906,Nas Services Ltd (Use 3009018),B*Voluntary-Spot-V Dep-Enhanced - do not u,Bi-Borough Director of Integrated Care,"2,915.36"
13/02/2023,1244906,Nas Services Ltd (Use 3009018),B*Voluntary-Spot-V Dep-Enhanced - do not u,Bi-Borough Director of Integrated Care,"1,772.04"
13/02/2023,1244906,Nas Services Ltd (Use 3009018),B*Voluntary-Spot-V Dep-Enhanced - do not u,Bi-Borough Director of Integrated Care,"2,970.72"
13/02/2023,1244906,Nas Services Ltd (Use 3009018),B*Voluntary-Spot-V Dep-Enhanced - do not u,Bi-Borough Director of Integrated Care,"4,879.20"
13/02/2023,1244906,Nas Services Ltd (Use 3009018),B*Voluntary-Spot-V Dep-Enhanced - do not u,Bi-Borough Director of Integrated Care,"2,970.72"
13/02/2023,1244906,Nas Services Ltd (Use 3009018),B*Voluntary-Spot-V Dep-Enhanced - do not u,Bi-Borough Director of Integrated Care,"1,124.96"
13/02/2023,1244906,Nas Services Ltd (Use 3009018),B*Voluntary-Spot-V Dep-Enhanced - do not u,Bi-Borough Director of Integrated Care,"5,243.80"
13/02/2023,1244906,Nas Services Ltd (Use 3009018),B*Voluntary-Spot-V Dep-Enhanced - do not u,Bi-Borough Director of Integrated Care,"2,915.36"
13/02/2023,1244906,Nas Services Ltd (Use 3009018),B*Voluntary-Spot-V Dep-Enhanced - do not u,Bi-Borough Director of Integrated Care,"4,879.20"
13/02/2023,1244906,Nas Services Ltd (Use 3009018),B*Voluntary-Spot-V Dep-Enhanced - do not u,Bi-Borough Director of Integrated Care,"2,970.72"
13/02/2023,1244906,Nas Services Ltd (Use 3009018),B*Voluntary-Spot-V Dep-Enhanced - do not u,Bi-Borough Director of Integrated Care,"1,744.52"
13/02/2023,1244906,Nas Services Ltd (Use 3009018),B*Voluntary-Spot-V Dep-Enhanced - do not u,Bi-Borough Director of Integrated Care,"5,243.80"
13/02/2023,1244906,Nas Services Ltd (Use 3009018),B*Voluntary-Spot-V Dep-Enhanced - do not u,Bi-Borough Director of Integrated Care,"2,915.36"
13/02/2023,1244906,Nas Services Ltd (Use 3009018),B*Voluntary-Spot-V Dep-Enhanced - do not u,Bi-Borough Director of Integrated Care,"1,308.36"
13/02/2023,1244906,Nas Services Ltd (Use 3009018),B*Voluntary-Spot-V Dep-Enhanced - do not u,Bi-Borough Director of Integrated Care,"1,772.04"
13/02/2023,1244906,Nas Services Ltd (Use 3009018),B*Voluntary-Spot-V Dep-Enhanced - do not u,Bi-Borough Director of Integrated Care,"2,027.52"
13/02/2023,1244906,Nas Services Ltd (Use 3009018),B*Voluntary-Spot-V Dep-Enhanced - do not u,Bi-Borough Director of Integrated Care,"5,243.80"
13/02/2023,1244906,Nas Services Ltd (Use 3009018),B*Voluntary-Spot-V Dep-Enhanced - do not u,Bi-Borough Director of Integrated Care,"1,744.52"
13/02/2023,1244906,Nas Services Ltd (Use 3009018),B*Voluntary-Spot-V Dep-Enhanced - do not u,Bi-Borough Director of Integrated Care,"2,915.36"
13/02/2023,1244906,Nas Services Ltd (Use 3009018),B*Voluntary-Spot-V Dep-Enhanced - do not u,Bi-Borough Director of Integrated Care,"1,124.96"
13/02/2023,1244906,Nas Services Ltd (Use 3009018),B*Voluntary-Spot-V Dep-Enhanced - do not u,Bi-Borough Director of Integrated Care,"1,124.96"
13/02/2023,1244906,Nas Services Ltd (Use 3009018),B*Voluntary-Spot-V Dep-Enhanced - do not u,Bi-Borough Director of Integrated Care,"1,744.52"
13/02/2023,1244906,Nas Services Ltd (Use 3009018),B*Voluntary-Spot-V Dep-Enhanced - do not u,Bi-Borough Director of Integrated Care,"1,772.04"
13/02/2023,1244906,Nas Services Ltd (Use 3009018),B*Voluntary-Spot-V Dep-Enhanced - do not u,Bi-Borough Director of Integrated Care,"2,027.52"
13/02/2023,1244906,Nas Services Ltd (Use 3009018),B*Voluntary-Spot-V Dep-Enhanced - do not u,Bi-Borough Director of Integrated Care,"1,308.36"
13/02/2023,1244906,Nas Services Ltd (Use 3009018),B*Voluntary-Spot-V Dep-Enhanced - do not u,Bi-Borough Director of Integrated Care,"1,124.96"
13/02/2023,1244906,Nas Services Ltd (Use 3009018),B*Voluntary-Spot-V Dep-Enhanced - do not u,Bi-Borough Director of Integrated Care,"2,915.36"
13/02/2023,1244906,Nas Services Ltd (Use 3009018),B*Voluntary-Spot-V Dep-Enhanced - do not u,Bi-Borough Director of Integrated Care,"2,970.72"
13/02/2023,1244906,Nas Services Ltd (Use 3009018),B*Voluntary-Spot-V Dep-Enhanced - do not u,Bi-Borough Director of Integrated Care,"4,879.20"
13/02/2023,1244906,Nas Services Ltd (Use 3009018),B*Voluntary-Spot-V Dep-Enhanced - do not u,Bi-Borough Director of Integrated Care,"2,915.36"
13/02/2023,1244906,Nas Services Ltd (Use 3009018),B*Voluntary-Spot-V Dep-Enhanced - do not u,Bi-Borough Director of Integrated Care,"1,308.36"
13/02/2023,1244906,Nas Services Ltd (Use 3009018),B*Voluntary-Spot-V Dep-Enhanced - do not u,Bi-Borough Director of Integrated Care,"5,243.80"
13/02/2023,1244906,Nas Services Ltd (Use 3009018),B*Voluntary-Spot-V Dep-Enhanced - do not u,Bi-Borough Director of Integrated Care,"4,879.20"
13/02/2023,1244906,Nas Services Ltd (Use 3009018),B*Voluntary-Spot-V Dep-Enhanced - do not u,Bi-Borough Director of Integrated Care,"1,308.36"
13/02/2023,1244906,Nas Services Ltd (Use 3009018),B*Voluntary-Spot-V Dep-Enhanced - do not u,Bi-Borough Director of Integrated Care,"1,772.04"
13/02/2023,1244906,Nas Services Ltd (Use 3009018),B*Voluntary-Spot-V Dep-Enhanced - do not u,Bi-Borough Director of Integrated Care,"2,970.72"
13/02/2023,1244906,Nas Services Ltd (Use 3009018),B*Voluntary-Spot-V Dep-Enhanced - do not u,Bi-Borough Director of Integrated Care,"2,027.52"
13/02/2023,1244906,Nas Services Ltd (Use 3009018),B*Voluntary-Spot-V Dep-Enhanced - do not u,Bi-Borough Director of Integrated Care,"5,243.80"
13/02/2023,1244906,Nas Services Ltd (Use 3009018),B*Voluntary-Spot-V Dep-Enhanced - do not u,Bi-Borough Director of Integrated Care,"4,879.20"
13/02/2023,1244906,Nas Services Ltd (Use 3009018),B*Voluntary-Spot-V Dep-Enhanced - do not u,Bi-Borough Director of Integrated Care,"1,308.36"
13/02/2023,1244906,Nas Services Ltd (Use 3009018),B*Voluntary-Spot-V Dep-Enhanced - do not u,Bi-Borough Director of Integrated Care,"1,772.04"
13/02/2023,1244906,Nas Services Ltd (Use 3009018),B*Voluntary-Spot-V Dep-Enhanced - do not u,Bi-Borough Director of Integrated Care,"1,308.36"
13/02/2023,1244906,Nas Services Ltd (Use 3009018),B*Voluntary-Spot-V Dep-Enhanced - do not u,Bi-Borough Director of Integrated Care,"1,772.04"
13/02/2023,1244906,Nas Services Ltd (Use 3009018),B*Voluntary-Spot-V Dep-Enhanced - do not u,Bi-Borough Director of Integrated Care,"5,574.00"
13/02/2023,1244906,Nas Services Ltd (Use 3009018),B*Voluntary-Spot-V Dep-Enhanced - do not u,Bi-Borough Director of Integrated Care,"2,970.72"
13/02/2023,1244906,Nas Services Ltd (Use 3009018),B*Voluntary-Spot-V Dep-Enhanced - do not u,Bi-Borough Director of Integrated Care,"1,124.96"
13/02/2023,1244906,Nas Services Ltd (Use 3009018),B*Voluntary-Spot-V Dep-Enhanced - do not u,Bi-Borough Director of Integrated Care,"2,027.52"
13/02/2023,1244906,Nas Services Ltd (Use 3009018),B*Voluntary-Spot-V Dep-Enhanced - do not u,Bi-Borough Director of Integrated Care,"1,308.36"
13/02/2023,1244906,Nas Services Ltd (Use 3009018),B*Voluntary-Spot-V Dep-Enhanced - do not u,Bi-Borough Director of Integrated Care,"1,124.96"
13/02/2023,1244906,Nas Services Ltd (Use 3009018),B*Voluntary-Spot-V Dep-Enhanced - do not u,Bi-Borough Director of Integrated Care,"1,744.52"
13/02/2023,1244906,Nas Services Ltd (Use 3009018),B*Voluntary-Spot-V Dep-Enhanced - do not u,Bi-Borough Director of Integrated Care,"4,879.20"
13/02/2023,1244906,Nas Services Ltd (Use 3009018),B*Voluntary-Spot-V Dep-Enhanced - do not u,Bi-Borough Director of Integrated Care,"1,744.52"
13/02/2023,1244906,Nas Services Ltd (Use 3009018),B*Voluntary-Spot-V Dep-Enhanced - do not u,Bi-Borough Director of Integrated Care,"1,744.52"
01/02/2023,1282551,Nisacraftcare Limited,,Bi-Borough Director of Integrated Care,"10,980.04"
01/02/2023,1282551,Nisacraftcare Limited,,Bi-Borough Director of Integrated Care,"8,065.20"
01/02/2023,1282551,Nisacraftcare Limited,,Bi-Borough Director of Integrated Care,"7,635.24"
01/03/2023,1282551,Nisacraftcare Limited,,Bi-Borough Director of Integrated Care,"10,980.04"
01/03/2023,1282551,Nisacraftcare Limited,,Bi-Borough Director of Integrated Care,"8,065.20"
01/03/2023,1282551,Nisacraftcare Limited,,Bi-Borough Director of Integrated Care,"7,635.24"
28/03/2023,1282551,Nisacraftcare Limited,,Bi-Borough Director of Integrated Care,"8,998.68"
28/03/2023,1282551,Nisacraftcare Limited,,Bi-Borough Director of Integrated Care,"9,505.41"
28/03/2023,1282551,Nisacraftcare Limited,,Bi-Borough Director of Integrated Care,"12,940.76"
01/02/2023,1247147,Norwood Schools Ltd,,Bi-Borough Director of Integrated Care,"9,472.52"
01/02/2023,1247147,Norwood Schools Ltd,,Bi-Borough Director of Integrated Care,"7,305.64"
01/02/2023,1247147,Norwood Schools Ltd,,Bi-Borough Director of Integrated Care,"4,678.68"
01/02/2023,1247147,Norwood Schools Ltd,,Bi-Borough Director of Integrated Care,"6,487.44"
01/03/2023,1247147,Norwood Schools Ltd,,Bi-Borough Director of Integrated Care,"7,305.64"
01/03/2023,1247147,Norwood Schools Ltd,,Bi-Borough Director of Integrated Care,"4,678.68"
01/03/2023,1247147,Norwood Schools Ltd,,Bi-Borough Director of Integrated Care,"6,487.44"
01/03/2023,1247147,Norwood Schools Ltd,,Bi-Borough Director of Integrated Care,"9,472.52"
28/03/2023,1247147,Norwood Schools Ltd,,Bi-Borough Director of Integrated Care,"8,610.22"
28/03/2023,1247147,Norwood Schools Ltd,,Bi-Borough Director of Integrated Care,"5,514.16"
28/03/2023,1247147,Norwood Schools Ltd,,Bi-Borough Director of Integrated Care,"7,645.91"
28/03/2023,1247147,Norwood Schools Ltd,,Bi-Borough Director of Integrated Care,"11,164.04"
01/02/2023,1243520,Oakview Care (Berkshire) Ltd,,Bi-Borough Director of Integrated Care,"7,038.96"
01/03/2023,1243520,Oakview Care (Berkshire) Ltd,,Bi-Borough Director of Integrated Care,"7,038.96"
28/03/2023,1243520,Oakview Care (Berkshire) Ltd,,Bi-Borough Director of Integrated Care,"8,364.97"
07/03/2023,1244970,Octavia Housing & Care (Rent,Rent,Bi-Borough Director of Integrated Care,"1,787.26"
09/03/2023,1244970,Octavia Housing & Care (Rent,Hire of Accommodation and Facilities,Bi-Borough Director of Integrated Care,"1,787.26"
16/01/2023,1248252,Origin Housing Ltd,B*Voluntary-Spot-V Dep-Enhanced - do not u,Bi-Borough Director of Integrated Care,"1,987.44"
16/01/2023,1248252,Origin Housing Ltd,B*Voluntary-Spot-V Dep-Enhanced - do not u,Bi-Borough Director of Integrated Care,993.72
16/01/2023,1248252,Origin Housing Ltd,B*Voluntary-Spot-V Dep-Enhanced - do not u,Bi-Borough Director of Integrated Care,"1,364.00"
01/02/2023,1243524,Ormsby Lodge,,Bi-Borough Director of Integrated Care,"3,481.16"
01/02/2023,1243524,Ormsby Lodge,,Bi-Borough Director of Integrated Care,936
01/03/2023,1243524,Ormsby Lodge,,Bi-Borough Director of Integrated Care,936
01/03/2023,1243524,Ormsby Lodge,,Bi-Borough Director of Integrated Care,"3,481.16"
28/03/2023,1243524,Ormsby Lodge,,Bi-Borough Director of Integrated Care,"4,102.80"
28/03/2023,1243524,Ormsby Lodge,,Bi-Borough Director of Integrated Care,"1,103.14"
01/02/2023,1245005,Outlook Care,,Bi-Borough Director of Integrated Care,"2,146.88"
01/02/2023,1245005,Outlook Care,,Bi-Borough Director of Integrated Care,"1,337.68"
01/02/2023,1245005,Outlook Care,,Bi-Borough Director of Integrated Care,"2,902.96"
01/02/2023,1245005,Outlook Care,,Bi-Borough Director of Integrated Care,"3,370.88"
01/02/2023,1245005,Outlook Care,,Bi-Borough Director of Integrated Care,"2,146.88"
01/02/2023,1245005,Outlook Care,,Bi-Borough Director of Integrated Care,"1,744.80"
01/03/2023,1245005,Outlook Care,,Bi-Borough Director of Integrated Care,"1,337.68"
01/03/2023,1245005,Outlook Care,,Bi-Borough Director of Integrated Care,"2,146.88"
01/03/2023,1245005,Outlook Care,,Bi-Borough Director of Integrated Care,"3,370.88"
01/03/2023,1245005,Outlook Care,,Bi-Borough Director of Integrated Care,"1,744.80"
01/03/2023,1245005,Outlook Care,,Bi-Borough Director of Integrated Care,"2,146.88"
01/03/2023,1245005,Outlook Care,,Bi-Borough Director of Integrated Care,"2,902.96"
28/03/2023,1245005,Outlook Care,,Bi-Borough Director of Integrated Care,"2,530.25"
28/03/2023,1245005,Outlook Care,,Bi-Borough Director of Integrated Care,"2,056.37"
28/03/2023,1245005,Outlook Care,,Bi-Borough Director of Integrated Care,"3,421.35"
28/03/2023,1245005,Outlook Care,,Bi-Borough Director of Integrated Care,"1,576.55"
28/03/2023,1245005,Outlook Care,,Bi-Borough Director of Integrated Care,"2,530.25"
28/03/2023,1245005,Outlook Care,,Bi-Borough Director of Integrated Care,"3,972.82"
05/01/2023,1245825,Sweet Tree Home Care Services,Adult Social Care - Other Transfer Pay,Bi-Borough Director of Integrated Care,"3,619.59"
12/01/2023,1268346,PERSONAL PAYMENTS,Adult Social Care - Other Transfer Pay,Bi-Borough Director of Integrated Care,"1,623.40"
12/01/2023,1246066,Barrie Bookkeeping & Payroll,Adult Social Care - Other Transfer Pay,Bi-Borough Director of Integrated Care,"11,674.68"
12/01/2023,1246066,Barrie Bookkeeping & Payroll,Adult Social Care - Other Transfer Pay,Bi-Borough Director of Integrated Care,"2,056.84"
12/01/2023,1246066,Barrie Bookkeeping & Payroll,Adult Social Care - Other Transfer Pay,Bi-Borough Director of Integrated Care,"2,854.04"
12/01/2023,1246066,Barrie Bookkeeping & Payroll,Adult Social Care - Other Transfer Pay,Bi-Borough Director of Integrated Care,733.8
12/01/2023,1246066,Barrie Bookkeeping & Payroll,Adult Social Care - Other Transfer Pay,Bi-Borough Director of Integrated Care,"2,483.40"
12/01/2023,1269674,PERSONAL PAYMENTS,Adult Social Care - Other Transfer Pay,Bi-Borough Director of Integrated Care,889.28
12/01/2023,1246066,Barrie Bookkeeping & Payroll,Adult Social Care - Other Transfer Pay,Bi-Borough Director of Integrated Care,"2,452.20"
12/01/2023,1246066,Barrie Bookkeeping & Payroll,Adult Social Care - Other Transfer Pay,Bi-Borough Director of Integrated Care,876.08
12/01/2023,1246066,Barrie Bookkeeping & Payroll,Adult Social Care - Other Transfer Pay,Bi-Borough Director of Integrated Care,953.88
12/01/2023,1280973,PERSONAL PAYMENTS,Adult Social Care - Other Transfer Pay,Bi-Borough Director of Integrated Care,"6,394.48"
12/01/2023,1250215,PERSONAL PAYMENTS,Adult Social Care - Other Transfer Pay,Bi-Borough Director of Integrated Care,"1,361.56"
12/01/2023,1250536,PERSONAL PAYMENTS,Adult Social Care - Other Transfer Pay,Bi-Borough Director of Integrated Care,678.64
12/01/2023,1248354,PERSONAL PAYMENTS,Adult Social Care - Other Transfer Pay,Bi-Borough Director of Integrated Care,"2,425.36"
12/01/2023,1246066,Barrie Bookkeeping & Payroll,Adult Social Care - Other Transfer Pay,Bi-Borough Director of Integrated Care,"1,991.00"
12/01/2023,1292106,PERSONAL PAYMENTS,Adult Social Care - Other Transfer Pay,Bi-Borough Director of Integrated Care,"1,155.40"
12/01/2023,1247820,PERSONAL PAYMENTS,Adult Social Care - Other Transfer Pay,Bi-Borough Director of Integrated Care,"8,751.04"
12/01/2023,1246066,Barrie Bookkeeping & Payroll,Adult Social Care - Other Transfer Pay,Bi-Borough Director of Integrated Care,"1,066.28"
12/01/2023,1254540,PERSONAL PAYMENTS,Adult Social Care - Other Transfer Pay,Bi-Borough Director of Integrated Care,939.92
12/01/2023,1249942,PERSONAL PAYMENTS,Adult Social Care - Other Transfer Pay,Bi-Borough Director of Integrated Care,"6,343.36"
12/01/2023,1246066,Barrie Bookkeeping & Payroll,Adult Social Care - Other Transfer Pay,Bi-Borough Director of Integrated Care,"5,754.04"
12/01/2023,1246066,Barrie Bookkeeping & Payroll,Adult Social Care - Other Transfer Pay,Bi-Borough Director of Integrated Care,"5,914.56"
12/01/2023,1250037,PERSONAL PAYMENTS,Adult Social Care - Other Transfer Pay,Bi-Borough Director of Integrated Care,"2,383.72"
12/01/2023,1246066,Barrie Bookkeeping & Payroll,Adult Social Care - Other Transfer Pay,Bi-Borough Director of Integrated Care,"1,791.60"
12/01/2023,1247727,PERSONAL PAYMENTS,Social Care - Direct Payments,Bi-Borough Director of Integrated Care,"2,740.72"
12/01/2023,1248154,PERSONAL PAYMENTS,Adult Social Care - Other Transfer Pay,Bi-Borough Director of Integrated Care,829.52
12/01/2023,1248010,PERSONAL PAYMENTS,Adult Social Care - Other Transfer Pay,Bi-Borough Director of Integrated Care,646.16
12/01/2023,1278955,PERSONAL PAYMENTS,Social Care - Direct Payments,Bi-Borough Director of Integrated Care,"1,580.32"
12/01/2023,1246066,Barrie Bookkeeping & Payroll,Adult Social Care - Other Transfer Pay,Bi-Borough Director of Integrated Care,"2,618.28"
12/01/2023,1246066,Barrie Bookkeeping & Payroll,Adult Social Care - Other Transfer Pay,Bi-Borough Director of Integrated Care,818
12/01/2023,1246066,Barrie Bookkeeping & Payroll,Adult Social Care - Other Transfer Pay,Bi-Borough Director of Integrated Care,"2,992.00"
12/01/2023,1250656,PERSONAL PAYMENTS,Social Care - Direct Payments,Bi-Borough Director of Integrated Care,"1,118.36"
12/01/2023,1248148,PERSONAL PAYMENTS,Adult Social Care - Other Transfer Pay,Bi-Borough Director of Integrated Care,"1,638.96"
12/01/2023,1246066,Barrie Bookkeeping & Payroll,Adult Social Care - Other Transfer Pay,Bi-Borough Director of Integrated Care,"2,585.32"
12/01/2023,1257487,PERSONAL PAYMENTS,Adult Social Care - Other Transfer Pay,Bi-Borough Director of Integrated Care,505
12/01/2023,1250074,PERSONAL PAYMENTS,Adult Social Care - Other Transfer Pay,Bi-Borough Director of Integrated Care,"6,904.80"
12/01/2023,1250627,PERSONAL PAYMENTS,Adult Social Care - Other Transfer Pay,Bi-Borough Director of Integrated Care,"2,508.00"
12/01/2023,1250670,PERSONAL PAYMENTS,Adult Social Care - Other Transfer Pay,Bi-Borough Director of Integrated Care,"1,571.52"
12/01/2023,1250044,PERSONAL PAYMENTS,Adult Social Care - Other Transfer Pay,Bi-Borough Director of Integrated Care,724.04
12/01/2023,1247804,PERSONAL PAYMENTS,Adult Social Care - Other Transfer Pay,Bi-Borough Director of Integrated Care,752.2
12/01/2023,1250138,PERSONAL PAYMENTS,Adult Social Care - Other Transfer Pay,Bi-Borough Director of Integrated Care,916
12/01/2023,1250012,PERSONAL PAYMENTS,Adult Social Care - Other Transfer Pay,Bi-Borough Director of Integrated Care,838.6
12/01/2023,1250186,PERSONAL PAYMENTS,Adult Social Care - Other Transfer Pay,Bi-Borough Director of Integrated Care,"3,688.44"
12/01/2023,1272570,PERSONAL PAYMENTS,Adult Social Care - Other Transfer Pay,Bi-Borough Director of Integrated Care,"1,051.24"
12/01/2023,1250674,PERSONAL PAYMENTS,Adult Social Care - Other Transfer Pay,Bi-Borough Director of Integrated Care,"2,652.16"
12/01/2023,1246066,Barrie Bookkeeping & Payroll,Adult Social Care - Other Transfer Pay,Bi-Borough Director of Integrated Care,"1,688.60"
12/01/2023,1246066,Barrie Bookkeeping & Payroll,Adult Social Care - Other Transfer Pay,Bi-Borough Director of Integrated Care,843.96
12/01/2023,1246066,Barrie Bookkeeping & Payroll,Adult Social Care - Other Transfer Pay,Bi-Borough Director of Integrated Care,"1,164.60"
26/01/2023,1246066,Barrie Bookkeeping & Payroll,Adult Social Care - Other Transfer Pay,Bi-Borough Director of Integrated Care,"3,061.15"
26/01/2023,1246066,Barrie Bookkeeping & Payroll,Adult Social Care - Other Transfer Pay,Bi-Borough Director of Integrated Care,"8,275.57"
31/01/2023,1246066,Barrie Bookkeeping & Payroll,Adult Social Care - Other Transfer Pay,Bi-Borough Director of Integrated Care,"5,463.81"
09/02/2023,1246066,Barrie Bookkeeping & Payroll,Adult Social Care - Other Transfer Pay,Bi-Borough Director of Integrated Care,"3,104.25"
09/02/2023,1269674,PERSONAL PAYMENTS,Adult Social Care - Other Transfer Pay,Bi-Borough Director of Integrated Care,"1,111.60"
09/02/2023,1246066,Barrie Bookkeeping & Payroll,Adult Social Care - Other Transfer Pay,Bi-Borough Director of Integrated Care,613.1
09/02/2023,1250215,PERSONAL PAYMENTS,Adult Social Care - Other Transfer Pay,Bi-Borough Director of Integrated Care,"1,701.95"
09/02/2023,1246066,Barrie Bookkeeping & Payroll,Adult Social Care - Other Transfer Pay,Bi-Borough Director of Integrated Care,"2,488.75"
09/02/2023,1292106,PERSONAL PAYMENTS,Adult Social Care - Other Transfer Pay,Bi-Borough Director of Integrated Care,"1,444.25"
09/02/2023,1250536,PERSONAL PAYMENTS,Adult Social Care - Other Transfer Pay,Bi-Borough Director of Integrated Care,848.3
09/02/2023,1248354,PERSONAL PAYMENTS,Adult Social Care - Other Transfer Pay,Bi-Borough Director of Integrated Care,"3,031.70"
09/02/2023,1247820,PERSONAL PAYMENTS,Adult Social Care - Other Transfer Pay,Bi-Borough Director of Integrated Care,"10,938.80"
09/02/2023,1246066,Barrie Bookkeeping & Payroll,Adult Social Care - Other Transfer Pay,Bi-Borough Director of Integrated Care,"1,332.85"
09/02/2023,1254540,PERSONAL PAYMENTS,Adult Social Care - Other Transfer Pay,Bi-Borough Director of Integrated Care,"1,174.90"
09/02/2023,1246066,Barrie Bookkeeping & Payroll,Adult Social Care - Other Transfer Pay,Bi-Borough Director of Integrated Care,"7,192.55"
09/02/2023,1246066,Barrie Bookkeeping & Payroll,Adult Social Care - Other Transfer Pay,Bi-Borough Director of Integrated Care,"7,393.20"
09/02/2023,1250037,PERSONAL PAYMENTS,Adult Social Care - Other Transfer Pay,Bi-Borough Director of Integrated Care,"2,979.65"
09/02/2023,1246066,Barrie Bookkeeping & Payroll,Adult Social Care - Other Transfer Pay,Bi-Borough Director of Integrated Care,639.86
09/02/2023,1247727,PERSONAL PAYMENTS,Social Care - Direct Payments,Bi-Borough Director of Integrated Care,"3,425.90"
09/02/2023,1246066,Barrie Bookkeeping & Payroll,Adult Social Care - Other Transfer Pay,Bi-Borough Director of Integrated Care,576.5
09/02/2023,1249942,PERSONAL PAYMENTS,Adult Social Care - Other Transfer Pay,Bi-Borough Director of Integrated Care,"7,929.20"
09/02/2023,1246066,Barrie Bookkeeping & Payroll,Adult Social Care - Other Transfer Pay,Bi-Borough Director of Integrated Care,"3,272.85"
09/02/2023,1246066,Barrie Bookkeeping & Payroll,Adult Social Care - Other Transfer Pay,Bi-Borough Director of Integrated Care,"1,022.50"
09/02/2023,1248656,PERSONAL PAYMENTS,Adult Social Care - Other Transfer Pay,Bi-Borough Director of Integrated Care,534.4
09/02/2023,1250656,PERSONAL PAYMENTS,Social Care - Direct Payments,Bi-Borough Director of Integrated Care,"1,397.95"
09/02/2023,1248154,PERSONAL PAYMENTS,Adult Social Care - Other Transfer Pay,Bi-Borough Director of Integrated Care,"1,036.90"
09/02/2023,1248010,PERSONAL PAYMENTS,Adult Social Care - Other Transfer Pay,Bi-Borough Director of Integrated Care,807.7
09/02/2023,1278955,PERSONAL PAYMENTS,Social Care - Direct Payments,Bi-Borough Director of Integrated Care,"1,975.40"
09/02/2023,1246066,Barrie Bookkeeping & Payroll,Adult Social Care - Other Transfer Pay,Bi-Borough Director of Integrated Care,680
09/02/2023,1248148,PERSONAL PAYMENTS,Adult Social Care - Other Transfer Pay,Bi-Borough Director of Integrated Care,"2,048.70"
09/02/2023,1249876,PERSONAL PAYMENTS,Adult Social Care - Other Transfer Pay,Bi-Borough Director of Integrated Care,528.6
09/02/2023,1246066,Barrie Bookkeeping & Payroll,Adult Social Care - Other Transfer Pay,Bi-Borough Director of Integrated Care,"3,231.65"
09/02/2023,1257487,PERSONAL PAYMENTS,Adult Social Care - Other Transfer Pay,Bi-Borough Director of Integrated Care,631.25
09/02/2023,1250074,PERSONAL PAYMENTS,Adult Social Care - Other Transfer Pay,Bi-Borough Director of Integrated Care,"8,631.00"
09/02/2023,1246066,Barrie Bookkeeping & Payroll,Adult Social Care - Other Transfer Pay,Bi-Borough Director of Integrated Care,"1,756.40"
09/02/2023,1250627,PERSONAL PAYMENTS,Adult Social Care - Other Transfer Pay,Bi-Borough Director of Integrated Care,"3,135.00"
09/02/2023,1250670,PERSONAL PAYMENTS,Adult Social Care - Other Transfer Pay,Bi-Borough Director of Integrated Care,"1,964.40"
09/02/2023,1250044,PERSONAL PAYMENTS,Adult Social Care - Other Transfer Pay,Bi-Borough Director of Integrated Care,905.05
09/02/2023,1247804,PERSONAL PAYMENTS,Adult Social Care - Other Transfer Pay,Bi-Borough Director of Integrated Care,940.25
09/02/2023,1250138,PERSONAL PAYMENTS,Adult Social Care - Other Transfer Pay,Bi-Borough Director of Integrated Care,"1,145.00"
09/02/2023,1250012,PERSONAL PAYMENTS,Adult Social Care - Other Transfer Pay,Bi-Borough Director of Integrated Care,"1,048.25"
09/02/2023,1272570,PERSONAL PAYMENTS,Adult Social Care - Other Transfer Pay,Bi-Borough Director of Integrated Care,"1,314.05"
09/02/2023,1250674,PERSONAL PAYMENTS,Adult Social Care - Other Transfer Pay,Bi-Borough Director of Integrated Care,"3,315.20"
09/02/2023,1272570,PERSONAL PAYMENTS,Adult Social Care - Other Transfer Pay,Bi-Borough Director of Integrated Care,609.6
09/02/2023,1246066,Barrie Bookkeeping & Payroll,Adult Social Care - Other Transfer Pay,Bi-Borough Director of Integrated Care,"1,054.95"
09/02/2023,1246066,Barrie Bookkeeping & Payroll,Adult Social Care - Other Transfer Pay,Bi-Borough Director of Integrated Care,"1,455.75"
09/02/2023,1250186,PERSONAL PAYMENTS,Adult Social Care - Other Transfer Pay,Bi-Borough Director of Integrated Care,"4,256.20"
09/02/2023,1248073,PERSONAL PAYMENTS,Adult Social Care - Other Transfer Pay,Bi-Borough Director of Integrated Care,529.8
09/02/2023,1268346,PERSONAL PAYMENTS,Adult Social Care - Other Transfer Pay,Bi-Borough Director of Integrated Care,"2,029.25"
09/02/2023,1246066,Barrie Bookkeeping & Payroll,Adult Social Care - Other Transfer Pay,Bi-Borough Director of Integrated Care,"14,593.35"
09/02/2023,1246066,Barrie Bookkeeping & Payroll,Adult Social Care - Other Transfer Pay,Bi-Borough Director of Integrated Care,"2,571.05"
09/02/2023,1246066,Barrie Bookkeeping & Payroll,Adult Social Care - Other Transfer Pay,Bi-Borough Director of Integrated Care,"2,110.75"
09/02/2023,1246066,Barrie Bookkeeping & Payroll,Adult Social Care - Other Transfer Pay,Bi-Borough Director of Integrated Care,917.25
09/02/2023,1246066,Barrie Bookkeeping & Payroll,Adult Social Care - Other Transfer Pay,Bi-Borough Director of Integrated Care,"3,567.55"
09/02/2023,1246066,Barrie Bookkeeping & Payroll,Adult Social Care - Other Transfer Pay,Bi-Borough Director of Integrated Care,"3,065.25"
09/02/2023,1246066,Barrie Bookkeeping & Payroll,Adult Social Care - Other Transfer Pay,Bi-Borough Director of Integrated Care,"1,095.10"
09/02/2023,1246066,Barrie Bookkeeping & Payroll,Adult Social Care - Other Transfer Pay,Bi-Borough Director of Integrated Care,"1,420.35"
09/02/2023,1280973,PERSONAL PAYMENTS,Adult Social Care - Other Transfer Pay,Bi-Borough Director of Integrated Care,"7,993.10"
01/03/2023,1246066,Barrie Bookkeeping & Payroll,Adult Social Care - Other Transfer Pay,Bi-Borough Director of Integrated Care,722.91
09/03/2023,1250012,PERSONAL PAYMENTS,Adult Social Care - Other Transfer Pay,Bi-Borough Director of Integrated Care,838.6
09/03/2023,1272570,PERSONAL PAYMENTS,Adult Social Care - Other Transfer Pay,Bi-Borough Director of Integrated Care,"1,051.24"
09/03/2023,1250674,PERSONAL PAYMENTS,Adult Social Care - Other Transfer Pay,Bi-Borough Director of Integrated Care,"2,652.16"
09/03/2023,1246066,Barrie Bookkeeping & Payroll,Adult Social Care - Other Transfer Pay,Bi-Borough Director of Integrated Care,843.96
09/03/2023,1246066,Barrie Bookkeeping & Payroll,Adult Social Care - Other Transfer Pay,Bi-Borough Director of Integrated Care,"1,164.60"
09/03/2023,1250186,PERSONAL PAYMENTS,Adult Social Care - Other Transfer Pay,Bi-Borough Director of Integrated Care,"3,404.96"
09/03/2023,1246066,Barrie Bookkeeping & Payroll,Adult Social Care - Other Transfer Pay,Bi-Borough Director of Integrated Care,"2,676.30"
09/03/2023,1268346,PERSONAL PAYMENTS,Adult Social Care - Other Transfer Pay,Bi-Borough Director of Integrated Care,"1,623.40"
09/03/2023,1246066,Barrie Bookkeeping & Payroll,Adult Social Care - Other Transfer Pay,Bi-Borough Director of Integrated Care,"11,674.68"
09/03/2023,1246066,Barrie Bookkeeping & Payroll,Adult Social Care - Other Transfer Pay,Bi-Borough Director of Integrated Care,"2,056.84"
09/03/2023,1246066,Barrie Bookkeeping & Payroll,Adult Social Care - Other Transfer Pay,Bi-Borough Director of Integrated Care,"2,854.04"
09/03/2023,1246066,Barrie Bookkeeping & Payroll,Adult Social Care - Other Transfer Pay,Bi-Borough Director of Integrated Care,"2,452.20"
09/03/2023,1246066,Barrie Bookkeeping & Payroll,Adult Social Care - Other Transfer Pay,Bi-Borough Director of Integrated Care,876.08
09/03/2023,1280973,PERSONAL PAYMENTS,Adult Social Care - Other Transfer Pay,Bi-Borough Director of Integrated Care,"6,394.48"
09/03/2023,1246066,Barrie Bookkeeping & Payroll,Adult Social Care - Other Transfer Pay,Bi-Borough Director of Integrated Care,"1,991.00"
09/03/2023,1246066,Barrie Bookkeeping & Payroll,Adult Social Care - Other Transfer Pay,Bi-Borough Director of Integrated Care,"1,029.88"
09/03/2023,1292106,PERSONAL PAYMENTS,Adult Social Care - Other Transfer Pay,Bi-Borough Director of Integrated Care,"1,155.40"
09/03/2023,1247820,PERSONAL PAYMENTS,Adult Social Care - Other Transfer Pay,Bi-Borough Director of Integrated Care,"8,751.04"
09/03/2023,1246066,Barrie Bookkeeping & Payroll,Adult Social Care - Other Transfer Pay,Bi-Borough Director of Integrated Care,"1,688.60"
09/03/2023,1246066,Barrie Bookkeeping & Payroll,Adult Social Care - Other Transfer Pay,Bi-Borough Director of Integrated Care,733.8
09/03/2023,1246066,Barrie Bookkeeping & Payroll,Adult Social Care - Other Transfer Pay,Bi-Borough Director of Integrated Care,"3,081.53"
09/03/2023,1269674,PERSONAL PAYMENTS,Adult Social Care - Other Transfer Pay,Bi-Borough Director of Integrated Care,889.28
09/03/2023,1246066,Barrie Bookkeeping & Payroll,Adult Social Care - Other Transfer Pay,Bi-Borough Director of Integrated Care,"1,066.28"
09/03/2023,1254540,PERSONAL PAYMENTS,Adult Social Care - Other Transfer Pay,Bi-Borough Director of Integrated Care,939.92
09/03/2023,1249942,PERSONAL PAYMENTS,Adult Social Care - Other Transfer Pay,Bi-Borough Director of Integrated Care,"6,343.36"
09/03/2023,1246066,Barrie Bookkeeping & Payroll,Adult Social Care - Other Transfer Pay,Bi-Borough Director of Integrated Care,"2,618.28"
09/03/2023,1246066,Barrie Bookkeeping & Payroll,Adult Social Care - Other Transfer Pay,Bi-Borough Director of Integrated Care,818
09/03/2023,1250215,PERSONAL PAYMENTS,Adult Social Care - Other Transfer Pay,Bi-Borough Director of Integrated Care,"1,361.56"
09/03/2023,1250536,PERSONAL PAYMENTS,Adult Social Care - Other Transfer Pay,Bi-Borough Director of Integrated Care,678.64
09/03/2023,1248354,PERSONAL PAYMENTS,Adult Social Care - Other Transfer Pay,Bi-Borough Director of Integrated Care,"2,425.36"
09/03/2023,1250656,PERSONAL PAYMENTS,Social Care - Direct Payments,Bi-Borough Director of Integrated Care,"1,118.36"
09/03/2023,1246066,Barrie Bookkeeping & Payroll,Adult Social Care - Other Transfer Pay,Bi-Borough Director of Integrated Care,895.8
09/03/2023,1246066,Barrie Bookkeeping & Payroll,Adult Social Care - Other Transfer Pay,Bi-Borough Director of Integrated Care,"5,754.04"
09/03/2023,1246066,Barrie Bookkeeping & Payroll,Adult Social Care - Other Transfer Pay,Bi-Borough Director of Integrated Care,"5,914.56"
09/03/2023,1250037,PERSONAL PAYMENTS,Adult Social Care - Other Transfer Pay,Bi-Borough Director of Integrated Care,"2,383.72"
09/03/2023,1247727,PERSONAL PAYMENTS,Social Care - Direct Payments,Bi-Borough Director of Integrated Care,"2,740.72"
09/03/2023,1248154,PERSONAL PAYMENTS,Adult Social Care - Other Transfer Pay,Bi-Borough Director of Integrated Care,829.52
09/03/2023,1248010,PERSONAL PAYMENTS,Adult Social Care - Other Transfer Pay,Bi-Borough Director of Integrated Care,646.16
09/03/2023,1278955,PERSONAL PAYMENTS,Social Care - Direct Payments,Bi-Borough Director of Integrated Care,"1,580.32"
09/03/2023,1273061,PERSONAL PAYMENTS,Adult Social Care - Other Transfer Pay,Bi-Borough Director of Integrated Care,"3,104.30"
09/03/2023,1246066,Barrie Bookkeeping & Payroll,Adult Social Care - Other Transfer Pay,Bi-Borough Director of Integrated Care,544
09/03/2023,1248148,PERSONAL PAYMENTS,Adult Social Care - Other Transfer Pay,Bi-Borough Director of Integrated Care,"1,638.96"
09/03/2023,1246066,Barrie Bookkeeping & Payroll,Adult Social Care - Other Transfer Pay,Bi-Borough Director of Integrated Care,"2,585.32"
09/03/2023,1257487,PERSONAL PAYMENTS,Adult Social Care - Other Transfer Pay,Bi-Borough Director of Integrated Care,505
09/03/2023,1250074,PERSONAL PAYMENTS,Adult Social Care - Other Transfer Pay,Bi-Borough Director of Integrated Care,"6,904.80"
09/03/2023,1250627,PERSONAL PAYMENTS,Adult Social Care - Other Transfer Pay,Bi-Borough Director of Integrated Care,"2,508.00"
09/03/2023,1250670,PERSONAL PAYMENTS,Adult Social Care - Other Transfer Pay,Bi-Borough Director of Integrated Care,"1,571.52"
09/03/2023,1250044,PERSONAL PAYMENTS,Adult Social Care - Other Transfer Pay,Bi-Borough Director of Integrated Care,724.04
09/03/2023,1247804,PERSONAL PAYMENTS,Adult Social Care - Other Transfer Pay,Bi-Borough Director of Integrated Care,752.2
09/03/2023,1250138,PERSONAL PAYMENTS,Adult Social Care - Other Transfer Pay,Bi-Borough Director of Integrated Care,916
28/03/2023,1291747,PERSONAL PAYMENTS,Adult Social Care - Other Transfer Pay,Bi-Borough Director of Integrated Care,"6,280.71"
28/03/2023,1291747,PERSONAL PAYMENTS,Adult Social Care - Other Transfer Pay,Bi-Borough Director of Integrated Care,"2,041.76"
28/03/2023,1291747,PERSONAL PAYMENTS,Adult Social Care - Other Transfer Pay,Bi-Borough Director of Integrated Care,"1,480.36"
28/03/2023,1291747,PERSONAL PAYMENTS,Adult Social Care - Other Transfer Pay,Bi-Borough Director of Integrated Care,"3,004.50"
28/03/2023,1291747,PERSONAL PAYMENTS,Adult Social Care - Other Transfer Pay,Bi-Borough Director of Integrated Care,"1,531.32"
28/03/2023,1291747,PERSONAL PAYMENTS,Adult Social Care - Other Transfer Pay,Bi-Borough Director of Integrated Care,"2,552.20"
28/03/2023,1291747,PERSONAL PAYMENTS,Adult Social Care - Other Transfer Pay,Bi-Borough Director of Integrated Care,"3,563.49"
28/03/2023,1291747,PERSONAL PAYMENTS,Adult Social Care - Other Transfer Pay,Bi-Borough Director of Integrated Care,"2,919.54"
28/03/2023,1291747,PERSONAL PAYMENTS,Adult Social Care - Other Transfer Pay,Bi-Borough Director of Integrated Care,"4,206.30"
28/03/2023,1291747,PERSONAL PAYMENTS,Adult Social Care - Other Transfer Pay,Bi-Borough Director of Integrated Care,"1,001.20"
13/02/2023,1255663,PLAY ASSOCIATION HAMMERSMITH AND FU,B*Voluntary-Spot-V Dep-Enhanced - do not u,Bi-Borough Director of Integrated Care,668
13/02/2023,1255663,PLAY ASSOCIATION HAMMERSMITH AND FU,B*Voluntary-Spot-V Dep-Enhanced - do not u,Bi-Borough Director of Integrated Care,668
13/02/2023,1255663,PLAY ASSOCIATION HAMMERSMITH AND FU,B*Voluntary-Spot-V Dep-Enhanced - do not u,Bi-Borough Director of Integrated Care,"1,336.00"
01/02/2023,1258049,PSS (UK),,Bi-Borough Director of Integrated Care,"2,660.96"
01/03/2023,1258049,PSS (UK),,Bi-Borough Director of Integrated Care,"2,660.96"
28/03/2023,1258049,PSS (UK),,Bi-Borough Director of Integrated Care,"3,136.13"
01/02/2023,1245021,Paradise Community,,Bi-Borough Director of Integrated Care,"10,414.68"
01/03/2023,1245021,Paradise Community,,Bi-Borough Director of Integrated Care,"10,414.68"
28/03/2023,1245021,Paradise Community,,Bi-Borough Director of Integrated Care,"12,274.44"
01/02/2023,1292143,Pathway for Care Ltd T/a Transformi,,Bi-Borough Director of Integrated Care,"10,433.00"
01/03/2023,1292143,Pathway for Care Ltd T/a Transformi,,Bi-Borough Director of Integrated Care,"10,433.00"
28/03/2023,1292143,Pathway for Care Ltd T/a Transformi,,Bi-Borough Director of Integrated Care,"12,296.04"
01/02/2023,1250448,PERSONAL PAYMENTS,,Bi-Borough Director of Integrated Care,"1,419.24"
01/03/2023,1250448,PERSONAL PAYMENTS,,Bi-Borough Director of Integrated Care,"1,419.24"
28/03/2023,1250448,PERSONAL PAYMENTS,,Bi-Borough Director of Integrated Care,"1,672.68"
01/02/2023,1245163,Poor Servants of the mother of,,Bi-Borough Director of Integrated Care,"2,878.88"
01/03/2023,1245163,Poor Servants of the mother of,,Bi-Borough Director of Integrated Care,"2,878.88"
28/03/2023,1245163,Poor Servants of the mother of,,Bi-Borough Director of Integrated Care,"3,392.97"
01/03/2023,1245166,Precious Homes Support Ltd,,Bi-Borough Director of Integrated Care,"31,445.00"
01/03/2023,1245166,Precious Homes Support Ltd,,Bi-Borough Director of Integrated Care,"5,320.00"
01/03/2023,1245166,Precious Homes Support Ltd,,Bi-Borough Director of Integrated Care,"178,980.00"
28/03/2023,1245166,Precious Homes Support Ltd,,Bi-Borough Director of Integrated Care,"3,135.00"
28/03/2023,1245166,Precious Homes Support Ltd,,Bi-Borough Director of Integrated Care,"3,135.00"
03/01/2023,1248563,Pursuing Independent Paths,B*Voluntary-Spot-V Dep-Enhanced - do not u,Bi-Borough Director of Integrated Care,"1,020.88"
03/01/2023,1248563,Pursuing Independent Paths,B*Voluntary-Spot-V Dep-Enhanced - do not u,Bi-Borough Director of Integrated Care,"1,276.10"
03/01/2023,1248563,Pursuing Independent Paths,B*Voluntary-Spot-V Dep-Enhanced - do not u,Bi-Borough Director of Integrated Care,"1,531.32"
03/01/2023,1248563,Pursuing Independent Paths,B*Voluntary-Spot-V Dep-Enhanced - do not u,Bi-Borough Director of Integrated Care,"1,786.54"
03/01/2023,1248563,Pursuing Independent Paths,B*Voluntary-Spot-V Dep-Enhanced - do not u,Bi-Borough Director of Integrated Care,"1,289.32"
03/01/2023,1248563,Pursuing Independent Paths,B*Voluntary-Spot-V Dep-Enhanced - do not u,Bi-Borough Director of Integrated Care,510.44
03/01/2023,1248563,Pursuing Independent Paths,B*Voluntary-Spot-V Dep-Enhanced - do not u,Bi-Borough Director of Integrated Care,"1,020.88"
03/01/2023,1248563,Pursuing Independent Paths,B*Voluntary-Spot-V Dep-Enhanced - do not u,Bi-Borough Director of Integrated Care,"2,552.20"
03/01/2023,1248563,Pursuing Independent Paths,B*Voluntary-Spot-V Dep-Enhanced - do not u,Bi-Borough Director of Integrated Care,"1,531.32"
03/01/2023,1248563,Pursuing Independent Paths,B*Voluntary-Spot-V Dep-Enhanced - do not u,Bi-Borough Director of Integrated Care,"1,531.32"
03/01/2023,1248563,Pursuing Independent Paths,B*Voluntary-Spot-V Dep-Enhanced - do not u,Bi-Borough Director of Integrated Care,"1,531.32"
03/01/2023,1248563,Pursuing Independent Paths,B*Voluntary-Spot-V Dep-Enhanced - do not u,Bi-Borough Director of Integrated Care,510.44
03/01/2023,1248563,Pursuing Independent Paths,B*Voluntary-Spot-V Dep-Enhanced - do not u,Bi-Borough Director of Integrated Care,"1,020.88"
03/01/2023,1248563,Pursuing Independent Paths,B*Voluntary-Spot-V Dep-Enhanced - do not u,Bi-Borough Director of Integrated Care,"1,531.32"
03/01/2023,1248563,Pursuing Independent Paths,B*Voluntary-Spot-V Dep-Enhanced - do not u,Bi-Borough Director of Integrated Care,"1,276.10"
03/01/2023,1248563,Pursuing Independent Paths,B*Voluntary-Spot-V Dep-Enhanced - do not u,Bi-Borough Director of Integrated Care,"2,552.20"
03/01/2023,1248563,Pursuing Independent Paths,B*Voluntary-Spot-V Dep-Enhanced - do not u,Bi-Borough Director of Integrated Care,"1,531.32"
03/01/2023,1248563,Pursuing Independent Paths,B*Voluntary-Spot-V Dep-Enhanced - do not u,Bi-Borough Director of Integrated Care,"1,531.32"
03/01/2023,1248563,Pursuing Independent Paths,B*Voluntary-Spot-V Dep-Enhanced - do not u,Bi-Borough Director of Integrated Care,"1,531.32"
03/01/2023,1248563,Pursuing Independent Paths,B*Voluntary-Spot-V Dep-Enhanced - do not u,Bi-Borough Director of Integrated Care,510.44
03/01/2023,1248563,Pursuing Independent Paths,B*Voluntary-Spot-V Dep-Enhanced - do not u,Bi-Borough Director of Integrated Care,"1,020.88"
03/01/2023,1248563,Pursuing Independent Paths,B*Voluntary-Spot-V Dep-Enhanced - do not u,Bi-Borough Director of Integrated Care,"1,276.10"
03/01/2023,1248563,Pursuing Independent Paths,B*Voluntary-Spot-V Dep-Enhanced - do not u,Bi-Borough Director of Integrated Care,510.44
03/01/2023,1248563,Pursuing Independent Paths,B*Voluntary-Spot-V Dep-Enhanced - do not u,Bi-Borough Director of Integrated Care,"1,252.72"
03/01/2023,1248563,Pursuing Independent Paths,B*Voluntary-Spot-V Dep-Enhanced - do not u,Bi-Borough Director of Integrated Care,510.44
03/01/2023,1248563,Pursuing Independent Paths,B*Voluntary-Spot-V Dep-Enhanced - do not u,Bi-Borough Director of Integrated Care,510.44
03/01/2023,1248563,Pursuing Independent Paths,B*Voluntary-Spot-V Dep-Enhanced - do not u,Bi-Borough Director of Integrated Care,"1,879.08"
03/01/2023,1248563,Pursuing Independent Paths,B*Voluntary-Spot-V Dep-Enhanced - do not u,Bi-Borough Director of Integrated Care,"1,531.32"
03/01/2023,1248563,Pursuing Independent Paths,B*Voluntary-Spot-V Dep-Enhanced - do not u,Bi-Borough Director of Integrated Care,510.44
03/01/2023,1248563,Pursuing Independent Paths,B*Voluntary-Spot-V Dep-Enhanced - do not u,Bi-Borough Director of Integrated Care,"1,020.88"
03/01/2023,1248563,Pursuing Independent Paths,B*Voluntary-Spot-V Dep-Enhanced - do not u,Bi-Borough Director of Integrated Care,546.9
03/01/2023,1248563,Pursuing Independent Paths,B*Voluntary-Spot-V Dep-Enhanced - do not u,Bi-Borough Director of Integrated Care,583.36
03/01/2023,1248563,Pursuing Independent Paths,B*Voluntary-Spot-V Dep-Enhanced - do not u,Bi-Borough Director of Integrated Care,510.44
03/01/2023,1248563,Pursuing Independent Paths,B*Voluntary-Spot-V Dep-Enhanced - do not u,Bi-Borough Director of Integrated Care,"1,531.32"
03/01/2023,1248563,Pursuing Independent Paths,B*Voluntary-Spot-V Dep-Enhanced - do not u,Bi-Borough Director of Integrated Care,"1,531.32"
03/01/2023,1248563,Pursuing Independent Paths,B*Voluntary-Spot-V Dep-Enhanced - do not u,Bi-Borough Director of Integrated Care,"1,020.88"
03/01/2023,1248563,Pursuing Independent Paths,B*Voluntary-Spot-V Dep-Enhanced - do not u,Bi-Borough Director of Integrated Care,"1,531.32"
03/01/2023,1248563,Pursuing Independent Paths,B*Voluntary-Spot-V Dep-Enhanced - do not u,Bi-Borough Director of Integrated Care,"2,041.76"
03/01/2023,1248563,Pursuing Independent Paths,B*Voluntary-Spot-V Dep-Enhanced - do not u,Bi-Borough Director of Integrated Care,"2,041.76"
03/01/2023,1248563,Pursuing Independent Paths,B*Voluntary-Spot-V Dep-Enhanced - do not u,Bi-Borough Director of Integrated Care,"1,531.32"
03/01/2023,1248563,Pursuing Independent Paths,B*Voluntary-Spot-V Dep-Enhanced - do not u,Bi-Borough Director of Integrated Care,"1,531.32"
03/01/2023,1248563,Pursuing Independent Paths,B*Voluntary-Spot-V Dep-Enhanced - do not u,Bi-Borough Director of Integrated Care,"1,531.32"
30/01/2023,1248563,Pursuing Independent Paths,B*Voluntary-Spot-V Dep-Enhanced - do not u,Bi-Borough Director of Integrated Care,"1,531.32"
30/01/2023,1248563,Pursuing Independent Paths,B*Voluntary-Spot-V Dep-Enhanced - do not u,Bi-Borough Director of Integrated Care,"1,020.88"
30/01/2023,1248563,Pursuing Independent Paths,B*Voluntary-Spot-V Dep-Enhanced - do not u,Bi-Borough Director of Integrated Care,"1,276.10"
30/01/2023,1248563,Pursuing Independent Paths,B*Voluntary-Spot-V Dep-Enhanced - do not u,Bi-Borough Director of Integrated Care,"1,531.32"
30/01/2023,1248563,Pursuing Independent Paths,B*Voluntary-Spot-V Dep-Enhanced - do not u,Bi-Borough Director of Integrated Care,"1,786.54"
30/01/2023,1248563,Pursuing Independent Paths,B*Voluntary-Spot-V Dep-Enhanced - do not u,Bi-Borough Director of Integrated Care,"1,289.32"
30/01/2023,1248563,Pursuing Independent Paths,B*Voluntary-Spot-V Dep-Enhanced - do not u,Bi-Borough Director of Integrated Care,510.44
30/01/2023,1248563,Pursuing Independent Paths,B*Voluntary-Spot-V Dep-Enhanced - do not u,Bi-Borough Director of Integrated Care,"1,020.88"
30/01/2023,1248563,Pursuing Independent Paths,B*Voluntary-Spot-V Dep-Enhanced - do not u,Bi-Borough Director of Integrated Care,"2,552.20"
30/01/2023,1248563,Pursuing Independent Paths,B*Voluntary-Spot-V Dep-Enhanced - do not u,Bi-Borough Director of Integrated Care,"1,531.32"
30/01/2023,1248563,Pursuing Independent Paths,B*Voluntary-Spot-V Dep-Enhanced - do not u,Bi-Borough Director of Integrated Care,"1,531.32"
30/01/2023,1248563,Pursuing Independent Paths,B*Voluntary-Spot-V Dep-Enhanced - do not u,Bi-Borough Director of Integrated Care,"1,531.32"
30/01/2023,1248563,Pursuing Independent Paths,B*Voluntary-Spot-V Dep-Enhanced - do not u,Bi-Borough Director of Integrated Care,510.44
30/01/2023,1248563,Pursuing Independent Paths,B*Voluntary-Spot-V Dep-Enhanced - do not u,Bi-Borough Director of Integrated Care,"1,020.88"
30/01/2023,1248563,Pursuing Independent Paths,B*Voluntary-Spot-V Dep-Enhanced - do not u,Bi-Borough Director of Integrated Care,"1,531.32"
30/01/2023,1248563,Pursuing Independent Paths,B*Voluntary-Spot-V Dep-Enhanced - do not u,Bi-Borough Director of Integrated Care,"1,276.10"
30/01/2023,1248563,Pursuing Independent Paths,B*Voluntary-Spot-V Dep-Enhanced - do not u,Bi-Borough Director of Integrated Care,"2,552.20"
30/01/2023,1248563,Pursuing Independent Paths,B*Voluntary-Spot-V Dep-Enhanced - do not u,Bi-Borough Director of Integrated Care,"1,531.32"
30/01/2023,1248563,Pursuing Independent Paths,B*Voluntary-Spot-V Dep-Enhanced - do not u,Bi-Borough Director of Integrated Care,"1,531.32"
30/01/2023,1248563,Pursuing Independent Paths,B*Voluntary-Spot-V Dep-Enhanced - do not u,Bi-Borough Director of Integrated Care,"1,531.32"
30/01/2023,1248563,Pursuing Independent Paths,B*Voluntary-Spot-V Dep-Enhanced - do not u,Bi-Borough Director of Integrated Care,510.44
30/01/2023,1248563,Pursuing Independent Paths,B*Voluntary-Spot-V Dep-Enhanced - do not u,Bi-Borough Director of Integrated Care,"1,020.88"
30/01/2023,1248563,Pursuing Independent Paths,B*Voluntary-Spot-V Dep-Enhanced - do not u,Bi-Borough Director of Integrated Care,"1,276.10"
30/01/2023,1248563,Pursuing Independent Paths,B*Voluntary-Spot-V Dep-Enhanced - do not u,Bi-Borough Director of Integrated Care,510.44
30/01/2023,1248563,Pursuing Independent Paths,B*Voluntary-Spot-V Dep-Enhanced - do not u,Bi-Borough Director of Integrated Care,"1,252.72"
30/01/2023,1248563,Pursuing Independent Paths,B*Voluntary-Spot-V Dep-Enhanced - do not u,Bi-Borough Director of Integrated Care,510.44
30/01/2023,1248563,Pursuing Independent Paths,B*Voluntary-Spot-V Dep-Enhanced - do not u,Bi-Borough Director of Integrated Care,510.44
30/01/2023,1248563,Pursuing Independent Paths,B*Voluntary-Spot-V Dep-Enhanced - do not u,Bi-Borough Director of Integrated Care,"1,879.08"
30/01/2023,1248563,Pursuing Independent Paths,B*Voluntary-Spot-V Dep-Enhanced - do not u,Bi-Borough Director of Integrated Care,"1,531.32"
30/01/2023,1248563,Pursuing Independent Paths,B*Voluntary-Spot-V Dep-Enhanced - do not u,Bi-Borough Director of Integrated Care,510.44
30/01/2023,1248563,Pursuing Independent Paths,B*Voluntary-Spot-V Dep-Enhanced - do not u,Bi-Borough Director of Integrated Care,"1,020.88"
30/01/2023,1248563,Pursuing Independent Paths,B*Voluntary-Spot-V Dep-Enhanced - do not u,Bi-Borough Director of Integrated Care,546.9
30/01/2023,1248563,Pursuing Independent Paths,B*Voluntary-Spot-V Dep-Enhanced - do not u,Bi-Borough Director of Integrated Care,583.36
30/01/2023,1248563,Pursuing Independent Paths,B*Voluntary-Spot-V Dep-Enhanced - do not u,Bi-Borough Director of Integrated Care,510.44
30/01/2023,1248563,Pursuing Independent Paths,B*Voluntary-Spot-V Dep-Enhanced - do not u,Bi-Borough Director of Integrated Care,"1,531.32"
30/01/2023,1248563,Pursuing Independent Paths,B*Voluntary-Spot-V Dep-Enhanced - do not u,Bi-Borough Director of Integrated Care,"1,531.32"
30/01/2023,1248563,Pursuing Independent Paths,B*Voluntary-Spot-V Dep-Enhanced - do not u,Bi-Borough Director of Integrated Care,"1,020.88"
30/01/2023,1248563,Pursuing Independent Paths,B*Voluntary-Spot-V Dep-Enhanced - do not u,Bi-Borough Director of Integrated Care,765.66
30/01/2023,1248563,Pursuing Independent Paths,B*Voluntary-Spot-V Dep-Enhanced - do not u,Bi-Borough Director of Integrated Care,"1,531.32"
30/01/2023,1248563,Pursuing Independent Paths,B*Voluntary-Spot-V Dep-Enhanced - do not u,Bi-Borough Director of Integrated Care,"2,041.76"
30/01/2023,1248563,Pursuing Independent Paths,B*Voluntary-Spot-V Dep-Enhanced - do not u,Bi-Borough Director of Integrated Care,"2,041.76"
30/01/2023,1248563,Pursuing Independent Paths,B*Voluntary-Spot-V Dep-Enhanced - do not u,Bi-Borough Director of Integrated Care,"1,531.32"
30/01/2023,1248563,Pursuing Independent Paths,B*Voluntary-Spot-V Dep-Enhanced - do not u,Bi-Borough Director of Integrated Care,"1,531.32"
27/02/2023,1248563,Pursuing Independent Paths,B*Voluntary-Spot-V Dep-Enhanced - do not u,Bi-Borough Director of Integrated Care,"1,531.32"
27/02/2023,1248563,Pursuing Independent Paths,B*Voluntary-Spot-V Dep-Enhanced - do not u,Bi-Borough Director of Integrated Care,"1,020.88"
27/02/2023,1248563,Pursuing Independent Paths,B*Voluntary-Spot-V Dep-Enhanced - do not u,Bi-Borough Director of Integrated Care,"1,276.10"
27/02/2023,1248563,Pursuing Independent Paths,B*Voluntary-Spot-V Dep-Enhanced - do not u,Bi-Borough Director of Integrated Care,"1,531.32"
27/02/2023,1248563,Pursuing Independent Paths,B*Voluntary-Spot-V Dep-Enhanced - do not u,Bi-Borough Director of Integrated Care,"1,786.54"
27/02/2023,1248563,Pursuing Independent Paths,B*Voluntary-Spot-V Dep-Enhanced - do not u,Bi-Borough Director of Integrated Care,"1,289.32"
27/02/2023,1248563,Pursuing Independent Paths,B*Voluntary-Spot-V Dep-Enhanced - do not u,Bi-Borough Director of Integrated Care,510.44
27/02/2023,1248563,Pursuing Independent Paths,B*Voluntary-Spot-V Dep-Enhanced - do not u,Bi-Borough Director of Integrated Care,"1,020.88"
27/02/2023,1248563,Pursuing Independent Paths,B*Voluntary-Spot-V Dep-Enhanced - do not u,Bi-Borough Director of Integrated Care,"2,552.20"
27/02/2023,1248563,Pursuing Independent Paths,B*Voluntary-Spot-V Dep-Enhanced - do not u,Bi-Borough Director of Integrated Care,"1,531.32"
27/02/2023,1248563,Pursuing Independent Paths,B*Voluntary-Spot-V Dep-Enhanced - do not u,Bi-Borough Director of Integrated Care,"1,531.32"
27/02/2023,1248563,Pursuing Independent Paths,B*Voluntary-Spot-V Dep-Enhanced - do not u,Bi-Borough Director of Integrated Care,"1,531.32"
27/02/2023,1248563,Pursuing Independent Paths,B*Voluntary-Spot-V Dep-Enhanced - do not u,Bi-Borough Director of Integrated Care,510.44
27/02/2023,1248563,Pursuing Independent Paths,B*Voluntary-Spot-V Dep-Enhanced - do not u,Bi-Borough Director of Integrated Care,"1,020.88"
27/02/2023,1248563,Pursuing Independent Paths,B*Voluntary-Spot-V Dep-Enhanced - do not u,Bi-Borough Director of Integrated Care,"1,531.32"
27/02/2023,1248563,Pursuing Independent Paths,B*Voluntary-Spot-V Dep-Enhanced - do not u,Bi-Borough Director of Integrated Care,"1,276.10"
27/02/2023,1248563,Pursuing Independent Paths,B*Voluntary-Spot-V Dep-Enhanced - do not u,Bi-Borough Director of Integrated Care,"2,552.20"
27/02/2023,1248563,Pursuing Independent Paths,B*Voluntary-Spot-V Dep-Enhanced - do not u,Bi-Borough Director of Integrated Care,"1,531.32"
27/02/2023,1248563,Pursuing Independent Paths,B*Voluntary-Spot-V Dep-Enhanced - do not u,Bi-Borough Director of Integrated Care,"1,531.32"
27/02/2023,1248563,Pursuing Independent Paths,B*Voluntary-Spot-V Dep-Enhanced - do not u,Bi-Borough Director of Integrated Care,"1,531.32"
27/02/2023,1248563,Pursuing Independent Paths,B*Voluntary-Spot-V Dep-Enhanced - do not u,Bi-Borough Director of Integrated Care,510.44
27/02/2023,1248563,Pursuing Independent Paths,B*Voluntary-Spot-V Dep-Enhanced - do not u,Bi-Borough Director of Integrated Care,"1,020.88"
27/02/2023,1248563,Pursuing Independent Paths,B*Voluntary-Spot-V Dep-Enhanced - do not u,Bi-Borough Director of Integrated Care,"1,276.10"
27/02/2023,1248563,Pursuing Independent Paths,B*Voluntary-Spot-V Dep-Enhanced - do not u,Bi-Borough Director of Integrated Care,510.44
27/02/2023,1248563,Pursuing Independent Paths,B*Voluntary-Spot-V Dep-Enhanced - do not u,Bi-Borough Director of Integrated Care,"1,252.72"
27/02/2023,1248563,Pursuing Independent Paths,B*Voluntary-Spot-V Dep-Enhanced - do not u,Bi-Borough Director of Integrated Care,510.44
27/02/2023,1248563,Pursuing Independent Paths,B*Voluntary-Spot-V Dep-Enhanced - do not u,Bi-Borough Director of Integrated Care,510.44
27/02/2023,1248563,Pursuing Independent Paths,B*Voluntary-Spot-V Dep-Enhanced - do not u,Bi-Borough Director of Integrated Care,"1,879.08"
27/02/2023,1248563,Pursuing Independent Paths,B*Voluntary-Spot-V Dep-Enhanced - do not u,Bi-Borough Director of Integrated Care,"1,531.32"
27/02/2023,1248563,Pursuing Independent Paths,B*Voluntary-Spot-V Dep-Enhanced - do not u,Bi-Borough Director of Integrated Care,510.44
27/02/2023,1248563,Pursuing Independent Paths,B*Voluntary-Spot-V Dep-Enhanced - do not u,Bi-Borough Director of Integrated Care,"1,020.88"
27/02/2023,1248563,Pursuing Independent Paths,B*Voluntary-Spot-V Dep-Enhanced - do not u,Bi-Borough Director of Integrated Care,546.9
27/02/2023,1248563,Pursuing Independent Paths,B*Voluntary-Spot-V Dep-Enhanced - do not u,Bi-Borough Director of Integrated Care,583.36
27/02/2023,1248563,Pursuing Independent Paths,B*Voluntary-Spot-V Dep-Enhanced - do not u,Bi-Borough Director of Integrated Care,510.44
27/02/2023,1248563,Pursuing Independent Paths,B*Voluntary-Spot-V Dep-Enhanced - do not u,Bi-Borough Director of Integrated Care,"1,531.32"
27/02/2023,1248563,Pursuing Independent Paths,B*Voluntary-Spot-V Dep-Enhanced - do not u,Bi-Borough Director of Integrated Care,"1,020.88"
27/02/2023,1248563,Pursuing Independent Paths,B*Voluntary-Spot-V Dep-Enhanced - do not u,Bi-Borough Director of Integrated Care,"1,020.88"
27/02/2023,1248563,Pursuing Independent Paths,B*Voluntary-Spot-V Dep-Enhanced - do not u,Bi-Borough Director of Integrated Care,"1,531.32"
27/02/2023,1248563,Pursuing Independent Paths,B*Voluntary-Spot-V Dep-Enhanced - do not u,Bi-Borough Director of Integrated Care,"2,041.76"
27/02/2023,1248563,Pursuing Independent Paths,B*Voluntary-Spot-V Dep-Enhanced - do not u,Bi-Borough Director of Integrated Care,"2,041.76"
27/02/2023,1248563,Pursuing Independent Paths,B*Voluntary-Spot-V Dep-Enhanced - do not u,Bi-Borough Director of Integrated Care,"1,531.32"
27/02/2023,1248563,Pursuing Independent Paths,B*Voluntary-Spot-V Dep-Enhanced - do not u,Bi-Borough Director of Integrated Care,"1,531.32"
27/03/2023,1248563,Pursuing Independent Paths,B*Voluntary-Spot-V Dep-Enhanced - do not u,Bi-Borough Director of Integrated Care,"1,020.88"
27/03/2023,1248563,Pursuing Independent Paths,B*Voluntary-Spot-V Dep-Enhanced - do not u,Bi-Borough Director of Integrated Care,"1,276.10"
27/03/2023,1248563,Pursuing Independent Paths,B*Voluntary-Spot-V Dep-Enhanced - do not u,Bi-Borough Director of Integrated Care,"1,531.32"
27/03/2023,1248563,Pursuing Independent Paths,B*Voluntary-Spot-V Dep-Enhanced - do not u,Bi-Borough Director of Integrated Care,"1,786.54"
27/03/2023,1248563,Pursuing Independent Paths,B*Voluntary-Spot-V Dep-Enhanced - do not u,Bi-Borough Director of Integrated Care,"1,289.32"
27/03/2023,1248563,Pursuing Independent Paths,B*Voluntary-Spot-V Dep-Enhanced - do not u,Bi-Borough Director of Integrated Care,510.44
27/03/2023,1248563,Pursuing Independent Paths,B*Voluntary-Spot-V Dep-Enhanced - do not u,Bi-Borough Director of Integrated Care,"1,020.88"
27/03/2023,1248563,Pursuing Independent Paths,B*Voluntary-Spot-V Dep-Enhanced - do not u,Bi-Borough Director of Integrated Care,"2,552.20"
27/03/2023,1248563,Pursuing Independent Paths,B*Voluntary-Spot-V Dep-Enhanced - do not u,Bi-Borough Director of Integrated Care,"1,531.32"
27/03/2023,1248563,Pursuing Independent Paths,B*Voluntary-Spot-V Dep-Enhanced - do not u,Bi-Borough Director of Integrated Care,"1,531.32"
27/03/2023,1248563,Pursuing Independent Paths,B*Voluntary-Spot-V Dep-Enhanced - do not u,Bi-Borough Director of Integrated Care,"1,531.32"
27/03/2023,1248563,Pursuing Independent Paths,B*Voluntary-Spot-V Dep-Enhanced - do not u,Bi-Borough Director of Integrated Care,510.44
27/03/2023,1248563,Pursuing Independent Paths,B*Voluntary-Spot-V Dep-Enhanced - do not u,Bi-Borough Director of Integrated Care,"1,531.32"
27/03/2023,1248563,Pursuing Independent Paths,B*Voluntary-Spot-V Dep-Enhanced - do not u,Bi-Borough Director of Integrated Care,"1,531.32"
27/03/2023,1248563,Pursuing Independent Paths,B*Voluntary-Spot-V Dep-Enhanced - do not u,Bi-Borough Director of Integrated Care,"1,276.10"
27/03/2023,1248563,Pursuing Independent Paths,B*Voluntary-Spot-V Dep-Enhanced - do not u,Bi-Borough Director of Integrated Care,"2,552.20"
27/03/2023,1248563,Pursuing Independent Paths,B*Voluntary-Spot-V Dep-Enhanced - do not u,Bi-Borough Director of Integrated Care,"1,531.32"
27/03/2023,1248563,Pursuing Independent Paths,B*Voluntary-Spot-V Dep-Enhanced - do not u,Bi-Borough Director of Integrated Care,"1,531.32"
27/03/2023,1248563,Pursuing Independent Paths,B*Voluntary-Spot-V Dep-Enhanced - do not u,Bi-Borough Director of Integrated Care,"1,531.32"
27/03/2023,1248563,Pursuing Independent Paths,B*Voluntary-Spot-V Dep-Enhanced - do not u,Bi-Borough Director of Integrated Care,510.44
27/03/2023,1248563,Pursuing Independent Paths,B*Voluntary-Spot-V Dep-Enhanced - do not u,Bi-Borough Director of Integrated Care,"1,531.32"
27/03/2023,1248563,Pursuing Independent Paths,B*Voluntary-Spot-V Dep-Enhanced - do not u,Bi-Borough Director of Integrated Care,"1,276.10"
27/03/2023,1248563,Pursuing Independent Paths,B*Voluntary-Spot-V Dep-Enhanced - do not u,Bi-Borough Director of Integrated Care,510.44
27/03/2023,1248563,Pursuing Independent Paths,B*Voluntary-Spot-V Dep-Enhanced - do not u,Bi-Borough Director of Integrated Care,"1,252.72"
27/03/2023,1248563,Pursuing Independent Paths,B*Voluntary-Spot-V Dep-Enhanced - do not u,Bi-Borough Director of Integrated Care,510.44
27/03/2023,1248563,Pursuing Independent Paths,B*Voluntary-Spot-V Dep-Enhanced - do not u,Bi-Borough Director of Integrated Care,510.44
27/03/2023,1248563,Pursuing Independent Paths,B*Voluntary-Spot-V Dep-Enhanced - do not u,Bi-Borough Director of Integrated Care,"1,879.08"
27/03/2023,1248563,Pursuing Independent Paths,B*Voluntary-Spot-V Dep-Enhanced - do not u,Bi-Borough Director of Integrated Care,"1,531.32"
27/03/2023,1248563,Pursuing Independent Paths,B*Voluntary-Spot-V Dep-Enhanced - do not u,Bi-Borough Director of Integrated Care,510.44
27/03/2023,1248563,Pursuing Independent Paths,B*Voluntary-Spot-V Dep-Enhanced - do not u,Bi-Borough Director of Integrated Care,"1,020.88"
27/03/2023,1248563,Pursuing Independent Paths,B*Voluntary-Spot-V Dep-Enhanced - do not u,Bi-Borough Director of Integrated Care,546.9
27/03/2023,1248563,Pursuing Independent Paths,B*Voluntary-Spot-V Dep-Enhanced - do not u,Bi-Borough Director of Integrated Care,583.36
27/03/2023,1248563,Pursuing Independent Paths,B*Voluntary-Spot-V Dep-Enhanced - do not u,Bi-Borough Director of Integrated Care,510.44
27/03/2023,1248563,Pursuing Independent Paths,B*Voluntary-Spot-V Dep-Enhanced - do not u,Bi-Borough Director of Integrated Care,"1,531.32"
27/03/2023,1248563,Pursuing Independent Paths,B*Voluntary-Spot-V Dep-Enhanced - do not u,Bi-Borough Director of Integrated Care,"1,020.88"
27/03/2023,1248563,Pursuing Independent Paths,B*Voluntary-Spot-V Dep-Enhanced - do not u,Bi-Borough Director of Integrated Care,"1,020.88"
27/03/2023,1248563,Pursuing Independent Paths,B*Voluntary-Spot-V Dep-Enhanced - do not u,Bi-Borough Director of Integrated Care,"1,531.32"
27/03/2023,1248563,Pursuing Independent Paths,B*Voluntary-Spot-V Dep-Enhanced - do not u,Bi-Borough Director of Integrated Care,"2,041.76"
27/03/2023,1248563,Pursuing Independent Paths,B*Voluntary-Spot-V Dep-Enhanced - do not u,Bi-Borough Director of Integrated Care,"2,041.76"
27/03/2023,1248563,Pursuing Independent Paths,B*Voluntary-Spot-V Dep-Enhanced - do not u,Bi-Borough Director of Integrated Care,"1,531.32"
27/03/2023,1248563,Pursuing Independent Paths,B*Voluntary-Spot-V Dep-Enhanced - do not u,Bi-Borough Director of Integrated Care,"1,531.32"
27/03/2023,1248563,Pursuing Independent Paths,B*Voluntary-Spot-V Dep-Enhanced - do not u,Bi-Borough Director of Integrated Care,"1,531.32"
31/03/2023,1300463,R.E.A.C.H Ltd,,Bi-Borough Director of Integrated Care,"9,819.53"
01/02/2023,1245169,Rcp Residential Care Providers Ltd,,Bi-Borough Director of Integrated Care,"7,707.08"
01/03/2023,1245169,Rcp Residential Care Providers Ltd,,Bi-Borough Director of Integrated Care,"7,707.08"
28/03/2023,1245169,Rcp Residential Care Providers Ltd,,Bi-Borough Director of Integrated Care,"9,083.34"
01/02/2023,1269718,Reliant Care Limited,,Bi-Borough Director of Integrated Care,"7,008.00"
01/02/2023,1269718,Reliant Care Limited,,Bi-Borough Director of Integrated Care,"3,712.00"
01/02/2023,1269718,Reliant Care Limited,,Bi-Borough Director of Integrated Care,"3,712.00"
01/02/2023,1269718,Reliant Care Limited,,Bi-Borough Director of Integrated Care,"128,798.86"
01/03/2023,1269718,Reliant Care Limited,,Bi-Borough Director of Integrated Care,"7,008.00"
01/03/2023,1269718,Reliant Care Limited,,Bi-Borough Director of Integrated Care,"3,712.00"
01/03/2023,1269718,Reliant Care Limited,,Bi-Borough Director of Integrated Care,"3,712.00"
01/03/2023,1269718,Reliant Care Limited,,Bi-Borough Director of Integrated Care,"8,764.00"
28/03/2023,1269718,Reliant Care Limited,,Bi-Borough Director of Integrated Care,"8,259.43"
28/03/2023,1269718,Reliant Care Limited,,Bi-Borough Director of Integrated Care,"10,329.00"
28/03/2023,1269718,Reliant Care Limited,,Bi-Borough Director of Integrated Care,"4,374.86"
28/03/2023,1269718,Reliant Care Limited,,Bi-Borough Director of Integrated Care,"4,374.86"
13/02/2023,1298287,Residential Care Services Ltd,B*Voluntary-Spot-V Dep-Enhanced - do not u,Bi-Borough Director of Integrated Care,"1,653.84"
23/02/2023,1298287,Residential Care Services Ltd,B*Voluntary-Spot-V Dep-Enhanced - do not u,Bi-Borough Director of Integrated Care,"1,653.84"
20/03/2023,1298287,Residential Care Services Ltd,B*Voluntary-Spot-V Dep-Enhanced - do not u,Bi-Borough Director of Integrated Care,"1,653.84"
03/01/2023,1245316,Respect Care Services Ltd,,Bi-Borough Director of Integrated Care,"2,988.72"
20/01/2023,1245316,Respect Care Services Ltd,,Bi-Borough Director of Integrated Care,"1,761.21"
27/01/2023,1245316,Respect Care Services Ltd,,Bi-Borough Director of Integrated Care,889.5
13/02/2023,1245316,Respect Care Services Ltd,,Bi-Borough Director of Integrated Care,889.5
03/03/2023,1245316,Respect Care Services Ltd,,Bi-Borough Director of Integrated Care,889.5
13/03/2023,1245316,Respect Care Services Ltd,,Bi-Borough Director of Integrated Care,889.5
27/03/2023,1245316,Respect Care Services Ltd,,Bi-Borough Director of Integrated Care,889.5
09/02/2023,1251196,Royal Borough of Kensington and,,Bi-Borough Director of Integrated Care,"5,472.54"
19/01/2023,1248843,Sage Care Ltd,,Bi-Borough Director of Integrated Care,589.2
19/01/2023,1248843,Sage Care Ltd,,Bi-Borough Director of Integrated Care,585.28
19/01/2023,1248843,Sage Care Ltd,,Bi-Borough Director of Integrated Care,"1,707.70"
19/01/2023,1248843,Sage Care Ltd,,Bi-Borough Director of Integrated Care,"1,534.04"
19/01/2023,1248843,Sage Care Ltd,,Bi-Borough Director of Integrated Care,549.92
19/01/2023,1248843,Sage Care Ltd,,Bi-Borough Director of Integrated Care,"1,529.95"
13/02/2023,1248843,Sage Care Ltd,,Bi-Borough Director of Integrated Care,589.2
13/02/2023,1248843,Sage Care Ltd,,Bi-Borough Director of Integrated Care,555.16
13/02/2023,1248843,Sage Care Ltd,,Bi-Borough Director of Integrated Care,"1,757.78"
13/02/2023,1248843,Sage Care Ltd,,Bi-Borough Director of Integrated Care,949.48
13/02/2023,1248843,Sage Care Ltd,,Bi-Borough Director of Integrated Care,503.11
13/02/2023,1248843,Sage Care Ltd,,Bi-Borough Director of Integrated Care,"1,634.38"
01/02/2023,1262057,Sense - The National Deafbllind,,Bi-Borough Director of Integrated Care,"4,550.00"
01/02/2023,1262057,Sense - The National Deafbllind,,Bi-Borough Director of Integrated Care,"4,550.00"
01/03/2023,1262057,Sense - The National Deafbllind,,Bi-Borough Director of Integrated Care,"4,550.00"
01/03/2023,1262057,Sense - The National Deafbllind,,Bi-Borough Director of Integrated Care,"4,550.00"
28/03/2023,1262057,Sense - The National Deafbllind,,Bi-Borough Director of Integrated Care,"5,362.50"
28/03/2023,1262057,Sense - The National Deafbllind,,Bi-Borough Director of Integrated Care,"5,362.50"
01/02/2023,1243536,Sharda Care Ltd,,Bi-Borough Director of Integrated Care,"6,732.14"
01/02/2023,1245566,Shaw Care Uk Ltd,,Bi-Borough Director of Integrated Care,"4,852.00"
01/02/2023,1245566,Shaw Care Uk Ltd,,Bi-Borough Director of Integrated Care,"4,852.00"
01/03/2023,1245566,Shaw Care Uk Ltd,,Bi-Borough Director of Integrated Care,"4,852.00"
01/03/2023,1245566,Shaw Care Uk Ltd,,Bi-Borough Director of Integrated Care,"4,852.00"
28/03/2023,1245566,Shaw Care Uk Ltd,,Bi-Borough Director of Integrated Care,"5,718.43"
28/03/2023,1245566,Shaw Care Uk Ltd,,Bi-Borough Director of Integrated Care,"5,718.43"
28/03/2023,1286751,Shine Partnerships Limited,,Bi-Borough Director of Integrated Care,"5,160.71"
07/03/2023,1302889,Solitions Social Care,B*Voluntary-Spot-V Dep-Enhanced - do not u,Bi-Borough Director of Integrated Care,"4,640.25"
07/03/2023,1302889,Solitions Social Care,B*Voluntary-Spot-V Dep-Enhanced - do not u,Bi-Borough Director of Integrated Care,"6,187.00"
20/02/2023,1294228,Solutions Logistics Ltd,B*Voluntary-Spot-V Dep-Enhanced - do not u,Bi-Borough Director of Integrated Care,"1,350.00"
07/03/2023,1294228,Solutions Logistics Ltd,B*Voluntary-Spot-V Dep-Enhanced - do not u,Bi-Borough Director of Integrated Care,"1,500.00"
01/02/2023,1248935,Southside Partnership,,Bi-Borough Director of Integrated Care,"2,546.68"
01/02/2023,1248935,Southside Partnership,,Bi-Borough Director of Integrated Care,800
01/02/2023,1248935,Southside Partnership,,Bi-Borough Director of Integrated Care,800
01/02/2023,1248935,Southside Partnership,,Bi-Borough Director of Integrated Care,"3,592.80"
01/03/2023,1248935,Southside Partnership,,Bi-Borough Director of Integrated Care,"2,546.68"
01/03/2023,1248935,Southside Partnership,,Bi-Borough Director of Integrated Care,800
01/03/2023,1248935,Southside Partnership,,Bi-Borough Director of Integrated Care,"3,592.80"
01/03/2023,1248935,Southside Partnership,,Bi-Borough Director of Integrated Care,800
28/03/2023,1248935,Southside Partnership,,Bi-Borough Director of Integrated Care,"4,234.37"
28/03/2023,1248935,Southside Partnership,,Bi-Borough Director of Integrated Care,942.86
28/03/2023,1248935,Southside Partnership,,Bi-Borough Director of Integrated Care,"3,001.44"
28/03/2023,1248935,Southside Partnership,,Bi-Borough Director of Integrated Care,942.86
09/01/2023,1248940,Special People,B*Voluntary-Spot-V Dep-Enhanced - do not u,Bi-Borough Director of Integrated Care,753.84
03/02/2023,1248940,Special People,B*Voluntary-Spot-V Dep-Enhanced - do not u,Bi-Borough Director of Integrated Care,"3,628.94"
03/02/2023,1248940,Special People,B*Voluntary-Spot-V Dep-Enhanced - do not u,Bi-Borough Director of Integrated Care,"1,153.46"
03/02/2023,1248940,Special People,B*Voluntary-Spot-V Dep-Enhanced - do not u,Bi-Borough Director of Integrated Care,"4,635.55"
13/02/2023,1248940,Special People,B*Voluntary-Spot-V Dep-Enhanced - do not u,Bi-Borough Director of Integrated Care,611.64
13/02/2023,1248940,Special People,B*Voluntary-Spot-V Dep-Enhanced - do not u,Bi-Borough Director of Integrated Care,633.6
07/03/2023,1248940,Special People,B*Voluntary-Spot-V Dep-Enhanced - do not u,Bi-Borough Director of Integrated Care,"3,002.57"
01/02/2023,1245620,Spencer & Arlington,,Bi-Borough Director of Integrated Care,"9,066.00"
01/02/2023,1245620,Spencer & Arlington,,Bi-Borough Director of Integrated Care,"9,066.00"
01/03/2023,1245620,Spencer & Arlington,,Bi-Borough Director of Integrated Care,"9,066.00"
01/03/2023,1245620,Spencer & Arlington,,Bi-Borough Director of Integrated Care,"9,066.00"
28/03/2023,1245620,Spencer & Arlington,,Bi-Borough Director of Integrated Care,"10,684.93"
28/03/2023,1245620,Spencer & Arlington,,Bi-Borough Director of Integrated Care,"10,684.93"
01/02/2023,1243543,Springlake Care Home Ltd,,Bi-Borough Director of Integrated Care,"5,400.00"
01/02/2023,1243543,Springlake Care Home Ltd,,Bi-Borough Director of Integrated Care,"6,800.00"
01/02/2023,1243543,Springlake Care Home Ltd,,Bi-Borough Director of Integrated Care,"6,000.00"
01/03/2023,1243543,Springlake Care Home Ltd,,Bi-Borough Director of Integrated Care,"6,000.00"
01/03/2023,1243543,Springlake Care Home Ltd,,Bi-Borough Director of Integrated Care,"5,400.00"
01/03/2023,1243543,Springlake Care Home Ltd,,Bi-Borough Director of Integrated Care,"6,800.00"
28/03/2023,1243543,Springlake Care Home Ltd,,Bi-Borough Director of Integrated Care,"7,071.43"
28/03/2023,1243543,Springlake Care Home Ltd,,Bi-Borough Director of Integrated Care,"8,014.29"
28/03/2023,1243543,Springlake Care Home Ltd,,Bi-Borough Director of Integrated Care,"6,364.29"
01/02/2023,1248948,St Davids Care In The Community,,Bi-Borough Director of Integrated Care,"3,132.56"
01/02/2023,1248948,St Davids Care In The Community,,Bi-Borough Director of Integrated Care,"3,440.00"
01/03/2023,1248948,St Davids Care In The Community,,Bi-Borough Director of Integrated Care,"3,132.56"
01/03/2023,1248948,St Davids Care In The Community,,Bi-Borough Director of Integrated Care,"3,440.00"
28/03/2023,1248948,St Davids Care In The Community,,Bi-Borough Director of Integrated Care,"3,691.95"
28/03/2023,1248948,St Davids Care In The Community,,Bi-Borough Director of Integrated Care,"4,054.29"
10/01/2023,1245825,Sweet Tree Home Care Services,,Bi-Borough Director of Integrated Care,"2,769.43"
07/03/2023,1245825,Sweet Tree Home Care Services,,Bi-Borough Director of Integrated Care,"4,168.69"
01/02/2023,1245900,The Grace Eyre Foundation,,Bi-Borough Director of Integrated Care,"3,290.16"
01/02/2023,1245900,The Grace Eyre Foundation,,Bi-Borough Director of Integrated Care,"4,235.96"
01/03/2023,1245900,The Grace Eyre Foundation,,Bi-Borough Director of Integrated Care,"4,235.96"
01/03/2023,1245900,The Grace Eyre Foundation,,Bi-Borough Director of Integrated Care,"3,290.16"
28/03/2023,1245900,The Grace Eyre Foundation,,Bi-Borough Director of Integrated Care,"3,877.69"
28/03/2023,1245900,The Grace Eyre Foundation,,Bi-Borough Director of Integrated Care,"4,992.38"
01/02/2023,1249156,The Wirral Autistic Society,,Bi-Borough Director of Integrated Care,"5,097.28"
01/03/2023,1249156,The Wirral Autistic Society,,Bi-Borough Director of Integrated Care,"5,097.28"
28/03/2023,1249156,The Wirral Autistic Society,,Bi-Borough Director of Integrated Care,"6,007.51"
01/02/2023,1246095,Theana Ltd T/a Enlighten Homes,,Bi-Borough Director of Integrated Care,"2,946.00"
01/02/2023,1246095,Theana Ltd T/a Enlighten Homes,,Bi-Borough Director of Integrated Care,"2,946.00"
01/03/2023,1246095,Theana Ltd T/a Enlighten Homes,,Bi-Borough Director of Integrated Care,"2,946.00"
01/03/2023,1246095,Theana Ltd T/a Enlighten Homes,,Bi-Borough Director of Integrated Care,"2,946.00"
28/03/2023,1246095,Theana Ltd T/a Enlighten Homes,,Bi-Borough Director of Integrated Care,"3,472.07"
28/03/2023,1246095,Theana Ltd T/a Enlighten Homes,,Bi-Borough Director of Integrated Care,"3,472.07"
13/03/2023,1287831,Touchstone Corporate Property Servi,Rent,Bi-Borough Director of Integrated Care,"1,306.08"
13/03/2023,1287831,Touchstone Corporate Property Servi,Rent,Bi-Borough Director of Integrated Care,"2,209.35"
01/02/2023,1287640,VIVID COMMUNITY CARE LTD,,Bi-Borough Director of Integrated Care,"15,311.52"
01/03/2023,1287640,VIVID COMMUNITY CARE LTD,,Bi-Borough Director of Integrated Care,"15,311.52"
28/03/2023,1287640,VIVID COMMUNITY CARE LTD,,Bi-Borough Director of Integrated Care,"18,045.72"
06/02/2023,1246168,Venus Healthcare Homes Ltd,,Bi-Borough Director of Integrated Care,"34,396.07"
30/03/2023,1249232,Vincentian Care Plus,,Bi-Borough Director of Integrated Care,633.39
01/02/2023,1243552,Vision Homes Association,,Bi-Borough Director of Integrated Care,"7,760.00"
01/03/2023,1243552,Vision Homes Association,,Bi-Borough Director of Integrated Care,"7,760.00"
28/03/2023,1243552,Vision Homes Association,,Bi-Borough Director of Integrated Care,"9,145.71"
01/02/2023,1243553,Voyage Care (Bridge House),,Bi-Borough Director of Integrated Care,"5,079.20"
01/02/2023,1243553,Voyage Care (Bridge House),,Bi-Borough Director of Integrated Care,"6,958.32"
01/02/2023,1243553,Voyage Care (Bridge House),,Bi-Borough Director of Integrated Care,"7,189.60"
01/03/2023,1243553,Voyage Care (Bridge House),,Bi-Borough Director of Integrated Care,"5,079.20"
01/03/2023,1243553,Voyage Care (Bridge House),,Bi-Borough Director of Integrated Care,"6,958.32"
01/03/2023,1243553,Voyage Care (Bridge House),,Bi-Borough Director of Integrated Care,"7,189.60"
28/03/2023,1243553,Voyage Care (Bridge House),,Bi-Borough Director of Integrated Care,"12,955.14"
28/03/2023,1243553,Voyage Care (Bridge House),,Bi-Borough Director of Integrated Care,"5,986.20"
28/03/2023,1243553,Voyage Care (Bridge House),,Bi-Borough Director of Integrated Care,"8,200.88"
01/02/2023,1243554,Voyage Care (Kenton House),,Bi-Borough Director of Integrated Care,"6,400.24"
01/03/2023,1243554,Voyage Care (Kenton House),,Bi-Borough Director of Integrated Care,"6,400.24"
28/03/2023,1243554,Voyage Care (Kenton House),,Bi-Borough Director of Integrated Care,"7,543.14"
09/01/2023,1249291,Westminster Society,B*Voluntary-Spot-V Dep-Enhanced - do not u,Bi-Borough Director of Integrated Care,809.6
09/01/2023,1249291,Westminster Society,B*Voluntary-Spot-V Dep-Enhanced - do not u,Bi-Borough Director of Integrated Care,"1,315.60"
09/01/2023,1249291,Westminster Society,B*Voluntary-Spot-V Dep-Enhanced - do not u,Bi-Borough Director of Integrated Care,"1,113.20"
09/01/2023,1249291,Westminster Society,B*Voluntary-Spot-V Dep-Enhanced - do not u,Bi-Borough Director of Integrated Care,"1,922.80"
09/01/2023,1249291,Westminster Society,B*Voluntary-Spot-V Dep-Enhanced - do not u,Bi-Borough Director of Integrated Care,"1,416.80"
09/01/2023,1249291,Westminster Society,B*Voluntary-Spot-V Dep-Enhanced - do not u,Bi-Borough Director of Integrated Care,506
09/01/2023,1249291,Westminster Society,B*Voluntary-Spot-V Dep-Enhanced - do not u,Bi-Borough Director of Integrated Care,910.8
09/01/2023,1249291,Westminster Society,B*Voluntary-Spot-V Dep-Enhanced - do not u,Bi-Borough Director of Integrated Care,"3,036.00"
09/01/2023,1249291,Westminster Society,B*Voluntary-Spot-V Dep-Enhanced - do not u,Bi-Borough Director of Integrated Care,809.6
09/01/2023,1249291,Westminster Society,B*Voluntary-Spot-V Dep-Enhanced - do not u,Bi-Borough Director of Integrated Care,708.4
09/01/2023,1249291,Westminster Society,B*Voluntary-Spot-V Dep-Enhanced - do not u,Bi-Borough Director of Integrated Care,"2,530.00"
09/01/2023,1249291,Westminster Society,B*Voluntary-Spot-V Dep-Enhanced - do not u,Bi-Borough Director of Integrated Care,971.52
09/01/2023,1249291,Westminster Society,B*Voluntary-Spot-V Dep-Enhanced - do not u,Bi-Borough Director of Integrated Care,"1,295.36"
09/01/2023,1249291,Westminster Society,B*Voluntary-Spot-V Dep-Enhanced - do not u,Bi-Borough Director of Integrated Care,"2,024.00"
09/01/2023,1249291,Westminster Society,B*Voluntary-Spot-V Dep-Enhanced - do not u,Bi-Borough Director of Integrated Care,647.68
09/01/2023,1249291,Westminster Society,B*Voluntary-Spot-V Dep-Enhanced - do not u,Bi-Borough Director of Integrated Care,647.68
09/01/2023,1249291,Westminster Society,B*Voluntary-Spot-V Dep-Enhanced - do not u,Bi-Borough Director of Integrated Care,809.6
09/01/2023,1249291,Westminster Society,B*Voluntary-Spot-V Dep-Enhanced - do not u,Bi-Borough Director of Integrated Care,"1,416.80"
09/01/2023,1249291,Westminster Society,B*Voluntary-Spot-V Dep-Enhanced - do not u,Bi-Borough Director of Integrated Care,607.2
09/01/2023,1249291,Westminster Society,B*Voluntary-Spot-V Dep-Enhanced - do not u,Bi-Borough Director of Integrated Care,910.8
09/01/2023,1249291,Westminster Society,B*Voluntary-Spot-V Dep-Enhanced - do not u,Bi-Borough Director of Integrated Care,"1,214.40"
09/01/2023,1249291,Westminster Society,B*Voluntary-Spot-V Dep-Enhanced - do not u,Bi-Borough Director of Integrated Care,"1,781.12"
09/01/2023,1249291,Westminster Society,B*Voluntary-Spot-V Dep-Enhanced - do not u,Bi-Borough Director of Integrated Care,809.6
09/01/2023,1249291,Westminster Society,B*Voluntary-Spot-V Dep-Enhanced - do not u,Bi-Borough Director of Integrated Care,"1,052.48"
09/01/2023,1249291,Westminster Society,B*Voluntary-Spot-V Dep-Enhanced - do not u,Bi-Borough Director of Integrated Care,890.56
09/01/2023,1249291,Westminster Society,B*Voluntary-Spot-V Dep-Enhanced - do not u,Bi-Borough Director of Integrated Care,"1,538.24"
09/01/2023,1249291,Westminster Society,B*Voluntary-Spot-V Dep-Enhanced - do not u,Bi-Borough Director of Integrated Care,809.6
09/01/2023,1249291,Westminster Society,B*Voluntary-Spot-V Dep-Enhanced - do not u,Bi-Borough Director of Integrated Care,728.64
09/01/2023,1249291,Westminster Society,B*Voluntary-Spot-V Dep-Enhanced - do not u,Bi-Borough Director of Integrated Care,"1,214.40"
09/01/2023,1249291,Westminster Society,B*Voluntary-Spot-V Dep-Enhanced - do not u,Bi-Borough Director of Integrated Care,566.72
09/01/2023,1249291,Westminster Society,B*Voluntary-Spot-V Dep-Enhanced - do not u,Bi-Borough Director of Integrated Care,"2,428.80"
09/01/2023,1249291,Westminster Society,B*Voluntary-Spot-V Dep-Enhanced - do not u,Bi-Borough Director of Integrated Care,"2,226.40"
09/01/2023,1249291,Westminster Society,B*Voluntary-Spot-V Dep-Enhanced - do not u,Bi-Borough Director of Integrated Care,"1,012.00"
09/01/2023,1249291,Westminster Society,B*Voluntary-Spot-V Dep-Enhanced - do not u,Bi-Borough Director of Integrated Care,"1,163.80"
09/01/2023,1249291,Westminster Society,B*Voluntary-Spot-V Dep-Enhanced - do not u,Bi-Borough Director of Integrated Care,"1,133.44"
09/01/2023,1249291,Westminster Society,B*Voluntary-Spot-V Dep-Enhanced - do not u,Bi-Borough Director of Integrated Care,"1,133.44"
16/01/2023,1249291,Westminster Society,B*Voluntary-Spot-V Dep-Enhanced - do not u,Bi-Borough Director of Integrated Care,728.64
16/01/2023,1249291,Westminster Society,B*Voluntary-Spot-V Dep-Enhanced - do not u,Bi-Borough Director of Integrated Care,647.68
16/01/2023,1249291,Westminster Society,B*Voluntary-Spot-V Dep-Enhanced - do not u,Bi-Borough Director of Integrated Care,647.68
16/01/2023,1249291,Westminster Society,B*Voluntary-Spot-V Dep-Enhanced - do not u,Bi-Borough Director of Integrated Care,647.68
16/01/2023,1249291,Westminster Society,B*Voluntary-Spot-V Dep-Enhanced - do not u,Bi-Borough Director of Integrated Care,647.68
16/01/2023,1249291,Westminster Society,B*Voluntary-Spot-V Dep-Enhanced - do not u,Bi-Borough Director of Integrated Care,"1,052.48"
16/01/2023,1249291,Westminster Society,B*Voluntary-Spot-V Dep-Enhanced - do not u,Bi-Borough Director of Integrated Care,890.56
16/01/2023,1249291,Westminster Society,B*Voluntary-Spot-V Dep-Enhanced - do not u,Bi-Borough Director of Integrated Care,"1,538.24"
16/01/2023,1249291,Westminster Society,B*Voluntary-Spot-V Dep-Enhanced - do not u,Bi-Borough Director of Integrated Care,"1,133.44"
16/01/2023,1249291,Westminster Society,B*Voluntary-Spot-V Dep-Enhanced - do not u,Bi-Borough Director of Integrated Care,"1,133.44"
17/01/2023,1249291,Westminster Society,B*Voluntary-Spot-V Dep-Enhanced - do not u,Bi-Borough Director of Integrated Care,728.64
17/01/2023,1249291,Westminster Society,B*Voluntary-Spot-V Dep-Enhanced - do not u,Bi-Borough Director of Integrated Care,566.72
17/01/2023,1249291,Westminster Society,B*Voluntary-Spot-V Dep-Enhanced - do not u,Bi-Borough Director of Integrated Care,"2,428.80"
17/01/2023,1249291,Westminster Society,B*Voluntary-Spot-V Dep-Enhanced - do not u,Bi-Borough Director of Integrated Care,"2,185.92"
17/01/2023,1249291,Westminster Society,B*Voluntary-Spot-V Dep-Enhanced - do not u,Bi-Borough Director of Integrated Care,"2,024.00"
17/01/2023,1249291,Westminster Society,B*Voluntary-Spot-V Dep-Enhanced - do not u,Bi-Borough Director of Integrated Care,"1,922.80"
17/01/2023,1249291,Westminster Society,B*Voluntary-Spot-V Dep-Enhanced - do not u,Bi-Borough Director of Integrated Care,809.6
23/01/2023,1249291,Westminster Society,Rent,Bi-Borough Director of Integrated Care,"3,643.20"
01/02/2023,1249291,Westminster Society,,Bi-Borough Director of Integrated Care,"4,533.76"
01/02/2023,1249291,Westminster Society,,Bi-Borough Director of Integrated Care,"8,824.64"
01/02/2023,1249291,Westminster Society,,Bi-Borough Director of Integrated Care,"1,664.88"
01/02/2023,1249291,Westminster Society,,Bi-Borough Director of Integrated Care,"2,995.52"
01/02/2023,1249291,Westminster Society,,Bi-Borough Director of Integrated Care,"2,509.76"
01/02/2023,1249291,Westminster Society,,Bi-Borough Director of Integrated Care,"2,185.92"
01/02/2023,1249291,Westminster Society,,Bi-Borough Director of Integrated Care,566.72
01/02/2023,1249291,Westminster Society,,Bi-Borough Director of Integrated Care,"1,133.44"
01/02/2023,1249291,Westminster Society,,Bi-Borough Director of Integrated Care,"4,230.16"
01/02/2023,1249291,Westminster Society,,Bi-Borough Director of Integrated Care,"6,416.08"
01/02/2023,1249291,Westminster Society,,Bi-Borough Director of Integrated Care,"1,133.44"
01/02/2023,1249291,Westminster Society,,Bi-Borough Director of Integrated Care,647.68
01/02/2023,1249291,Westminster Society,,Bi-Borough Director of Integrated Care,"1,133.44"
01/02/2023,1249291,Westminster Society,,Bi-Borough Director of Integrated Care,647.68
01/02/2023,1249291,Westminster Society,,Bi-Borough Director of Integrated Care,"3,076.48"
01/02/2023,1249291,Westminster Society,,Bi-Borough Director of Integrated Care,947.24
01/02/2023,1249291,Westminster Society,,Bi-Borough Director of Integrated Care,"2,266.88"
01/02/2023,1249291,Westminster Society,,Bi-Borough Director of Integrated Care,"1,335.84"
01/02/2023,1249291,Westminster Society,,Bi-Borough Director of Integrated Care,"3,683.68"
01/02/2023,1249291,Westminster Society,,Bi-Borough Director of Integrated Care,947.24
01/02/2023,1249291,Westminster Society,,Bi-Borough Director of Integrated Care,"2,185.92"
01/02/2023,1249291,Westminster Society,,Bi-Borough Director of Integrated Care,"1,133.44"
01/02/2023,1249291,Westminster Society,,Bi-Borough Director of Integrated Care,"3,319.36"
01/02/2023,1249291,Westminster Society,,Bi-Borough Director of Integrated Care,"3,683.68"
01/02/2023,1249291,Westminster Society,,Bi-Borough Director of Integrated Care,"2,914.56"
01/02/2023,1249291,Westminster Society,,Bi-Borough Director of Integrated Care,"4,614.72"
01/02/2023,1249291,Westminster Society,,Bi-Borough Director of Integrated Care,"3,886.08"
01/02/2023,1249291,Westminster Society,,Bi-Borough Director of Integrated Care,"2,266.88"
01/02/2023,1249291,Westminster Society,,Bi-Borough Director of Integrated Care,"7,270.20"
01/02/2023,1249291,Westminster Society,,Bi-Borough Director of Integrated Care,"2,833.60"
01/02/2023,1249291,Westminster Society,,Bi-Borough Director of Integrated Care,"5,019.52"
01/02/2023,1249291,Westminster Society,,Bi-Borough Director of Integrated Care,"5,181.44"
01/02/2023,1249291,Westminster Society,,Bi-Borough Director of Integrated Care,"1,173.92"
01/02/2023,1249291,Westminster Society,,Bi-Borough Director of Integrated Care,"2,833.60"
01/02/2023,1249291,Westminster Society,,Bi-Borough Director of Integrated Care,"2,752.64"
01/02/2023,1249291,Westminster Society,,Bi-Borough Director of Integrated Care,"6,800.64"
01/02/2023,1249291,Westminster Society,,Bi-Borough Director of Integrated Care,"2,266.88"
01/02/2023,1249291,Westminster Society,,Bi-Borough Director of Integrated Care,738.96
01/02/2023,1249291,Westminster Society,,Bi-Borough Director of Integrated Care,"9,779.96"
01/02/2023,1249291,Westminster Society,,Bi-Borough Director of Integrated Care,"9,294.20"
01/02/2023,1249291,Westminster Society,,Bi-Borough Director of Integrated Care,738.96
01/02/2023,1249291,Westminster Society,,Bi-Borough Director of Integrated Care,"2,266.88"
01/02/2023,1249291,Westminster Society,,Bi-Borough Director of Integrated Care,"2,833.60"
01/02/2023,1249291,Westminster Society,,Bi-Borough Director of Integrated Care,738.96
01/02/2023,1249291,Westminster Society,,Bi-Borough Director of Integrated Care,"8,670.80"
01/02/2023,1249291,Westminster Society,,Bi-Borough Director of Integrated Care,"4,128.96"
01/02/2023,1249291,Westminster Society,,Bi-Borough Director of Integrated Care,"1,133.44"
01/02/2023,1249291,Westminster Society,,Bi-Borough Director of Integrated Care,"6,173.20"
01/02/2023,1249291,Westminster Society,,Bi-Borough Director of Integrated Care,"1,133.44"
01/02/2023,1249291,Westminster Society,,Bi-Borough Director of Integrated Care,"1,133.44"
01/02/2023,1249291,Westminster Society,,Bi-Borough Director of Integrated Care,"1,781.12"
01/02/2023,1249291,Westminster Society,,Bi-Borough Director of Integrated Care,"2,428.80"
01/02/2023,1249291,Westminster Society,,Bi-Borough Director of Integrated Care,"6,557.76"
01/02/2023,1249291,Westminster Society,,Bi-Borough Director of Integrated Care,947.24
01/02/2023,1249291,Westminster Society,,Bi-Borough Director of Integrated Care,"4,541.84"
01/02/2023,1249291,Westminster Society,,Bi-Borough Director of Integrated Care,"2,266.88"
01/02/2023,1249291,Westminster Society,,Bi-Borough Director of Integrated Care,554.16
01/02/2023,1249291,Westminster Society,,Bi-Borough Director of Integrated Care,"2,024.00"
01/02/2023,1249291,Westminster Society,,Bi-Borough Director of Integrated Care,554.16
01/02/2023,1249291,Westminster Society,,Bi-Borough Director of Integrated Care,"3,116.96"
01/02/2023,1249291,Westminster Society,,Bi-Borough Director of Integrated Care,"6,233.92"
01/02/2023,1249291,Westminster Society,,Bi-Borough Director of Integrated Care,554.16
01/02/2023,1249291,Westminster Society,,Bi-Borough Director of Integrated Care,"1,481.56"
01/02/2023,1249291,Westminster Society,,Bi-Borough Director of Integrated Care,"1,481.56"
01/02/2023,1249291,Westminster Society,,Bi-Borough Director of Integrated Care,566.72
01/02/2023,1249291,Westminster Society,,Bi-Borough Director of Integrated Care,566.72
01/02/2023,1249291,Westminster Society,,Bi-Borough Director of Integrated Care,"2,266.88"
01/02/2023,1249291,Westminster Society,,Bi-Borough Director of Integrated Care,"4,371.84"
01/02/2023,1249291,Westminster Society,,Bi-Borough Director of Integrated Care,"7,594.04"
01/02/2023,1249291,Westminster Society,,Bi-Borough Director of Integrated Care,"2,266.88"
01/02/2023,1249291,Westminster Society,,Bi-Borough Director of Integrated Care,"6,598.24"
01/02/2023,1249291,Westminster Society,,Bi-Borough Director of Integrated Care,947.24
01/02/2023,1249291,Westminster Society,,Bi-Borough Director of Integrated Care,"4,128.96"
01/02/2023,1249291,Westminster Society,,Bi-Borough Director of Integrated Care,"3,238.40"
01/02/2023,1249291,Westminster Society,,Bi-Borough Director of Integrated Care,"3,124.19"
01/02/2023,1249291,Westminster Society,,Bi-Borough Director of Integrated Care,"1,664.88"
01/02/2023,1249291,Westminster Society,,Bi-Borough Director of Integrated Care,"10,039.04"
01/02/2023,1249291,Westminster Society,,Bi-Borough Director of Integrated Care,554.16
01/02/2023,1249291,Westminster Society,,Bi-Borough Director of Integrated Care,"2,266.88"
01/02/2023,1249291,Westminster Society,,Bi-Borough Director of Integrated Care,647.68
01/02/2023,1249291,Westminster Society,,Bi-Borough Director of Integrated Care,"2,509.76"
01/02/2023,1249291,Westminster Society,,Bi-Borough Director of Integrated Care,931.04
01/02/2023,1249291,Westminster Society,,Bi-Borough Director of Integrated Care,"3,076.48"
01/02/2023,1249291,Westminster Society,,Bi-Borough Director of Integrated Care,"5,124.76"
01/02/2023,1249291,Westminster Society,,Bi-Borough Director of Integrated Care,"4,541.84"
01/02/2023,1249291,Westminster Society,,Bi-Borough Director of Integrated Care,947.24
01/02/2023,1249291,Westminster Society,,Bi-Borough Director of Integrated Care,947.24
01/02/2023,1249291,Westminster Society,,Bi-Borough Director of Integrated Care,"5,084.28"
01/02/2023,1249291,Westminster Society,,Bi-Borough Director of Integrated Care,"2,671.68"
01/02/2023,1249291,Westminster Society,,Bi-Borough Director of Integrated Care,"2,671.68"
01/02/2023,1249291,Westminster Society,,Bi-Borough Director of Integrated Care,"2,347.84"
01/02/2023,1249291,Westminster Society,,Bi-Borough Director of Integrated Care,"6,517.28"
01/02/2023,1249291,Westminster Society,,Bi-Borough Director of Integrated Care,"1,133.44"
01/02/2023,1249291,Westminster Society,,Bi-Borough Director of Integrated Care,"1,416.80"
01/02/2023,1249291,Westminster Society,,Bi-Borough Director of Integrated Care,947.24
01/02/2023,1249291,Westminster Society,,Bi-Borough Director of Integrated Care,"4,392.08"
01/02/2023,1249291,Westminster Society,,Bi-Borough Director of Integrated Care,"2,833.60"
01/02/2023,1249291,Westminster Society,,Bi-Borough Director of Integrated Care,"8,553.44"
01/02/2023,1249291,Westminster Society,,Bi-Borough Director of Integrated Care,738.96
01/02/2023,1249291,Westminster Society,,Bi-Borough Director of Integrated Care,"5,667.20"
01/02/2023,1249291,Westminster Society,,Bi-Borough Director of Integrated Care,554.16
01/02/2023,1249291,Westminster Society,,Bi-Borough Director of Integrated Care,554.16
01/02/2023,1249291,Westminster Society,,Bi-Borough Director of Integrated Care,"3,076.48"
01/02/2023,1249291,Westminster Society,,Bi-Borough Director of Integrated Care,"4,048.00"
01/02/2023,1249291,Westminster Society,,Bi-Borough Director of Integrated Care,"1,664.88"
01/02/2023,1249291,Westminster Society,,Bi-Borough Director of Integrated Care,647.68
01/02/2023,1249291,Westminster Society,,Bi-Borough Director of Integrated Care,"9,634.24"
01/02/2023,1249291,Westminster Society,,Bi-Borough Director of Integrated Care,947.24
01/02/2023,1249291,Westminster Society,,Bi-Borough Director of Integrated Care,947.24
01/02/2023,1249291,Westminster Society,,Bi-Borough Director of Integrated Care,"6,687.28"
01/02/2023,1249291,Westminster Society,,Bi-Borough Director of Integrated Care,947.24
01/02/2023,1249291,Westminster Society,,Bi-Borough Director of Integrated Care,"6,865.40"
03/02/2023,1249291,Westminster Society,B*Voluntary-Spot-V Dep-Enhanced - do not u,Bi-Borough Director of Integrated Care,"2,185.92"
03/02/2023,1249291,Westminster Society,B*Voluntary-Spot-V Dep-Enhanced - do not u,Bi-Borough Director of Integrated Care,"2,732.40"
21/02/2023,1249291,Westminster Society,B*Voluntary-Spot-V Dep-Enhanced - do not u,Bi-Borough Director of Integrated Care,"1,052.48"
21/02/2023,1249291,Westminster Society,B*Voluntary-Spot-V Dep-Enhanced - do not u,Bi-Borough Director of Integrated Care,890.56
21/02/2023,1249291,Westminster Society,B*Voluntary-Spot-V Dep-Enhanced - do not u,Bi-Borough Director of Integrated Care,"1,538.24"
21/02/2023,1249291,Westminster Society,B*Voluntary-Spot-V Dep-Enhanced - do not u,Bi-Borough Director of Integrated Care,809.6
21/02/2023,1249291,Westminster Society,B*Voluntary-Spot-V Dep-Enhanced - do not u,Bi-Borough Director of Integrated Care,"2,024.00"
21/02/2023,1249291,Westminster Society,B*Voluntary-Spot-V Dep-Enhanced - do not u,Bi-Borough Director of Integrated Care,"2,428.80"
21/02/2023,1249291,Westminster Society,B*Voluntary-Spot-V Dep-Enhanced - do not u,Bi-Borough Director of Integrated Care,"1,133.44"
21/02/2023,1249291,Westminster Society,B*Voluntary-Spot-V Dep-Enhanced - do not u,Bi-Borough Director of Integrated Care,"2,104.96"
21/02/2023,1249291,Westminster Society,B*Voluntary-Spot-V Dep-Enhanced - do not u,Bi-Borough Director of Integrated Care,647.68
21/02/2023,1249291,Westminster Society,B*Voluntary-Spot-V Dep-Enhanced - do not u,Bi-Borough Director of Integrated Care,647.68
21/02/2023,1249291,Westminster Society,B*Voluntary-Spot-V Dep-Enhanced - do not u,Bi-Borough Director of Integrated Care,"1,133.44"
21/02/2023,1249291,Westminster Society,B*Voluntary-Spot-V Dep-Enhanced - do not u,Bi-Borough Director of Integrated Care,647.68
21/02/2023,1249291,Westminster Society,B*Voluntary-Spot-V Dep-Enhanced - do not u,Bi-Borough Director of Integrated Care,"2,024.00"
21/02/2023,1249291,Westminster Society,B*Voluntary-Spot-V Dep-Enhanced - do not u,Bi-Borough Director of Integrated Care,971.52
21/02/2023,1249291,Westminster Society,B*Voluntary-Spot-V Dep-Enhanced - do not u,Bi-Borough Director of Integrated Care,728.64
21/02/2023,1249291,Westminster Society,B*Voluntary-Spot-V Dep-Enhanced - do not u,Bi-Borough Director of Integrated Care,728.64
21/02/2023,1249291,Westminster Society,B*Voluntary-Spot-V Dep-Enhanced - do not u,Bi-Borough Director of Integrated Care,566.72
01/03/2023,1249291,Westminster Society,,Bi-Borough Director of Integrated Care,"4,533.76"
01/03/2023,1249291,Westminster Society,,Bi-Borough Director of Integrated Care,"1,664.88"
01/03/2023,1249291,Westminster Society,,Bi-Borough Director of Integrated Care,"8,824.64"
01/03/2023,1249291,Westminster Society,,Bi-Borough Director of Integrated Care,"2,995.52"
01/03/2023,1249291,Westminster Society,,Bi-Borough Director of Integrated Care,"2,509.76"
01/03/2023,1249291,Westminster Society,,Bi-Borough Director of Integrated Care,"2,185.92"
01/03/2023,1249291,Westminster Society,,Bi-Borough Director of Integrated Care,566.72
01/03/2023,1249291,Westminster Society,,Bi-Borough Director of Integrated Care,"4,230.16"
01/03/2023,1249291,Westminster Society,,Bi-Borough Director of Integrated Care,"1,133.44"
01/03/2023,1249291,Westminster Society,,Bi-Borough Director of Integrated Care,"1,133.44"
01/03/2023,1249291,Westminster Society,,Bi-Borough Director of Integrated Care,"6,416.08"
01/03/2023,1249291,Westminster Society,,Bi-Borough Director of Integrated Care,647.68
01/03/2023,1249291,Westminster Society,,Bi-Borough Director of Integrated Care,"1,133.44"
01/03/2023,1249291,Westminster Society,,Bi-Borough Director of Integrated Care,647.68
01/03/2023,1249291,Westminster Society,,Bi-Borough Director of Integrated Care,947.24
01/03/2023,1249291,Westminster Society,,Bi-Borough Director of Integrated Care,"2,266.88"
01/03/2023,1249291,Westminster Society,,Bi-Borough Director of Integrated Care,"1,335.84"
01/03/2023,1249291,Westminster Society,,Bi-Borough Director of Integrated Care,947.24
01/03/2023,1249291,Westminster Society,,Bi-Borough Director of Integrated Care,"3,683.68"
01/03/2023,1249291,Westminster Society,,Bi-Borough Director of Integrated Care,"2,671.68"
01/03/2023,1249291,Westminster Society,,Bi-Borough Director of Integrated Care,"2,671.68"
01/03/2023,1249291,Westminster Society,,Bi-Borough Director of Integrated Care,"2,347.84"
01/03/2023,1249291,Westminster Society,,Bi-Borough Director of Integrated Care,"1,133.44"
01/03/2023,1249291,Westminster Society,,Bi-Borough Director of Integrated Care,"6,517.28"
01/03/2023,1249291,Westminster Society,,Bi-Borough Director of Integrated Care,"1,416.80"
01/03/2023,1249291,Westminster Society,,Bi-Borough Director of Integrated Care,947.24
01/03/2023,1249291,Westminster Society,,Bi-Borough Director of Integrated Care,"5,100.48"
01/03/2023,1249291,Westminster Society,,Bi-Borough Director of Integrated Care,"4,392.08"
01/03/2023,1249291,Westminster Society,,Bi-Borough Director of Integrated Care,738.96
01/03/2023,1249291,Westminster Society,,Bi-Borough Director of Integrated Care,"2,833.60"
01/03/2023,1249291,Westminster Society,,Bi-Borough Director of Integrated Care,"8,553.44"
01/03/2023,1249291,Westminster Society,,Bi-Borough Director of Integrated Care,"5,667.20"
01/03/2023,1249291,Westminster Society,,Bi-Borough Director of Integrated Care,554.16
01/03/2023,1249291,Westminster Society,,Bi-Borough Director of Integrated Care,"2,185.92"
01/03/2023,1249291,Westminster Society,,Bi-Borough Director of Integrated Care,"1,133.44"
01/03/2023,1249291,Westminster Society,,Bi-Borough Director of Integrated Care,"3,319.36"
01/03/2023,1249291,Westminster Society,,Bi-Borough Director of Integrated Care,"3,683.68"
01/03/2023,1249291,Westminster Society,,Bi-Borough Director of Integrated Care,"2,914.56"
01/03/2023,1249291,Westminster Society,,Bi-Borough Director of Integrated Care,"4,614.72"
01/03/2023,1249291,Westminster Society,,Bi-Borough Director of Integrated Care,"3,886.08"
01/03/2023,1249291,Westminster Society,,Bi-Borough Director of Integrated Care,"2,266.88"
01/03/2023,1249291,Westminster Society,,Bi-Borough Director of Integrated Care,"7,270.20"
01/03/2023,1249291,Westminster Society,,Bi-Borough Director of Integrated Care,"2,833.60"
01/03/2023,1249291,Westminster Society,,Bi-Borough Director of Integrated Care,"5,019.52"
01/03/2023,1249291,Westminster Society,,Bi-Borough Director of Integrated Care,"5,181.44"
01/03/2023,1249291,Westminster Society,,Bi-Borough Director of Integrated Care,"1,173.92"
01/03/2023,1249291,Westminster Society,,Bi-Borough Director of Integrated Care,"2,833.60"
01/03/2023,1249291,Westminster Society,,Bi-Borough Director of Integrated Care,"2,752.64"
01/03/2023,1249291,Westminster Society,,Bi-Borough Director of Integrated Care,"6,800.64"
01/03/2023,1249291,Westminster Society,,Bi-Borough Director of Integrated Care,"9,779.96"
01/03/2023,1249291,Westminster Society,,Bi-Borough Director of Integrated Care,738.96
01/03/2023,1249291,Westminster Society,,Bi-Borough Director of Integrated Care,"2,266.88"
01/03/2023,1249291,Westminster Society,,Bi-Borough Director of Integrated Care,"2,266.88"
01/03/2023,1249291,Westminster Society,,Bi-Borough Director of Integrated Care,738.96
01/03/2023,1249291,Westminster Society,,Bi-Borough Director of Integrated Care,"9,294.20"
01/03/2023,1249291,Westminster Society,,Bi-Borough Director of Integrated Care,"8,670.80"
01/03/2023,1249291,Westminster Society,,Bi-Borough Director of Integrated Care,738.96
01/03/2023,1249291,Westminster Society,,Bi-Borough Director of Integrated Care,"2,833.60"
01/03/2023,1249291,Westminster Society,,Bi-Borough Director of Integrated Care,"4,128.96"
01/03/2023,1249291,Westminster Society,,Bi-Borough Director of Integrated Care,"1,133.44"
01/03/2023,1249291,Westminster Society,,Bi-Borough Director of Integrated Care,"6,173.20"
01/03/2023,1249291,Westminster Society,,Bi-Borough Director of Integrated Care,"1,133.44"
01/03/2023,1249291,Westminster Society,,Bi-Borough Director of Integrated Care,"1,133.44"
01/03/2023,1249291,Westminster Society,,Bi-Borough Director of Integrated Care,"1,781.12"
01/03/2023,1249291,Westminster Society,,Bi-Borough Director of Integrated Care,"2,428.80"
01/03/2023,1249291,Westminster Society,,Bi-Borough Director of Integrated Care,947.24
01/03/2023,1249291,Westminster Society,,Bi-Borough Director of Integrated Care,"4,541.84"
01/03/2023,1249291,Westminster Society,,Bi-Borough Director of Integrated Care,"2,266.88"
01/03/2023,1249291,Westminster Society,,Bi-Borough Director of Integrated Care,554.16
01/03/2023,1249291,Westminster Society,,Bi-Borough Director of Integrated Care,554.16
01/03/2023,1249291,Westminster Society,,Bi-Borough Director of Integrated Care,"2,024.00"
01/03/2023,1249291,Westminster Society,,Bi-Borough Director of Integrated Care,"3,116.96"
01/03/2023,1249291,Westminster Society,,Bi-Borough Director of Integrated Care,"6,233.92"
01/03/2023,1249291,Westminster Society,,Bi-Borough Director of Integrated Care,554.16
01/03/2023,1249291,Westminster Society,,Bi-Borough Director of Integrated Care,"1,481.56"
01/03/2023,1249291,Westminster Society,,Bi-Borough Director of Integrated Care,"1,481.56"
01/03/2023,1249291,Westminster Society,,Bi-Borough Director of Integrated Care,566.72
01/03/2023,1249291,Westminster Society,,Bi-Borough Director of Integrated Care,566.72
01/03/2023,1249291,Westminster Society,,Bi-Borough Director of Integrated Care,"2,266.88"
01/03/2023,1249291,Westminster Society,,Bi-Borough Director of Integrated Care,"4,371.84"
01/03/2023,1249291,Westminster Society,,Bi-Borough Director of Integrated Care,"2,266.88"
01/03/2023,1249291,Westminster Society,,Bi-Borough Director of Integrated Care,"7,594.04"
01/03/2023,1249291,Westminster Society,,Bi-Borough Director of Integrated Care,"6,598.24"
01/03/2023,1249291,Westminster Society,,Bi-Borough Director of Integrated Care,947.24
01/03/2023,1249291,Westminster Society,,Bi-Borough Director of Integrated Care,"4,128.96"
01/03/2023,1249291,Westminster Society,,Bi-Borough Director of Integrated Care,"3,238.40"
01/03/2023,1249291,Westminster Society,,Bi-Borough Director of Integrated Care,"3,116.96"
01/03/2023,1249291,Westminster Society,,Bi-Borough Director of Integrated Care,"1,664.88"
01/03/2023,1249291,Westminster Society,,Bi-Borough Director of Integrated Care,"10,039.04"
01/03/2023,1249291,Westminster Society,,Bi-Borough Director of Integrated Care,554.16
01/03/2023,1249291,Westminster Society,,Bi-Borough Director of Integrated Care,"2,266.88"
01/03/2023,1249291,Westminster Society,,Bi-Borough Director of Integrated Care,647.68
01/03/2023,1249291,Westminster Society,,Bi-Borough Director of Integrated Care,"2,509.76"
01/03/2023,1249291,Westminster Society,,Bi-Borough Director of Integrated Care,931.04
01/03/2023,1249291,Westminster Society,,Bi-Borough Director of Integrated Care,"5,124.76"
01/03/2023,1249291,Westminster Society,,Bi-Borough Director of Integrated Care,947.24
01/03/2023,1249291,Westminster Society,,Bi-Borough Director of Integrated Care,"4,541.84"
01/03/2023,1249291,Westminster Society,,Bi-Borough Director of Integrated Care,947.24
01/03/2023,1249291,Westminster Society,,Bi-Borough Director of Integrated Care,"5,084.28"
01/03/2023,1249291,Westminster Society,,Bi-Borough Director of Integrated Care,"3,076.48"
01/03/2023,1249291,Westminster Society,,Bi-Borough Director of Integrated Care,554.16
01/03/2023,1249291,Westminster Society,,Bi-Borough Director of Integrated Care,"4,048.00"
01/03/2023,1249291,Westminster Society,,Bi-Borough Director of Integrated Care,"1,664.88"
01/03/2023,1249291,Westminster Society,,Bi-Borough Director of Integrated Care,647.68
01/03/2023,1249291,Westminster Society,,Bi-Borough Director of Integrated Care,947.24
01/03/2023,1249291,Westminster Society,,Bi-Borough Director of Integrated Care,"9,634.24"
01/03/2023,1249291,Westminster Society,,Bi-Borough Director of Integrated Care,947.24
01/03/2023,1249291,Westminster Society,,Bi-Borough Director of Integrated Care,"6,687.28"
01/03/2023,1249291,Westminster Society,,Bi-Borough Director of Integrated Care,947.24
01/03/2023,1249291,Westminster Society,,Bi-Borough Director of Integrated Care,"6,865.40"
01/03/2023,1249291,Westminster Society,,Bi-Borough Director of Integrated Care,"3,076.48"
01/03/2023,1249291,Westminster Society,,Bi-Borough Director of Integrated Care,"3,076.48"
10/03/2023,1249291,Westminster Society,Rent,Bi-Borough Director of Integrated Care,"1,922.80"
10/03/2023,1249291,Westminster Society,Rent,Bi-Borough Director of Integrated Care,"1,821.60"
10/03/2023,1249291,Westminster Society,Rent,Bi-Borough Director of Integrated Care,"10,423.60"
10/03/2023,1249291,Westminster Society,Rent,Bi-Borough Director of Integrated Care,"12,578.64"
10/03/2023,1249291,Westminster Society,Rent,Bi-Borough Director of Integrated Care,"8,804.40"
21/03/2023,1249291,Westminster Society,Rent,Bi-Borough Director of Integrated Care,"12,169.36"
28/03/2023,1249291,Westminster Society,,Bi-Borough Director of Integrated Care,"5,343.36"
28/03/2023,1249291,Westminster Society,,Bi-Borough Director of Integrated Care,"10,400.47"
28/03/2023,1249291,Westminster Society,,Bi-Borough Director of Integrated Care,"1,962.18"
28/03/2023,1249291,Westminster Society,,Bi-Borough Director of Integrated Care,"2,957.93"
28/03/2023,1249291,Westminster Society,,Bi-Borough Director of Integrated Care,"3,530.43"
28/03/2023,1249291,Westminster Society,,Bi-Borough Director of Integrated Care,"2,576.26"
28/03/2023,1249291,Westminster Society,,Bi-Borough Director of Integrated Care,667.92
28/03/2023,1249291,Westminster Society,,Bi-Borough Director of Integrated Care,"1,335.84"
28/03/2023,1249291,Westminster Society,,Bi-Borough Director of Integrated Care,"7,561.81"
28/03/2023,1249291,Westminster Society,,Bi-Borough Director of Integrated Care,"1,335.84"
28/03/2023,1249291,Westminster Society,,Bi-Borough Director of Integrated Care,"4,985.55"
28/03/2023,1249291,Westminster Society,,Bi-Borough Director of Integrated Care,"1,335.84"
28/03/2023,1249291,Westminster Society,,Bi-Borough Director of Integrated Care,763.34
28/03/2023,1249291,Westminster Society,,Bi-Borough Director of Integrated Care,763.34
28/03/2023,1249291,Westminster Society,,Bi-Borough Director of Integrated Care,"3,625.85"
28/03/2023,1249291,Westminster Society,,Bi-Borough Director of Integrated Care,560.62
28/03/2023,1249291,Westminster Society,,Bi-Borough Director of Integrated Care,"1,813.20"
28/03/2023,1249291,Westminster Society,,Bi-Borough Director of Integrated Care,"2,671.68"
28/03/2023,1249291,Westminster Society,,Bi-Borough Director of Integrated Care,"1,116.39"
28/03/2023,1249291,Westminster Society,,Bi-Borough Director of Integrated Care,"1,574.38"
28/03/2023,1249291,Westminster Society,,Bi-Borough Director of Integrated Care,"1,813.20"
28/03/2023,1249291,Westminster Society,,Bi-Borough Director of Integrated Care,"4,341.48"
28/03/2023,1249291,Westminster Society,,Bi-Borough Director of Integrated Care,"1,116.39"
28/03/2023,1249291,Westminster Society,,Bi-Borough Director of Integrated Care,"2,576.26"
28/03/2023,1249291,Westminster Society,,Bi-Borough Director of Integrated Care,"1,335.84"
28/03/2023,1249291,Westminster Society,,Bi-Borough Director of Integrated Care,"3,435.02"
28/03/2023,1249291,Westminster Society,,Bi-Borough Director of Integrated Care,"4,341.48"
28/03/2023,1249291,Westminster Society,,Bi-Borough Director of Integrated Care,"3,912.10"
28/03/2023,1249291,Westminster Society,,Bi-Borough Director of Integrated Care,"4,580.02"
28/03/2023,1249291,Westminster Society,,Bi-Borough Director of Integrated Care,"5,438.78"
28/03/2023,1249291,Westminster Society,,Bi-Borough Director of Integrated Care,"2,671.68"
28/03/2023,1249291,Westminster Society,,Bi-Borough Director of Integrated Care,"8,568.45"
28/03/2023,1249291,Westminster Society,,Bi-Borough Director of Integrated Care,"3,339.60"
28/03/2023,1249291,Westminster Society,,Bi-Borough Director of Integrated Care,"5,915.86"
28/03/2023,1249291,Westminster Society,,Bi-Borough Director of Integrated Care,"6,106.70"
28/03/2023,1249291,Westminster Society,,Bi-Borough Director of Integrated Care,"1,383.55"
28/03/2023,1249291,Westminster Society,,Bi-Borough Director of Integrated Care,"3,339.60"
28/03/2023,1249291,Westminster Society,,Bi-Borough Director of Integrated Care,"3,244.18"
28/03/2023,1249291,Westminster Society,,Bi-Borough Director of Integrated Care,"8,015.04"
28/03/2023,1249291,Westminster Society,,Bi-Borough Director of Integrated Care,"2,671.68"
28/03/2023,1249291,Westminster Society,,Bi-Borough Director of Integrated Care,870.92
28/03/2023,1249291,Westminster Society,,Bi-Borough Director of Integrated Care,"10,953.88"
28/03/2023,1249291,Westminster Society,,Bi-Borough Director of Integrated Care,"11,526.38"
28/03/2023,1249291,Westminster Society,,Bi-Borough Director of Integrated Care,870.92
28/03/2023,1249291,Westminster Society,,Bi-Borough Director of Integrated Care,"2,671.68"
28/03/2023,1249291,Westminster Society,,Bi-Borough Director of Integrated Care,"3,339.60"
28/03/2023,1249291,Westminster Society,,Bi-Borough Director of Integrated Care,870.92
28/03/2023,1249291,Westminster Society,,Bi-Borough Director of Integrated Care,"10,219.16"
28/03/2023,1249291,Westminster Society,,Bi-Borough Director of Integrated Care,"4,866.27"
28/03/2023,1249291,Westminster Society,,Bi-Borough Director of Integrated Care,"1,335.84"
28/03/2023,1249291,Westminster Society,,Bi-Borough Director of Integrated Care,809.6
28/03/2023,1249291,Westminster Society,,Bi-Borough Director of Integrated Care,"4,409.43"
28/03/2023,1249291,Westminster Society,,Bi-Borough Director of Integrated Care,"1,335.84"
28/03/2023,1249291,Westminster Society,,Bi-Borough Director of Integrated Care,"2,862.51"
28/03/2023,1249291,Westminster Society,,Bi-Borough Director of Integrated Care,"2,099.18"
28/03/2023,1249291,Westminster Society,,Bi-Borough Director of Integrated Care,"1,813.20"
28/03/2023,1249291,Westminster Society,,Bi-Borough Director of Integrated Care,"5,352.88"
28/03/2023,1249291,Westminster Society,,Bi-Borough Director of Integrated Care,"1,116.39"
28/03/2023,1249291,Westminster Society,,Bi-Borough Director of Integrated Care,"2,385.43"
28/03/2023,1249291,Westminster Society,,Bi-Borough Director of Integrated Care,653.12
28/03/2023,1249291,Westminster Society,,Bi-Borough Director of Integrated Care,653.12
28/03/2023,1249291,Westminster Society,,Bi-Borough Director of Integrated Care,"2,671.68"
28/03/2023,1249291,Westminster Society,,Bi-Borough Director of Integrated Care,"3,673.56"
28/03/2023,1249291,Westminster Society,,Bi-Borough Director of Integrated Care,"7,347.12"
28/03/2023,1249291,Westminster Society,,Bi-Borough Director of Integrated Care,653.12
28/03/2023,1249291,Westminster Society,,Bi-Borough Director of Integrated Care,"1,746.12"
28/03/2023,1249291,Westminster Society,,Bi-Borough Director of Integrated Care,"1,746.12"
28/03/2023,1249291,Westminster Society,,Bi-Borough Director of Integrated Care,667.92
28/03/2023,1249291,Westminster Society,,Bi-Borough Director of Integrated Care,667.92
28/03/2023,1249291,Westminster Society,,Bi-Borough Director of Integrated Care,"5,152.53"
28/03/2023,1249291,Westminster Society,,Bi-Borough Director of Integrated Care,"2,671.68"
28/03/2023,1249291,Westminster Society,,Bi-Borough Director of Integrated Care,"1,116.39"
28/03/2023,1249291,Westminster Society,,Bi-Borough Director of Integrated Care,"7,776.50"
28/03/2023,1249291,Westminster Society,,Bi-Borough Director of Integrated Care,"1,813.20"
28/03/2023,1249291,Westminster Society,,Bi-Borough Director of Integrated Care,"4,866.27"
28/03/2023,1249291,Westminster Society,,Bi-Borough Director of Integrated Care,"3,816.69"
28/03/2023,1249291,Westminster Society,,Bi-Borough Director of Integrated Care,"3,673.56"
28/03/2023,1249291,Westminster Society,,Bi-Borough Director of Integrated Care,653.12
28/03/2023,1249291,Westminster Society,,Bi-Borough Director of Integrated Care,"11,831.73"
28/03/2023,1249291,Westminster Society,,Bi-Borough Director of Integrated Care,"1,962.18"
28/03/2023,1249291,Westminster Society,,Bi-Borough Director of Integrated Care,"2,671.68"
28/03/2023,1249291,Westminster Society,,Bi-Borough Director of Integrated Care,763.34
28/03/2023,1249291,Westminster Society,,Bi-Borough Director of Integrated Care,"2,957.93"
28/03/2023,1249291,Westminster Society,,Bi-Borough Director of Integrated Care,"1,097.30"
28/03/2023,1249291,Westminster Society,,Bi-Borough Director of Integrated Care,560.62
28/03/2023,1249291,Westminster Society,,Bi-Borough Director of Integrated Care,"3,625.85"
28/03/2023,1249291,Westminster Society,,Bi-Borough Director of Integrated Care,"6,039.90"
28/03/2023,1249291,Westminster Society,,Bi-Borough Director of Integrated Care,"1,116.39"
28/03/2023,1249291,Westminster Society,,Bi-Borough Director of Integrated Care,"1,813.20"
28/03/2023,1249291,Westminster Society,,Bi-Borough Director of Integrated Care,"5,352.88"
28/03/2023,1249291,Westminster Society,,Bi-Borough Director of Integrated Care,"5,992.19"
28/03/2023,1249291,Westminster Society,,Bi-Borough Director of Integrated Care,"1,116.39"
28/03/2023,1249291,Westminster Society,,Bi-Borough Director of Integrated Care,"3,148.77"
28/03/2023,1249291,Westminster Society,,Bi-Borough Director of Integrated Care,"3,148.77"
28/03/2023,1249291,Westminster Society,,Bi-Borough Director of Integrated Care,"2,767.10"
28/03/2023,1249291,Westminster Society,,Bi-Borough Director of Integrated Care,"1,335.84"
28/03/2023,1249291,Westminster Society,,Bi-Borough Director of Integrated Care,"7,681.08"
28/03/2023,1249291,Westminster Society,,Bi-Borough Director of Integrated Care,"1,669.80"
28/03/2023,1249291,Westminster Society,,Bi-Borough Director of Integrated Care,572.5
28/03/2023,1249291,Westminster Society,,Bi-Borough Director of Integrated Care,"1,808.27"
28/03/2023,1249291,Westminster Society,,Bi-Borough Director of Integrated Care,"6,011.28"
28/03/2023,1249291,Westminster Society,,Bi-Borough Director of Integrated Care,"1,116.39"
28/03/2023,1249291,Westminster Society,,Bi-Borough Director of Integrated Care,"5,176.38"
28/03/2023,1249291,Westminster Society,,Bi-Borough Director of Integrated Care,"3,339.60"
28/03/2023,1249291,Westminster Society,,Bi-Borough Director of Integrated Care,870.92
28/03/2023,1249291,Westminster Society,,Bi-Borough Director of Integrated Care,"10,080.84"
28/03/2023,1249291,Westminster Society,,Bi-Borough Director of Integrated Care,"6,679.20"
28/03/2023,1249291,Westminster Society,,Bi-Borough Director of Integrated Care,653.12
28/03/2023,1249291,Westminster Society,,Bi-Borough Director of Integrated Care,"3,625.85"
28/03/2023,1249291,Westminster Society,,Bi-Borough Director of Integrated Care,653.12
28/03/2023,1249291,Westminster Society,,Bi-Borough Director of Integrated Care,"4,770.86"
28/03/2023,1249291,Westminster Society,,Bi-Borough Director of Integrated Care,"1,962.18"
28/03/2023,1249291,Westminster Society,,Bi-Borough Director of Integrated Care,763.34
28/03/2023,1249291,Westminster Society,,Bi-Borough Director of Integrated Care,"1,813.20"
28/03/2023,1249291,Westminster Society,,Bi-Borough Director of Integrated Care,"11,354.64"
28/03/2023,1249291,Westminster Society,,Bi-Borough Director of Integrated Care,"1,116.39"
28/03/2023,1249291,Westminster Society,,Bi-Borough Director of Integrated Care,"1,813.20"
28/03/2023,1249291,Westminster Society,,Bi-Borough Director of Integrated Care,"7,881.44"
28/03/2023,1249291,Westminster Society,,Bi-Borough Director of Integrated Care,"1,116.39"
28/03/2023,1249291,Westminster Society,,Bi-Borough Director of Integrated Care,"8,091.36"
28/03/2023,1249291,Westminster Society,,Bi-Borough Director of Integrated Care,"1,813.20"
28/03/2023,1249291,Westminster Society,,Bi-Borough Director of Integrated Care,"1,116.39"
31/03/2023,1249291,Westminster Society,,Bi-Borough Director of Integrated Care,"1,730.24"
01/02/2023,1246224,Whitmore Vale Housing Association,,Bi-Borough Director of Integrated Care,"3,688.80"
01/03/2023,1246224,Whitmore Vale Housing Association,,Bi-Borough Director of Integrated Care,"3,688.80"
28/03/2023,1246224,Whitmore Vale Housing Association,,Bi-Borough Director of Integrated Care,"4,347.51"
25/01/2023,1243566,Yarrow Housing Ltd,,Bi-Borough Director of Integrated Care,"7,921.20"
01/02/2023,1243566,Yarrow Housing Ltd,,Bi-Borough Director of Integrated Care,"3,889.16"
01/02/2023,1243566,Yarrow Housing Ltd,,Bi-Borough Director of Integrated Care,"5,550.80"
01/02/2023,1243566,Yarrow Housing Ltd,,Bi-Borough Director of Integrated Care,"9,628.00"
01/02/2023,1243566,Yarrow Housing Ltd,,Bi-Borough Director of Integrated Care,"1,816.64"
01/02/2023,1243566,Yarrow Housing Ltd,,Bi-Borough Director of Integrated Care,"1,816.64"
01/02/2023,1243566,Yarrow Housing Ltd,,Bi-Borough Director of Integrated Care,"7,297.56"
01/02/2023,1243566,Yarrow Housing Ltd,,Bi-Borough Director of Integrated Care,"4,401.07"
01/02/2023,1243566,Yarrow Housing Ltd,,Bi-Borough Director of Integrated Care,"7,851.20"
01/02/2023,1243566,Yarrow Housing Ltd,,Bi-Borough Director of Integrated Care,"4,886.32"
01/02/2023,1243566,Yarrow Housing Ltd,,Bi-Borough Director of Integrated Care,"1,686.72"
01/02/2023,1243566,Yarrow Housing Ltd,,Bi-Borough Director of Integrated Care,"1,686.72"
01/02/2023,1243566,Yarrow Housing Ltd,,Bi-Borough Director of Integrated Care,"8,301.92"
01/03/2023,1243566,Yarrow Housing Ltd,,Bi-Borough Director of Integrated Care,"7,921.20"
01/03/2023,1243566,Yarrow Housing Ltd,,Bi-Borough Director of Integrated Care,"5,550.80"
01/03/2023,1243566,Yarrow Housing Ltd,,Bi-Borough Director of Integrated Care,"1,816.64"
01/03/2023,1243566,Yarrow Housing Ltd,,Bi-Borough Director of Integrated Care,"1,816.64"
01/03/2023,1243566,Yarrow Housing Ltd,,Bi-Borough Director of Integrated Care,"7,297.56"
01/03/2023,1243566,Yarrow Housing Ltd,,Bi-Borough Director of Integrated Care,"12,323.00"
01/03/2023,1243566,Yarrow Housing Ltd,,Bi-Borough Director of Integrated Care,"7,851.20"
01/03/2023,1243566,Yarrow Housing Ltd,,Bi-Borough Director of Integrated Care,"4,886.32"
01/03/2023,1243566,Yarrow Housing Ltd,,Bi-Borough Director of Integrated Care,"1,686.72"
01/03/2023,1243566,Yarrow Housing Ltd,,Bi-Borough Director of Integrated Care,"1,686.72"
01/03/2023,1243566,Yarrow Housing Ltd,,Bi-Borough Director of Integrated Care,"8,301.92"
01/03/2023,1243566,Yarrow Housing Ltd,,Bi-Borough Director of Integrated Care,"3,889.16"
14/03/2023,1243566,Yarrow Housing Ltd,,Bi-Borough Director of Integrated Care,"7,921.20"
28/03/2023,1243566,Yarrow Housing Ltd,,Bi-Borough Director of Integrated Care,"9,253.20"
28/03/2023,1243566,Yarrow Housing Ltd,,Bi-Borough Director of Integrated Care,"5,758.88"
28/03/2023,1243566,Yarrow Housing Ltd,,Bi-Borough Director of Integrated Care,"1,987.92"
28/03/2023,1243566,Yarrow Housing Ltd,,Bi-Borough Director of Integrated Care,"1,987.92"
28/03/2023,1243566,Yarrow Housing Ltd,,Bi-Borough Director of Integrated Care,"9,784.41"
28/03/2023,1243566,Yarrow Housing Ltd,,Bi-Borough Director of Integrated Care,"4,583.65"
28/03/2023,1243566,Yarrow Housing Ltd,,Bi-Borough Director of Integrated Care,"6,542.01"
28/03/2023,1243566,Yarrow Housing Ltd,,Bi-Borough Director of Integrated Care,"2,141.04"
28/03/2023,1243566,Yarrow Housing Ltd,,Bi-Borough Director of Integrated Care,"2,141.04"
28/03/2023,1243566,Yarrow Housing Ltd,,Bi-Borough Director of Integrated Care,"8,600.70"
28/03/2023,1243566,Yarrow Housing Ltd,,Bi-Borough Director of Integrated Care,"14,523.54"
28/03/2023,1243566,Yarrow Housing Ltd,,Bi-Borough Director of Integrated Care,"7,921.20"
12/01/2023,1249317,Zocalo Ltd T/as Bluebird Care,,Bi-Borough Director of Integrated Care,"3,888.00"
14/02/2023,1249317,Zocalo Ltd T/as Bluebird Care,,Bi-Borough Director of Integrated Care,"3,897.00"
30/03/2023,1249317,Zocalo Ltd T/as Bluebird Care,,Bi-Borough Director of Integrated Care,"3,780.00"
30/03/2023,1249317,Zocalo Ltd T/as Bluebird Care,,Bi-Borough Director of Integrated Care,"3,780.00"
09/01/2023,1249318,Zodiac Arts Ltd,B*Voluntary-Spot-V Dep-Enhanced - do not u,Bi-Borough Director of Integrated Care,715.5
13/02/2023,1249318,Zodiac Arts Ltd,B*Voluntary-Spot-V Dep-Enhanced - do not u,Bi-Borough Director of Integrated Care,715.5
07/03/2023,1249318,Zodiac Arts Ltd,B*Voluntary-Spot-V Dep-Enhanced - do not u,Bi-Borough Director of Integrated Care,715.5
31/03/2023,1249318,Zodiac Arts Ltd,B*Voluntary-Spot-V Dep-Enhanced - do not u,Bi-Borough Director of Integrated Care,715.5
10/02/2023,1246072,Bates Office Services Ltd,Equipment,Bi-Borough Director of Integrated Care,659.66
05/01/2023,1248227,Ogilvie Fleet,HTM / Other Vehicle - Hire Charges,Bi-Borough Director of Integrated Care,"1,395.00"
02/02/2023,1248227,Ogilvie Fleet,HTM / Other Vehicle - Hire Charges,Bi-Borough Director of Integrated Care,"1,317.00"
02/03/2023,1263863,Barry Bros Security Limited,,Bi-Borough Director of Integrated Care,"1,950.00"
08/03/2023,1263863,Barry Bros Security Limited,,Bi-Borough Director of Integrated Care,609.5
31/03/2023,1292239,Migrants Organise Ltd,Payments to Voluntary bodies,Bi-Borough Director of Integrated Care,"6,000.00"
02/02/2023,1249079,The Appropriate Adult Service Ltd,Training related expenditure,Bi-Borough Director of Integrated Care,956.25
06/03/2023,1249079,The Appropriate Adult Service Ltd,Training related expenditure,Bi-Borough Director of Integrated Care,998.75
11/01/2023,1243797,Central & North West London Nhs,Payments to Health Authorities,Bi-Borough Director of Integrated Care,"21,850.00"
21/02/2023,1243797,Central & North West London Nhs,Other Expenses,Bi-Borough Director of Integrated Care,"15,109.98"
21/03/2023,1243797,Central & North West London Nhs,Other Expenses,Bi-Borough Director of Integrated Care,"14,488.02"
01/02/2023,1247852,Look Ahead Care and Support Ltd,,Bi-Borough Director of Integrated Care,955.56
01/02/2023,1247852,Look Ahead Care and Support Ltd,,Bi-Borough Director of Integrated Care,"1,256.64"
01/02/2023,1247852,Look Ahead Care and Support Ltd,,Bi-Borough Director of Integrated Care,842.28
01/02/2023,1247852,Look Ahead Care and Support Ltd,,Bi-Borough Director of Integrated Care,"1,413.00"
01/02/2023,1247852,Look Ahead Care and Support Ltd,,Bi-Borough Director of Integrated Care,"1,256.64"
01/02/2023,1247852,Look Ahead Care and Support Ltd,,Bi-Borough Director of Integrated Care,"1,371.44"
01/02/2023,1247852,Look Ahead Care and Support Ltd,,Bi-Borough Director of Integrated Care,955.56
01/02/2023,1247852,Look Ahead Care and Support Ltd,,Bi-Borough Director of Integrated Care,897.92
01/03/2023,1247852,Look Ahead Care and Support Ltd,,Bi-Borough Director of Integrated Care,"1,256.64"
01/03/2023,1247852,Look Ahead Care and Support Ltd,,Bi-Borough Director of Integrated Care,"1,371.44"
01/03/2023,1247852,Look Ahead Care and Support Ltd,,Bi-Borough Director of Integrated Care,"4,102.92"
01/03/2023,1247852,Look Ahead Care and Support Ltd,,Bi-Borough Director of Integrated Care,897.92
01/03/2023,1247852,Look Ahead Care and Support Ltd,,Bi-Borough Director of Integrated Care,955.56
01/03/2023,1247852,Look Ahead Care and Support Ltd,,Bi-Borough Director of Integrated Care,"1,256.64"
01/03/2023,1247852,Look Ahead Care and Support Ltd,,Bi-Borough Director of Integrated Care,842.28
01/03/2023,1247852,Look Ahead Care and Support Ltd,,Bi-Borough Director of Integrated Care,"1,413.00"
28/03/2023,1247852,Look Ahead Care and Support Ltd,,Bi-Borough Director of Integrated Care,"1,058.26"
28/03/2023,1247852,Look Ahead Care and Support Ltd,,Bi-Borough Director of Integrated Care,"1,126.20"
28/03/2023,1247852,Look Ahead Care and Support Ltd,,Bi-Borough Director of Integrated Care,"1,481.04"
28/03/2023,1247852,Look Ahead Care and Support Ltd,,Bi-Borough Director of Integrated Care,992.69
28/03/2023,1247852,Look Ahead Care and Support Ltd,,Bi-Borough Director of Integrated Care,"1,665.32"
28/03/2023,1247852,Look Ahead Care and Support Ltd,,Bi-Borough Director of Integrated Care,"1,481.04"
28/03/2023,1247852,Look Ahead Care and Support Ltd,,Bi-Borough Director of Integrated Care,"1,616.34"
28/03/2023,1247852,Look Ahead Care and Support Ltd,,Bi-Borough Director of Integrated Care,"1,074.57"
01/02/2023,1248618,Riverside Echg,,Bi-Borough Director of Integrated Care,"1,008.00"
01/02/2023,1248618,Riverside Echg,,Bi-Borough Director of Integrated Care,"1,233.48"
01/02/2023,1248618,Riverside Echg,,Bi-Borough Director of Integrated Care,688.24
01/02/2023,1248618,Riverside Echg,,Bi-Borough Director of Integrated Care,"1,236.28"
01/02/2023,1248618,Riverside Echg,,Bi-Borough Director of Integrated Care,"1,059.08"
01/03/2023,1248618,Riverside Echg,,Bi-Borough Director of Integrated Care,"1,008.00"
01/03/2023,1248618,Riverside Echg,,Bi-Borough Director of Integrated Care,"1,233.48"
01/03/2023,1248618,Riverside Echg,,Bi-Borough Director of Integrated Care,688.24
01/03/2023,1248618,Riverside Echg,,Bi-Borough Director of Integrated Care,"1,059.08"
28/03/2023,1248618,Riverside Echg,,Bi-Borough Director of Integrated Care,"1,188.00"
28/03/2023,1248618,Riverside Echg,,Bi-Borough Director of Integrated Care,"1,453.74"
28/03/2023,1248618,Riverside Echg,,Bi-Borough Director of Integrated Care,811.14
28/03/2023,1248618,Riverside Echg,,Bi-Borough Director of Integrated Care,"1,248.20"
01/02/2023,1245584,Single Homeless Project,,Bi-Borough Director of Integrated Care,"1,531.36"
01/02/2023,1245584,Single Homeless Project,,Bi-Borough Director of Integrated Care,"1,652.16"
01/02/2023,1245584,Single Homeless Project,,Bi-Borough Director of Integrated Care,"1,531.40"
01/02/2023,1245584,Single Homeless Project,,Bi-Borough Director of Integrated Care,"1,076.92"
01/03/2023,1245584,Single Homeless Project,,Bi-Borough Director of Integrated Care,"1,531.36"
01/03/2023,1245584,Single Homeless Project,,Bi-Borough Director of Integrated Care,"1,652.16"
01/03/2023,1245584,Single Homeless Project,,Bi-Borough Director of Integrated Care,"1,531.40"
01/03/2023,1245584,Single Homeless Project,,Bi-Borough Director of Integrated Care,"1,076.92"
28/03/2023,1245584,Single Homeless Project,,Bi-Borough Director of Integrated Care,"1,804.86"
28/03/2023,1245584,Single Homeless Project,,Bi-Borough Director of Integrated Care,"1,269.23"
28/03/2023,1245584,Single Homeless Project,,Bi-Borough Director of Integrated Care,"1,804.82"
28/03/2023,1245584,Single Homeless Project,,Bi-Borough Director of Integrated Care,"1,947.19"
01/02/2023,1245636,St Mungos Broadway (Grants &,,Bi-Borough Director of Integrated Care,"1,573.40"
01/02/2023,1245636,St Mungos Broadway (Grants &,,Bi-Borough Director of Integrated Care,"1,120.28"
01/02/2023,1245636,St Mungos Broadway (Grants &,,Bi-Borough Director of Integrated Care,"1,426.80"
01/02/2023,1245636,St Mungos Broadway (Grants &,,Bi-Borough Director of Integrated Care,"1,450.96"
01/03/2023,1245636,St Mungos Broadway (Grants &,,Bi-Borough Director of Integrated Care,"1,426.80"
01/03/2023,1245636,St Mungos Broadway (Grants &,,Bi-Borough Director of Integrated Care,"1,450.96"
01/03/2023,1245636,St Mungos Broadway (Grants &,,Bi-Borough Director of Integrated Care,"1,573.40"
28/03/2023,1245636,St Mungos Broadway (Grants &,,Bi-Borough Director of Integrated Care,"1,710.06"
28/03/2023,1245636,St Mungos Broadway (Grants &,,Bi-Borough Director of Integrated Care,"1,854.36"
28/03/2023,1245636,St Mungos Broadway (Grants &,,Bi-Borough Director of Integrated Care,"1,681.59"
08/02/2023,1247238,Hands Free Computing Ltd,IT Software,Bi-Borough Director of Integrated Care,575
08/02/2023,1247238,Hands Free Computing Ltd,IT Software,Bi-Borough Director of Integrated Care,815
22/03/2023,1305117,British Red Cross,Agency Staff,Bi-Borough Director of Integrated Care,"120,751.07"
17/02/2023,1245728,Cnwl Nhs Foundation Trust (Use,Agency Staff,Bi-Borough Director of Integrated Care,"2,509.43"
17/02/2023,1245728,Cnwl Nhs Foundation Trust (Use,Agency Staff,Bi-Borough Director of Integrated Care,"2,509.43"
17/02/2023,1245728,Cnwl Nhs Foundation Trust (Use,Agency Staff,Bi-Borough Director of Integrated Care,"1,861.93"
03/03/2023,1245728,Cnwl Nhs Foundation Trust (Use,Agency Staff,Bi-Borough Director of Integrated Care,"2,509.43"
23/01/2023,1243775,Royal Borough of Kensington &,B*Payments to OLAs - Southampton City Co,Bi-Borough Director of Integrated Care,"14,996.92"
06/02/2023,1243775,Royal Borough of Kensington &,Agency Staff,Bi-Borough Director of Integrated Care,"7,218.00"
06/02/2023,1243775,Royal Borough of Kensington &,Agency Staff,Bi-Borough Director of Integrated Care,"9,161.00"
30/03/2023,1251196,Royal Borough of Kensington and,B*Payments to OLAs - Southampton City Co,Bi-Borough Director of Integrated Care,"18,740.00"
11/01/2023,1243797,Central & North West London Nhs,Payments to Health Authorities,Bi-Borough Director of Integrated Care,"5,250.00"
21/02/2023,1243797,Central & North West London Nhs,Other Expenses,Bi-Borough Director of Integrated Care,"17,395.86"
21/03/2023,1243797,Central & North West London Nhs,Other Expenses,Bi-Borough Director of Integrated Care,"16,658.25"
08/02/2023,1255843,A.I. Care Services Ltd,,Bi-Borough Director of Integrated Care,"1,031.82"
22/02/2023,1255843,A.I. Care Services Ltd,,Bi-Borough Director of Integrated Care,"1,031.82"
13/03/2023,1255843,A.I. Care Services Ltd,,Bi-Borough Director of Integrated Care,"1,031.82"
30/03/2023,1255843,A.I. Care Services Ltd,,Bi-Borough Director of Integrated Care,996.24
23/02/2023,1245929,The Regard Partnership Ltd,B*Voluntary-Spot-V Dep-Enhanced - do not u,Bi-Borough Director of Integrated Care,"1,855.00"
11/01/2023,1243931,Ashbourne Healthcare Services,,Bi-Borough Director of Integrated Care,996.24
11/01/2023,1243931,Ashbourne Healthcare Services,,Bi-Borough Director of Integrated Care,"1,547.73"
23/01/2023,1243931,Ashbourne Healthcare Services,,Bi-Borough Director of Integrated Care,"2,259.33"
08/02/2023,1243931,Ashbourne Healthcare Services,,Bi-Borough Director of Integrated Care,"5,977.44"
14/02/2023,1243931,Ashbourne Healthcare Services,,Bi-Borough Director of Integrated Care,"1,494.36"
21/02/2023,1243931,Ashbourne Healthcare Services,,Bi-Borough Director of Integrated Care,"5,977.44"
13/03/2023,1243931,Ashbourne Healthcare Services,,Bi-Borough Director of Integrated Care,"5,461.53"
24/03/2023,1243931,Ashbourne Healthcare Services,,Bi-Borough Director of Integrated Care,"1,494.36"
01/02/2023,1271022,BONZA CARE LTD,,Bi-Borough Director of Integrated Care,"1,684.00"
01/02/2023,1271022,BONZA CARE LTD,,Bi-Borough Director of Integrated Care,"2,180.00"
01/02/2023,1271022,BONZA CARE LTD,,Bi-Borough Director of Integrated Care,"2,180.00"
01/03/2023,1271022,BONZA CARE LTD,,Bi-Borough Director of Integrated Care,"2,180.00"
01/03/2023,1271022,BONZA CARE LTD,,Bi-Borough Director of Integrated Care,"2,180.00"
01/03/2023,1271022,BONZA CARE LTD,,Bi-Borough Director of Integrated Care,"1,684.00"
28/03/2023,1271022,BONZA CARE LTD,,Bi-Borough Director of Integrated Care,"2,569.29"
28/03/2023,1271022,BONZA CARE LTD,,Bi-Borough Director of Integrated Care,"2,569.29"
28/03/2023,1271022,BONZA CARE LTD,,Bi-Borough Director of Integrated Care,"1,984.71"
01/02/2023,1302222,Bespoke Care Support Ltd,,Bi-Borough Director of Integrated Care,"26,209.58"
01/03/2023,1302222,Bespoke Care Support Ltd,,Bi-Borough Director of Integrated Care,"3,218.72"
28/03/2023,1302222,Bespoke Care Support Ltd,,Bi-Borough Director of Integrated Care,"26,100.98"
29/03/2023,1246247,Blitz Home Environmental Cleaning,,Bi-Borough Director of Integrated Care,700
29/03/2023,1246247,Blitz Home Environmental Cleaning,,Bi-Borough Director of Integrated Care,"1,500.00"
29/03/2023,1246247,Blitz Home Environmental Cleaning,,Bi-Borough Director of Integrated Care,500
11/01/2023,1246261,Brent Wandsworth & Westminster,,Bi-Borough Director of Integrated Care,625.15
11/01/2023,1246261,Brent Wandsworth & Westminster,,Bi-Borough Director of Integrated Care,536.5
11/01/2023,1246261,Brent Wandsworth & Westminster,,Bi-Borough Director of Integrated Care,520.8
16/01/2023,1246261,Brent Wandsworth & Westminster,B*Voluntary-Spot-V Dep-Enhanced - do not u,Bi-Borough Director of Integrated Care,922.24
13/02/2023,1246261,Brent Wandsworth & Westminster,B*Voluntary-Spot-V Dep-Enhanced - do not u,Bi-Borough Director of Integrated Care,981
13/02/2023,1246261,Brent Wandsworth & Westminster,B*Voluntary-Spot-V Dep-Enhanced - do not u,Bi-Borough Director of Integrated Care,510.79
15/03/2023,1246261,Brent Wandsworth & Westminster,B*Voluntary-Spot-V Dep-Enhanced - do not u,Bi-Borough Director of Integrated Care,926.79
20/03/2023,1246262,Brent Wandsworth & Westminster,B*Voluntary-Spot-V Dep-Enhanced - do not u,Bi-Borough Director of Integrated Care,720
20/03/2023,1246262,Brent Wandsworth & Westminster,B*Voluntary-Spot-V Dep-Enhanced - do not u,Bi-Borough Director of Integrated Care,660
20/03/2023,1246262,Brent Wandsworth & Westminster,B*Voluntary-Spot-V Dep-Enhanced - do not u,Bi-Borough Director of Integrated Care,750
20/03/2023,1246262,Brent Wandsworth & Westminster,B*Voluntary-Spot-V Dep-Enhanced - do not u,Bi-Borough Director of Integrated Care,540
20/03/2023,1246262,Brent Wandsworth & Westminster,B*Voluntary-Spot-V Dep-Enhanced - do not u,Bi-Borough Director of Integrated Care,540
22/03/2023,1246262,Brent Wandsworth & Westminster,B*Voluntary-Spot-V Dep-Enhanced - do not u,Bi-Borough Director of Integrated Care,780
22/03/2023,1246262,Brent Wandsworth & Westminster,B*Voluntary-Spot-V Dep-Enhanced - do not u,Bi-Borough Director of Integrated Care,540
24/03/2023,1246262,Brent Wandsworth & Westminster,B*Voluntary-Spot-V Dep-Enhanced - do not u,Bi-Borough Director of Integrated Care,540
24/03/2023,1246262,Brent Wandsworth & Westminster,B*Voluntary-Spot-V Dep-Enhanced - do not u,Bi-Borough Director of Integrated Care,780
24/03/2023,1246262,Brent Wandsworth & Westminster,B*Voluntary-Spot-V Dep-Enhanced - do not u,Bi-Borough Director of Integrated Care,540
24/03/2023,1246262,Brent Wandsworth & Westminster,B*Voluntary-Spot-V Dep-Enhanced - do not u,Bi-Borough Director of Integrated Care,600
01/02/2023,1247482,PERSONAL PAYMENTS,,Bi-Borough Director of Integrated Care,833.28
01/03/2023,1247482,PERSONAL PAYMENTS,,Bi-Borough Director of Integrated Care,833.28
28/03/2023,1247482,PERSONAL PAYMENTS,,Bi-Borough Director of Integrated Care,982.08
01/02/2023,1246321,Camphill Village Trust,,Bi-Borough Director of Integrated Care,"1,159.40"
01/03/2023,1246321,Camphill Village Trust,,Bi-Borough Director of Integrated Care,"1,159.40"
28/03/2023,1246321,Camphill Village Trust,,Bi-Borough Director of Integrated Care,"1,366.44"
07/03/2023,1286484,City Winners Limited,,Bi-Borough Director of Integrated Care,"2,100.00"
07/03/2023,1286484,City Winners Limited,,Bi-Borough Director of Integrated Care,"1,620.00"
01/02/2023,1299671,Clear Sight Care Ltd,,Bi-Borough Director of Integrated Care,"1,724.00"
01/02/2023,1299671,Clear Sight Care Ltd,,Bi-Borough Director of Integrated Care,"1,724.00"
01/03/2023,1299671,Clear Sight Care Ltd,,Bi-Borough Director of Integrated Care,"1,724.00"
01/03/2023,1299671,Clear Sight Care Ltd,,Bi-Borough Director of Integrated Care,"1,724.00"
28/03/2023,1299671,Clear Sight Care Ltd,,Bi-Borough Director of Integrated Care,"2,031.86"
28/03/2023,1299671,Clear Sight Care Ltd,,Bi-Borough Director of Integrated Care,"2,031.86"
04/01/2023,1246581,Clearup Solutions Limited,,Bi-Borough Director of Integrated Care,"1,950.00"
03/02/2023,1246581,Clearup Solutions Limited,,Bi-Borough Director of Integrated Care,650
23/02/2023,1246581,Clearup Solutions Limited,,Bi-Borough Director of Integrated Care,650
16/01/2023,1244190,Clouds End Services Ltd,,Bi-Borough Director of Integrated Care,"1,000.00"
08/02/2023,1244190,Clouds End Services Ltd,,Bi-Borough Director of Integrated Care,900
07/03/2023,1244190,Clouds End Services Ltd,,Bi-Borough Director of Integrated Care,"1,100.00"
01/02/2023,1246602,Community Housing Therapy,,Bi-Borough Director of Integrated Care,"1,940.00"
01/03/2023,1246602,Community Housing Therapy,,Bi-Borough Director of Integrated Care,"1,940.00"
28/03/2023,1246602,Community Housing Therapy,,Bi-Borough Director of Integrated Care,"2,286.43"
03/01/2023,1268176,Conquest Care and Support,,Bi-Borough Director of Integrated Care,"1,743.44"
07/02/2023,1268176,Conquest Care and Support,,Bi-Borough Director of Integrated Care,"1,743.42"
07/03/2023,1268176,Conquest Care and Support,,Bi-Borough Director of Integrated Care,"1,419.01"
29/03/2023,1268176,Conquest Care and Support,,Bi-Borough Director of Integrated Care,"1,257.01"
25/01/2023,1244225,Core Arts,B*Voluntary-Spot-V Dep-Enhanced - do not u,Bi-Borough Director of Integrated Care,650
28/03/2023,1244225,Core Arts,B*Voluntary-Spot-V Dep-Enhanced - do not u,Bi-Borough Director of Integrated Care,650
01/02/2023,1301212,Diverse Services Ltd,,Bi-Borough Director of Integrated Care,"1,700.00"
01/03/2023,1301212,Diverse Services Ltd,,Bi-Borough Director of Integrated Care,"1,700.00"
28/03/2023,1301212,Diverse Services Ltd,,Bi-Borough Director of Integrated Care,"2,003.57"
09/02/2023,1259597,Ethica Services LTD,,Bi-Borough Director of Integrated Care,"1,245.16"
14/02/2023,1259597,Ethica Services LTD,,Bi-Borough Director of Integrated Care,"1,245.16"
21/03/2023,1259597,Ethica Services LTD,,Bi-Borough Director of Integrated Care,"1,245.16"
06/01/2023,1252498,Field Court Chambers,Legal Costs,Bi-Borough Director of Integrated Care,650
12/01/2023,1247257,Health Vision Uk,,Bi-Borough Director of Integrated Care,545.01
12/01/2023,1247257,Health Vision Uk,,Bi-Borough Director of Integrated Care,824.88
12/01/2023,1247257,Health Vision Uk,,Bi-Borough Director of Integrated Care,824.88
12/01/2023,1247257,Health Vision Uk,,Bi-Borough Director of Integrated Care,"1,081.51"
12/01/2023,1247257,Health Vision Uk,,Bi-Borough Director of Integrated Care,745.99
12/01/2023,1247257,Health Vision Uk,,Bi-Borough Director of Integrated Care,"1,022.25"
12/01/2023,1247257,Health Vision Uk,,Bi-Borough Director of Integrated Care,549.92
12/01/2023,1247257,Health Vision Uk,,Bi-Borough Director of Integrated Care,530.28
12/01/2023,1247257,Health Vision Uk,,Bi-Borough Director of Integrated Care,"1,099.84"
12/01/2023,1247257,Health Vision Uk,,Bi-Borough Director of Integrated Care,697.22
12/01/2023,1247257,Health Vision Uk,,Bi-Borough Director of Integrated Care,"1,619.58"
12/01/2023,1247257,Health Vision Uk,,Bi-Borough Director of Integrated Care,813.09
02/02/2023,1247257,Health Vision Uk,,Bi-Borough Director of Integrated Care,549.92
02/02/2023,1247257,Health Vision Uk,,Bi-Borough Director of Integrated Care,"1,099.84"
02/02/2023,1247257,Health Vision Uk,,Bi-Borough Director of Integrated Care,700.82
02/02/2023,1247257,Health Vision Uk,,Bi-Borough Director of Integrated Care,"1,648.12"
02/02/2023,1247257,Health Vision Uk,,Bi-Borough Director of Integrated Care,823.57
02/02/2023,1247257,Health Vision Uk,,Bi-Borough Director of Integrated Care,549.59
02/02/2023,1247257,Health Vision Uk,,Bi-Borough Director of Integrated Care,706.71
02/02/2023,1247257,Health Vision Uk,,Bi-Borough Director of Integrated Care,"1,020.40"
02/02/2023,1247257,Health Vision Uk,,Bi-Borough Director of Integrated Care,824.88
02/02/2023,1247257,Health Vision Uk,,Bi-Borough Director of Integrated Care,829.79
02/02/2023,1247257,Health Vision Uk,,Bi-Borough Director of Integrated Care,"1,116.01"
02/02/2023,1247257,Health Vision Uk,,Bi-Borough Director of Integrated Care,547.3
01/03/2023,1247257,Health Vision Uk,,Bi-Borough Director of Integrated Care,549.92
01/03/2023,1247257,Health Vision Uk,,Bi-Borough Director of Integrated Care,549.92
01/03/2023,1247257,Health Vision Uk,,Bi-Borough Director of Integrated Care,"1,099.84"
01/03/2023,1247257,Health Vision Uk,,Bi-Borough Director of Integrated Care,705.73
01/03/2023,1247257,Health Vision Uk,,Bi-Borough Director of Integrated Care,528.31
01/03/2023,1247257,Health Vision Uk,,Bi-Borough Director of Integrated Care,548.61
01/03/2023,1247257,Health Vision Uk,,Bi-Borough Director of Integrated Care,"1,584.92"
01/03/2023,1247257,Health Vision Uk,,Bi-Borough Director of Integrated Care,815.06
01/03/2023,1247257,Health Vision Uk,,Bi-Borough Director of Integrated Care,556.47
01/03/2023,1247257,Health Vision Uk,,Bi-Borough Director of Integrated Care,802.62
01/03/2023,1247257,Health Vision Uk,,Bi-Borough Director of Integrated Care,802.62
01/03/2023,1247257,Health Vision Uk,,Bi-Borough Director of Integrated Care,833.72
01/03/2023,1247257,Health Vision Uk,,Bi-Borough Director of Integrated Care,701.47
01/03/2023,1247257,Health Vision Uk,,Bi-Borough Director of Integrated Care,"1,026.52"
01/02/2023,1300210,Instant Care Solutions Ltd,,Bi-Borough Director of Integrated Care,"2,500.00"
01/02/2023,1300210,Instant Care Solutions Ltd,,Bi-Borough Director of Integrated Care,"2,500.00"
01/03/2023,1300210,Instant Care Solutions Ltd,,Bi-Borough Director of Integrated Care,"2,500.00"
01/03/2023,1300210,Instant Care Solutions Ltd,,Bi-Borough Director of Integrated Care,"2,500.00"
28/03/2023,1300210,Instant Care Solutions Ltd,,Bi-Borough Director of Integrated Care,"2,946.43"
28/03/2023,1300210,Instant Care Solutions Ltd,,Bi-Borough Director of Integrated Care,"2,946.43"
03/01/2023,1247526,Integrity Care and Support Ltd,,Bi-Borough Director of Integrated Care,"1,278.60"
25/01/2023,1247526,Integrity Care and Support Ltd,,Bi-Borough Director of Integrated Care,"1,172.05"
02/03/2023,1247526,Integrity Care and Support Ltd,,Bi-Borough Director of Integrated Care,"1,108.12"
27/03/2023,1247526,Integrity Care and Support Ltd,,Bi-Borough Director of Integrated Care,"1,257.29"
12/01/2023,1256893,Kapital Care WCC,,Bi-Borough Director of Integrated Care,996.24
03/03/2023,1256893,Kapital Care WCC,,Bi-Borough Director of Integrated Care,996.24
06/03/2023,1256893,Kapital Care WCC,,Bi-Borough Director of Integrated Care,"1,031.82"
24/01/2023,1245693,London Borough Of Hammersmith &,Payments to Other Local Authorities,Bi-Borough Director of Integrated Care,"1,915.00"
21/03/2023,1245693,London Borough Of Hammersmith &,Payments to Other Local Authorities,Bi-Borough Director of Integrated Care,"1,874.00"
11/01/2023,1247650,London Care Ltd,,Bi-Borough Director of Integrated Care,737.48
11/01/2023,1247650,London Care Ltd,,Bi-Borough Director of Integrated Care,534.65
11/01/2023,1247650,London Care Ltd,,Bi-Borough Director of Integrated Care,689.03
11/01/2023,1247650,London Care Ltd,,Bi-Borough Director of Integrated Care,"1,723.81"
11/01/2023,1247650,London Care Ltd,,Bi-Borough Director of Integrated Care,"1,015.27"
11/01/2023,1247650,London Care Ltd,,Bi-Borough Director of Integrated Care,901.86
11/01/2023,1247650,London Care Ltd,,Bi-Borough Director of Integrated Care,"1,483.59"
11/01/2023,1247650,London Care Ltd,,Bi-Borough Director of Integrated Care,951.36
11/01/2023,1247650,London Care Ltd,,Bi-Borough Director of Integrated Care,909.65
11/01/2023,1247650,London Care Ltd,,Bi-Borough Director of Integrated Care,674.52
28/02/2023,1247650,London Care Ltd,,Bi-Borough Director of Integrated Care,876.27
28/02/2023,1247650,London Care Ltd,,Bi-Borough Director of Integrated Care,"1,485.77"
28/02/2023,1247650,London Care Ltd,,Bi-Borough Director of Integrated Care,"1,041.50"
28/02/2023,1247650,London Care Ltd,,Bi-Borough Director of Integrated Care,782.14
28/02/2023,1247650,London Care Ltd,,Bi-Borough Director of Integrated Care,727.66
28/02/2023,1247650,London Care Ltd,,Bi-Borough Director of Integrated Care,545.66
28/02/2023,1247650,London Care Ltd,,Bi-Borough Director of Integrated Care,"1,235.35"
28/02/2023,1247650,London Care Ltd,,Bi-Borough Director of Integrated Care,"1,649.76"
28/02/2023,1247650,London Care Ltd,,Bi-Borough Director of Integrated Care,"1,043.86"
22/03/2023,1247650,London Care Ltd,,Bi-Borough Director of Integrated Care,694.6
22/03/2023,1247650,London Care Ltd,,Bi-Borough Director of Integrated Care,503.44
22/03/2023,1247650,London Care Ltd,,Bi-Borough Director of Integrated Care,542.07
22/03/2023,1247650,London Care Ltd,,Bi-Borough Director of Integrated Care,"1,330.29"
22/03/2023,1247650,London Care Ltd,,Bi-Borough Director of Integrated Care,"1,614.15"
22/03/2023,1247650,London Care Ltd,,Bi-Borough Director of Integrated Care,628.48
22/03/2023,1247650,London Care Ltd,,Bi-Borough Director of Integrated Care,817.02
22/03/2023,1247650,London Care Ltd,,Bi-Borough Director of Integrated Care,"1,438.08"
22/03/2023,1247650,London Care Ltd,,Bi-Borough Director of Integrated Care,"1,037.82"
22/03/2023,1247650,London Care Ltd,,Bi-Borough Director of Integrated Care,546.65
22/03/2023,1247650,London Care Ltd,,Bi-Borough Director of Integrated Care,806.65
27/03/2023,1247650,London Care Ltd,,Bi-Borough Director of Integrated Care,727.99
27/03/2023,1247650,London Care Ltd,,Bi-Borough Director of Integrated Care,549.59
27/03/2023,1247650,London Care Ltd,,Bi-Borough Director of Integrated Care,539.74
27/03/2023,1247650,London Care Ltd,,Bi-Borough Director of Integrated Care,"1,313.92"
27/03/2023,1247650,London Care Ltd,,Bi-Borough Director of Integrated Care,"1,607.88"
27/03/2023,1247650,London Care Ltd,,Bi-Borough Director of Integrated Care,638.3
27/03/2023,1247650,London Care Ltd,,Bi-Borough Director of Integrated Care,814.43
27/03/2023,1247650,London Care Ltd,,Bi-Borough Director of Integrated Care,"1,482.82"
27/03/2023,1247650,London Care Ltd,,Bi-Borough Director of Integrated Care,"1,046.68"
27/03/2023,1247650,London Care Ltd,,Bi-Borough Director of Integrated Care,822.26
01/02/2023,1247852,Look Ahead Care and Support Ltd,Rent,Bi-Borough Director of Integrated Care,"1,303.28"
01/03/2023,1247852,Look Ahead Care and Support Ltd,Rent,Bi-Borough Director of Integrated Care,"1,303.28"
28/03/2023,1247852,Look Ahead Care and Support Ltd,Rent,Bi-Borough Director of Integrated Care,"1,536.01"
01/02/2023,1262948,Lotus House,,Bi-Borough Director of Integrated Care,"2,928.00"
01/03/2023,1262948,Lotus House,,Bi-Borough Director of Integrated Care,"2,928.00"
28/03/2023,1262948,Lotus House,,Bi-Borough Director of Integrated Care,"3,450.86"
08/02/2023,1259132,MMR Home Care LTD,,Bi-Borough Director of Integrated Care,711.6
08/02/2023,1259132,MMR Home Care LTD,,Bi-Borough Director of Integrated Care,658.23
08/02/2023,1259132,MMR Home Care LTD,,Bi-Borough Director of Integrated Care,569.28
07/03/2023,1259132,MMR Home Care LTD,,Bi-Borough Director of Integrated Care,569.28
31/03/2023,1259132,MMR Home Care LTD,,Bi-Borough Director of Integrated Care,569.28
01/02/2023,1244866,Micado Community Living Services,,Bi-Borough Director of Integrated Care,"2,880.00"
01/03/2023,1244866,Micado Community Living Services,,Bi-Borough Director of Integrated Care,"2,880.00"
28/03/2023,1244866,Micado Community Living Services,,Bi-Borough Director of Integrated Care,"3,394.29"
13/02/2023,1244905,Nas Services Ltd (Residential),B*Voluntary-Spot-V Dep-Enhanced - do not u,Bi-Borough Director of Integrated Care,532.56
01/02/2023,1270326,New Directions Flexible Social Care,,Bi-Borough Director of Integrated Care,"1,400.00"
01/03/2023,1270326,New Directions Flexible Social Care,,Bi-Borough Director of Integrated Care,"1,400.00"
28/03/2023,1270326,New Directions Flexible Social Care,,Bi-Borough Director of Integrated Care,"1,650.00"
12/01/2023,1284661,PERSONAL PAYMENTS,Social Care - Direct Payments,Bi-Borough Director of Integrated Care,528
12/01/2023,1291114,PERSONAL PAYMENTS,Social Care - Direct Payments,Bi-Borough Director of Integrated Care,960
12/01/2023,1254334,PERSONAL PAYMENTS,Adult Social Care - Other Transfer Pay,Bi-Borough Director of Integrated Care,"1,500.00"
12/01/2023,1266895,PERSONAL PAYMENTS,Social Care - Direct Payments,Bi-Borough Director of Integrated Care,728
12/01/2023,1247409,PERSONAL PAYMENTS,Social Care - Direct Payments,Bi-Borough Director of Integrated Care,508.84
12/01/2023,1247479,PERSONAL PAYMENTS,Social Care - Direct Payments,Bi-Borough Director of Integrated Care,"1,639.08"
12/01/2023,1259940,PERSONAL PAYMENTS,Adult Social Care - Other Transfer Pay,Bi-Borough Director of Integrated Care,"6,175.66"
09/02/2023,1284661,PERSONAL PAYMENTS,Social Care - Direct Payments,Bi-Borough Director of Integrated Care,660
09/02/2023,1291114,PERSONAL PAYMENTS,Social Care - Direct Payments,Bi-Borough Director of Integrated Care,"1,200.00"
09/02/2023,1254334,PERSONAL PAYMENTS,Adult Social Care - Other Transfer Pay,Bi-Borough Director of Integrated Care,"1,875.00"
09/02/2023,1266895,PERSONAL PAYMENTS,Social Care - Direct Payments,Bi-Borough Director of Integrated Care,910
09/02/2023,1246066,Barrie Bookkeeping & Payroll,Adult Social Care - Other Transfer Pay,Bi-Borough Director of Integrated Care,560.4
09/02/2023,1300457,PERSONAL PAYMENTS,Adult Social Care - Other Transfer Pay,Bi-Borough Director of Integrated Care,550.4
09/02/2023,1286294,PERSONAL PAYMENTS,Social Care - Direct Payments,Bi-Borough Director of Integrated Care,"1,390.00"
09/02/2023,1247446,PERSONAL PAYMENTS,Social Care - Direct Payments,Bi-Borough Director of Integrated Care,500
09/02/2023,1249900,PERSONAL PAYMENTS,Adult Social Care - Other Transfer Pay,Bi-Borough Director of Integrated Care,600
09/02/2023,1247409,PERSONAL PAYMENTS,Social Care - Direct Payments,Bi-Borough Director of Integrated Care,636.05
09/02/2023,1247479,PERSONAL PAYMENTS,Social Care - Direct Payments,Bi-Borough Director of Integrated Care,"2,048.85"
09/02/2023,1247815,PERSONAL PAYMENTS,Social Care - Direct Payments,Bi-Borough Director of Integrated Care,560.75
09/02/2023,1250649,PERSONAL PAYMENTS,Social Care - Direct Payments,Bi-Borough Director of Integrated Care,564
09/02/2023,1259940,PERSONAL PAYMENTS,Adult Social Care - Other Transfer Pay,Bi-Borough Director of Integrated Care,"2,595.25"
09/03/2023,1259940,PERSONAL PAYMENTS,Adult Social Care - Other Transfer Pay,Bi-Borough Director of Integrated Care,"2,076.20"
09/03/2023,1284661,PERSONAL PAYMENTS,Social Care - Direct Payments,Bi-Borough Director of Integrated Care,528
09/03/2023,1266895,PERSONAL PAYMENTS,Social Care - Direct Payments,Bi-Borough Director of Integrated Care,728
09/03/2023,1291114,PERSONAL PAYMENTS,Social Care - Direct Payments,Bi-Borough Director of Integrated Care,960
09/03/2023,1254334,PERSONAL PAYMENTS,Adult Social Care - Other Transfer Pay,Bi-Borough Director of Integrated Care,"1,500.00"
09/03/2023,1247409,PERSONAL PAYMENTS,Social Care - Direct Payments,Bi-Borough Director of Integrated Care,508.84
09/03/2023,1247479,PERSONAL PAYMENTS,Social Care - Direct Payments,Bi-Borough Director of Integrated Care,"1,639.08"
13/02/2023,1248541,Priory Nursing Agency & Home Care,,Bi-Borough Director of Integrated Care,"1,161.00"
30/03/2023,1248541,Priory Nursing Agency & Home Care,,Bi-Borough Director of Integrated Care,"1,625.40"
01/02/2023,1269718,Reliant Care Limited,,Bi-Borough Director of Integrated Care,"1,340.00"
01/03/2023,1269718,Reliant Care Limited,,Bi-Borough Director of Integrated Care,"1,340.00"
28/03/2023,1269718,Reliant Care Limited,,Bi-Borough Director of Integrated Care,"1,579.29"
03/01/2023,1245316,Respect Care Services Ltd,,Bi-Borough Director of Integrated Care,640.44
20/01/2023,1245316,Respect Care Services Ltd,,Bi-Borough Director of Integrated Care,640.44
27/01/2023,1245316,Respect Care Services Ltd,,Bi-Borough Director of Integrated Care,640.44
13/02/2023,1245316,Respect Care Services Ltd,,Bi-Borough Director of Integrated Care,640.44
03/03/2023,1245316,Respect Care Services Ltd,,Bi-Borough Director of Integrated Care,640.44
13/03/2023,1245316,Respect Care Services Ltd,,Bi-Borough Director of Integrated Care,640.44
